Workbook

Sheet Stavba
C2: Položkový rozpočet stavby | H2: Datum: | I2: =TODAY() -> 2025-01-27
C5: Stavba : | D5: 3380 | E5: Lomnice n/P. - Prodloužení sítí technické infrastruktury
E6: pro budoucí rozvojovou lokalitu BM 8
C7: Objednatel : | D7: Město Lomnice nad Popelkou | H7: IČO : | I7: 00275905
D8: Husovo náměstí 6 | H8: DIČ : | I8: CZ00275905
C9: 51251 | D9: Lomnice nad Popelkou
C11: Zhotovitel : | D11: . | H11: IČO :
H12: DIČ :
C13: Za zhotovitele : | H13: Za objednatele :
C15: _______________ | H15: _______________
J17: Rozpočtové náklady
B18: Základ pro DPH | D18: 12 | E18: % | I18: =ROUND(G34,0) -> 0
B19: DPH | D19: =SazbaDPH1 -> 12 | E19: % | I19: =ROUND(I18*D19/100,0) -> 0
B20: Základ pro DPH | D20: 21 | E20: % | I20: =ROUND(H34,0) -> 250000
B21: DPH | D21: =SazbaDPH2 -> 21 | E21: % | I21: =ROUND(I20*D20/100,0) -> 52500
B22: Cena celkem za stavbu | I22: =SUM(I18:I21) -> 302500
B25: Rekapitulace stavebních objektů a provozních souborů
B27: Číslo a název objektu / provozního souboru | F27: Cena celkem | G27: =CONCATENATE("Základ DPH ",SazbaDPH1," %") -> Základ DPH 12 % | H27: =CONCATENATE("Základ DPH ",SazbaDPH2," %") -> Základ DPH 21 % | I27: DPH celkem | J27: %
B28: 300 | C28: Prodloužení vodovodního řadu | F28: =G28+H28+I28 -> 0 | G28: 0 | H28: =SUM(H39) -> 0 | I28: =(G28*SazbaDPH1)/100+(H28*SazbaDPH2)/100 -> 0 | J28: =IF(CelkemObjekty=0,"",F28/CelkemObjekty*100) -> 0
B29: 310 | C29: Prodloužení splaškové kanalizace | F29: =G29+H29+I29 -> 0 | G29: 0 | H29: =SUM(H40) -> 0 | I29: 0 | J29: 0
B30: 320 | C30: Dešťová kanalizace | F30: 0 | G30: 0 | H30: =SUM(H41) -> 0 | I30: 0 | J30: 0
B31: 400 | C31: Prodloužení plynovodního řadu | F31: 0 | G31: 0 | H31: =SUM(H42) -> 0 | I31: 0 | J31: 0
B32: PR | C32: Povinná rezerva díla | F32: 250000 | G32: 0 | H32: =F32 -> 250000 | I32: =(G32*SazbaDPH1)/100+(H32*SazbaDPH2)/100 -> 52500 | J32: =IF(CelkemObjekty=0,"",F32/CelkemObjekty*100) -> 100
B33: OaVNS | C33: Ostatní a vedlejší náklady stavby | F33: 0 | G33: 0 | H33: =SUM(OaVNS!G30) -> 0 | I33: 0 | J33: 0
B34: Celkem za stavbu | F34: =SUM(F28:F33) -> 250000 | G34: =SUM(G28:G33) -> 0 | H34: =SUM(H28:H33) -> 250000 | I34: =SUM(I28:I31) -> 0 | J34: =IF(CelkemObjekty=0,"",F34/CelkemObjekty*100) -> 100
B36: Rekapitulace stavebních rozpočtů
B38: Číslo objektu | C38: Číslo a název rozpočtu | F38: Cena celkem | G38: =CONCATENATE("Základ DPH ",SazbaDPH1," %") -> Základ DPH 12 % | H38: =CONCATENATE("Základ DPH ",SazbaDPH2," %") -> Základ DPH 21 % | I38: DPH celkem | J38: %
B39: 300 | C39: 3380/300 Prodloužení vodovodního řadu | F39: =G39+H39+I39 -> 0 | G39: 0 | H39: =SUM('300 3380300 KL'!C23) -> 0 | I39: =(G39*SazbaDPH1)/100+(H39*SazbaDPH2)/100 -> 0 | J39: =IF(CelkemObjekty=0,"",F39/CelkemObjekty*100) -> 0
B40: 310 | C40: 3380/310 Prodloužení splaškové kanalizace | F40: =G40+H40+I40 -> 0 | G40: 0 | H40: =SUM('310 3380310 KL'!C23) -> 0 | I40: 0 | J40: 0
B41: 320 | C41: 3380/320 Dešťová kanalizace | F41: 0 | G41: 0 | H41: =SUM('320 3380320 KL'!C23) -> 0 | I41: 0 | J41: 0
B42: 400 | C42: 3380/400 Prodloužení plynovodního řadu | F42: 0 | G42: 0 | H42: =SUM('400 3380400 KL'!C23) -> 0 | I42: 0 | J42: 0
B43: Celkem za stavbu | F43: =SUM(F39:F42) -> 0 | G43: =SUM(G39:G42) -> 0 | H43: =SUM(H39:H42) -> 0 | I43: =SUM(I39:I42) -> 0 | J43: =IF(CelkemObjekty=0,"",F43/CelkemObjekty*100) -> 0

Sheet 300 3380300 KL
A1: POLOŽKOVÝ ROZPOČET
A2: Rozpočet | C2: 3380/300 | D2: Prodloužení vodovodního řadu | F2: JKSO | G2: 827.11.A2
A4: Objekt | F4: SKP
A5: 300 | C5: Prodloužení vodovodního řadu | F5: Měrná jednotka | G5: m
A6: Stavba | F6: Počet jednotek | G6: 0
A7: 3380 | C7: Lomnice n/P. Prodloužení sítí technické infrastruk | F7: Náklady na m.j. | G7: =IF(G6=0,,ROUND((F30+F32)/G6,1)) -> 0
A8: Projektant | C8: PVK Projekt s.r.o. | F8: Typ rozpočtu
A9: Zpracovatel projektu
A10: Objednatel | C10: Město Lomnice nad Popelkou
A11: Dodavatel | C11: . | F11: Zakázkové číslo
A12: Rozpočtoval | F12: Počet listů
A13: ROZPOČTOVÉ NÁKLADY
A14: Základní rozpočtové náklady
B15: HSV celkem | C15: ='300 3380300 Rek'!E13 -> 0
A16: Z | B16: PSV celkem | C16: ='300 3380300 Rek'!F13 -> 0
A17: R | B17: M práce celkem | C17: ='300 3380300 Rek'!H13 -> 0
A18: N | B18: M dodávky celkem | C18: ='300 3380300 Rek'!G13 -> 0
A19: ZRN celkem | C19: =SUM(C15:C18) -> 0
A21: HZS | C21: ='300 3380300 Rek'!I13 -> 0
A22: ZRN+HZS | C22: =C19+C21 -> 0
A23: ZRN+ost.náklady+HZS | C23: =C22+G23 -> 0
A24: Vypracoval | D24: Za zhotovitele | F24: Za objednatele
A25: Jméno : | D25: Jméno : | F25: Jméno :
A26: Datum : | D26: Datum : | F26: Datum :
A28: Podpis : | D28: Podpis: | F28: Podpis:
A30: Základ pro DPH | C30: 21 | D30: % | F30: =C23-F32 -> 0
A31: DPH | C31: =C30 -> 21 | D31: % | F31: =ROUND(PRODUCT(F30,C31/100),0) -> 0
A32: Základ pro DPH | C32: 0 | D32: % | F32: 0
A33: DPH | C33: =C32 -> 0 | D33: % | F33: =ROUND(PRODUCT(F32,C33/100),0) -> 0
A34: CENA ZA OBJEKT CELKEM | F34: =ROUND(SUM(F30:F33),0) -> 0
A36: Poznámka :

Sheet 300 3380300 Rek
A1: Stavba : | C1: 3380 Lomnice n/P. Prodloužení sítí technické infrastruk | G1: Rozpočet : | H1: 3380/300
A2: Objekt : | C2: 300 Prodloužení vodovodního řadu | G2: Prodloužení vodovodního řadu
A4: REKAPITULACE STAVEBNÍCH DÍLŮ
B6: Stavební díl | E6: HSV | F6: PSV | G6: Dodávka | H6: Montáž | I6: HZS
A7: ='300 3380300 Pol'!B7 -> 1 | B7: ='300 3380300 Pol'!C7 -> Zemní práce | E7: ='300 3380300 Pol'!BA156 -> 0 | F7: ='300 3380300 Pol'!BB156 -> 0 | G7: ='300 3380300 Pol'!BC156 -> 0 | H7: ='300 3380300 Pol'!BD156 -> 0 | I7: ='300 3380300 Pol'!BE156 -> 0
A8: ='300 3380300 Pol'!B157 -> 45 | B8: ='300 3380300 Pol'!C157 -> Podkladní a vedlejší konstrukce | E8: ='300 3380300 Pol'!BA167 -> 0 | F8: ='300 3380300 Pol'!BB167 -> 0 | G8: ='300 3380300 Pol'!BC167 -> 0 | H8: ='300 3380300 Pol'!BD167 -> 0 | I8: ='300 3380300 Pol'!BE167 -> 0
A9: ='300 3380300 Pol'!B168 -> 5 | B9: ='300 3380300 Pol'!C168 -> Komunikace | E9: ='300 3380300 Pol'!BA179 -> 0 | F9: ='300 3380300 Pol'!BB179 -> 0 | G9: ='300 3380300 Pol'!BC179 -> 0 | H9: ='300 3380300 Pol'!BD179 -> 0 | I9: ='300 3380300 Pol'!BE179 -> 0
A10: ='300 3380300 Pol'!B180 -> 8 | B10: ='300 3380300 Pol'!C180 -> Trubní vedení | E10: ='300 3380300 Pol'!BA638 -> 0 | F10: ='300 3380300 Pol'!BB638 -> 0 | G10: ='300 3380300 Pol'!BC638 -> 0 | H10: ='300 3380300 Pol'!BD638 -> 0 | I10: ='300 3380300 Pol'!BE638 -> 0
A11: ='300 3380300 Pol'!B639 -> 93 | B11: ='300 3380300 Pol'!C639 -> Dokončovací práce inženýrských staveb | E11: ='300 3380300 Pol'!BA704 -> 0 | F11: ='300 3380300 Pol'!BB704 -> 0 | G11: ='300 3380300 Pol'!BC704 -> 0 | H11: ='300 3380300 Pol'!BD704 -> 0 | I11: ='300 3380300 Pol'!BE704 -> 0
A12: ='300 3380300 Pol'!B705 -> 99 | B12: ='300 3380300 Pol'!C705 -> Staveništní přesun hmot | E12: ='300 3380300 Pol'!BA707 -> 0 | F12: ='300 3380300 Pol'!BB707 -> 0 | G12: ='300 3380300 Pol'!BC707 -> 0 | H12: ='300 3380300 Pol'!BD707 -> 0 | I12: ='300 3380300 Pol'!BE707 -> 0
B13: CELKEM OBJEKT | E13: =SUM(E7:E12) -> 0 | F13: =SUM(F7:F12) -> 0 | G13: =SUM(G7:G12) -> 0 | H13: =SUM(H7:H12) -> 0 | I13: =SUM(I7:I12) -> 0

Sheet 300 3380300 Pol
A1: Položkový rozpočet
A3: Stavba : | C3: 3380 Lomnice n/P. Prodloužení sítí technické infrastruk | E3: Rozpočet: | F3: ='300 3380300 Rek'!H1 -> 3380/300
A4: Objekt : | C4: 300 Prodloužení vodovodního řadu | E4: ='300 3380300 Rek'!G2 -> Prodloužení vodovodního řadu
A6: P.č. | B6: Číslo položky | C6: Název položky | D6: MJ | E6: množství | F6: cena / MJ | G6: celkem (Kč) | H6: Jednotková hmotnost | I6: Celková hmotnost | J6: Jednotková dem.hmot. | K6: Celková dem.hmot.
A7: Díl: | B7: 1 | C7: Zemní práce | O7: 1
A8: 1 | B8: 113107625R00 | C8: Odstranění podkladu nad 50 m2,kam.drcené tl.25 cm | D8: m2 | E8: 94.47 | G8: =E8*F8 -> 0 | H8: 0 | I8: =E8*H8 -> 0 | J8: -0.55 | K8: =E8*J8 -> -51.9585 | O8: 2 | AA8: 1 | AB8: 1 | AC8: 1 | AZ8: 1 | BA8: =IF(AZ8=1,G8,0) -> 0 | BB8: =IF(AZ8=2,G8,0) -> 0 | BC8: =IF(AZ8=3,G8,0) -> 0 | BD8: =IF(AZ8=4,G8,0) -> 0 | BE8: =IF(AZ8=5,G8,0) -> 0 | CA8: 1 | CB8: 1
C9: Řad TLT DN150 a PE D 90x8,2 mm: | E9: 0 | M9: Řad TLT DN150 a PE D 90x8,2 mm:
C10: Propoj do AŠ TLT DN80:7,20*0,80 | E10: 5.76 | M10: Propoj do AŠ TLT DN80:7,20*0,80
C11: Propoj do AŠ TLT DN100:(4,50+6,00)*0,80 | E11: 8.4 | M11: Propoj do AŠ TLT DN100:(4,50+6,00)*0,80
C12: Řad TLT DN150 :46,10*0,80 | E12: 36.88 | M12: Řad TLT DN150 :46,10*0,80
C13: Propoj na TLT DN150:10,00*0,80 | E13: 8 | M13: Propoj na TLT DN150:10,00*0,80
C14: Propoj do AŠ TLT DN150:10,00*0,80 | E14: 8 | M14: Propoj do AŠ TLT DN150:10,00*0,80
C15: Prodloužení řadu PE D 90x8,2 mm:18,70*0,80 | E15: 14.96 | M15: Prodloužení řadu PE D 90x8,2 mm:18,70*0,80
C16: AŠ:4,30*2,90 | E16: 12.47 | M16: AŠ:4,30*2,90
A17: 2 | B17: 113108415R00 | C17: Odstranění asfaltové vrstvy pl.nad 50 m2, tl.15 cm | D17: m2 | E17: 94.47 | G17: =E17*F17 -> 0 | H17: 0 | I17: =E17*H17 -> 0 | J17: -0.33 | K17: =E17*J17 -> -31.1751 | O17: 2 | AA17: 1 | AB17: 1 | AC17: 1 | AZ17: 1 | BA17: =IF(AZ17=1,G17,0) -> 0 | BB17: =IF(AZ17=2,G17,0) -> 0 | BC17: =IF(AZ17=3,G17,0) -> 0 | BD17: =IF(AZ17=4,G17,0) -> 0 | BE17: =IF(AZ17=5,G17,0) -> 0 | CA17: 1 | CB17: 1
C18: Řad TLT DN150 a PE D 90x8,2 mm: | E18: 0 | M18: Řad TLT DN150 a PE D 90x8,2 mm:
C19: Propoj do AŠ TLT DN80:7,20*0,80 | E19: 5.76 | M19: Propoj do AŠ TLT DN80:7,20*0,80
C20: Propoj do AŠ TLT DN100:(4,50+6,00)*0,80 | E20: 8.4 | M20: Propoj do AŠ TLT DN100:(4,50+6,00)*0,80
C21: Řad TLT DN150 :46,10*0,80 | E21: 36.88 | M21: Řad TLT DN150 :46,10*0,80
C22: Propoj na TLT DN150:10,00*0,80 | E22: 8 | M22: Propoj na TLT DN150:10,00*0,80
C23: Propoj do AŠ TLT DN150:10,00*0,80 | E23: 8 | M23: Propoj do AŠ TLT DN150:10,00*0,80
C24: Prodloužení řadu PE D 90x8,2 mm:18,70*0,80 | E24: 14.96 | M24: Prodloužení řadu PE D 90x8,2 mm:18,70*0,80
C25: AŠ:4,30*2,90 | E25: 12.47 | M25: AŠ:4,30*2,90
A26: 3 | B26: 130001101RRX | C26: Příplatek za ztížené hloubení v blízkosti vedení | D26: m3 | E26: 33.9947 | G26: =E26*F26 -> 0 | H26: 0 | I26: =E26*H26 -> 0 | J26: 0 | K26: =E26*J26 -> 0 | O26: 2 | AA26: 1 | AB26: 1 | AC26: 1 | AZ26: 1 | BA26: =IF(AZ26=1,G26,0) -> 0 | BB26: =IF(AZ26=2,G26,0) -> 0 | BC26: =IF(AZ26=3,G26,0) -> 0 | BD26: =IF(AZ26=4,G26,0) -> 0 | BE26: =IF(AZ26=5,G26,0) -> 0 | CA26: 1 | CB26: 1
C27: Včetně případných nutných dokopávem a ručního výkopu podél sousedících inženýrských sítí včetně vyvěšení a zajištění sítí. | L27: Včetně případných nutných dokopávem a ručního výkopu podél sousedících inženýrských sítí včetně vyvěšení a zajištění sítí. | O27: 3
C28: Součástí položky jsou i nutné ruční kopané sondy předepsané projektovou dokumentací pro upřesnění směrového a výškového umístění sousedních vedení inženýrských sítí. | L28: Součástí položky jsou i nutné ruční kopané sondy předepsané projektovou dokumentací pro upřesnění směrového a výškového umístění sousedních vedení inženýrských sítí. | O28: 3
C29: Řad TLT DN150 a PE D 90x8,2 mm: | E29: 0 | M29: Řad TLT DN150 a PE D 90x8,2 mm:
C30: Výkopy: | E30: 0 | M30: Výkopy:
C31: V hornině tř. 3 - 4 - 24%:141,6445*0,24 | E31: 33.9947 | M31: V hornině tř. 3 - 4 - 24%:141,6445*0,24
A32: 4 | B32: 132201212R00 | C32: Hloubení rýh š.do 200 cm hor.3 do 1000m3,STROJNĚ | D32: m3 | E32: 70.8222 | G32: =E32*F32 -> 0 | H32: 0 | I32: =E32*H32 -> 0 | J32: 0 | K32: =E32*J32 -> 0 | O32: 2 | AA32: 1 | AB32: 1 | AC32: 1 | AZ32: 1 | BA32: =IF(AZ32=1,G32,0) -> 0 | BB32: =IF(AZ32=2,G32,0) -> 0 | BC32: =IF(AZ32=3,G32,0) -> 0 | BD32: =IF(AZ32=4,G32,0) -> 0 | BE32: =IF(AZ32=5,G32,0) -> 0 | CA32: 1 | CB32: 1
C33: Položka obsahuje hloubení rýh traktorbagrem, naložení výkopku na dopravní prostředek pro svislé, nebo vodorovné přemístění, popř. přemístění výkopku do 3 m (po povrchu území), případné zajištění rypadel polštáři, udržování pracoviště a ochranu výkopiště proti stékání srážkové vody z okolního terénu i s jejím odvodněním, nebo odvedením, přesekání a odstranění kořenů ve výkopišti, odstranění napadávek, urovnání dna výkopu. | L33: Položka obsahuje hloubení rýh traktorbagrem, naložení výkopku na dopravní prostředek pro svislé, nebo vodorovné přemístění, popř. přemístění výkopku do 3 m (po povrchu území), případné zajištění rypadel polštáři, udržování pracoviště a ochranu výkopiště proti stékání srážkové vody z okolního terénu i s jejím odvodněním, nebo odvedením, přesekání a odstranění kořenů ve výkopišti, odstranění napadávek, urovnání dna výkopu. | O33: 3
C34: Řad TLT DN150 a PE D 90x8,2 mm: | E34: 0 | M34: Řad TLT DN150 a PE D 90x8,2 mm:
C35: Výkopy: | E35: 0 | M35: Výkopy:
C36: Začátek provozního součtu | E36: 0 | M36: Začátek provozního součtu
C37: Řady a propoje - Průměrná hloubka výkopů - 1,77 m: | E37: 0 | M37: Řady a propoje - Průměrná hloubka výkopů - 1,77 m:
C38: Propoj do AŠ TLT DN80:7,20*0,80*1,77 | E38: 10.1952 | M38: Propoj do AŠ TLT DN80:7,20*0,80*1,77
C39: Propoj do AŠ TLT DN100:(4,50+6,00)*0,80*1,77 | E39: 14.868 | M39: Propoj do AŠ TLT DN100:(4,50+6,00)*0,80*1,77
C40: Řad TLT DN150 :46,10*0,80*1,77 | E40: 65.2776 | M40: Řad TLT DN150 :46,10*0,80*1,77
C41: Propoj na TLT DN150:10,00*0,80*1,77 | E41: 14.16 | M41: Propoj na TLT DN150:10,00*0,80*1,77
C42: Propoj do AŠ TLT DN150:10,00*0,80*1,77 | E42: 14.16 | M42: Propoj do AŠ TLT DN150:10,00*0,80*1,77
C43: Prodloužení řadu PE D 90x8,2 mm:18,70*0,80*1,77 | E43: 26.4792 | M43: Prodloužení řadu PE D 90x8,2 mm:18,70*0,80*1,77
C44: AŠ:4,30*2,90*2,75 | E44: 34.2925 | M44: AŠ:4,30*2,90*2,75
C45: Odpočet objemu konstrukcí komunikací: | E45: 0 | M45: Odpočet objemu konstrukcí komunikací:
C46: Řady a propoje:-(7,20+4,50+6,00+46,10+10,00+10,00+18,70)*0,80*0,40 | E46: -32.8 | M46: Řady a propoje:-(7,20+4,50+6,00+46,10+10,00+10,00+18,70)*0,80*0,40
C47: AŠ:-4,30*2,90*0,40 | E47: -4.988 | M47: AŠ:-4,30*2,90*0,40
C48: Konec provozního součtu | E48: 141.6445 | M48: Konec provozního součtu
C49: V hornině tř. 3 - 50%:141,6445*0,5 | E49: 70.8222 | M49: V hornině tř. 3 - 50%:141,6445*0,5
A50: 5 | B50: 132201219R00 | C50: Přípl.za lepivost,hloubení rýh 200cm,hor.3,STROJNĚ | D50: m3 | E50: 35.4111 | G50: =E50*F50 -> 0 | H50: 0 | I50: =E50*H50 -> 0 | J50: 0 | K50: =E50*J50 -> 0 | O50: 2 | AA50: 1 | AB50: 1 | AC50: 1 | AZ50: 1 | BA50: =IF(AZ50=1,G50,0) -> 0 | BB50: =IF(AZ50=2,G50,0) -> 0 | BC50: =IF(AZ50=3,G50,0) -> 0 | BD50: =IF(AZ50=4,G50,0) -> 0 | BE50: =IF(AZ50=5,G50,0) -> 0 | CA50: 1 | CB50: 1
C51: Řad TLT DN150 a PE D 90x8,2 mm: | E51: 0 | M51: Řad TLT DN150 a PE D 90x8,2 mm:
C52: Výkopy: | E52: 0 | M52: Výkopy:
C53: V hornině tř. 3 - 50%:141,6445*0,5*0,5 | E53: 35.4111 | M53: V hornině tř. 3 - 50%:141,6445*0,5*0,5
A54: 6 | B54: 132301212R00 | C54: Hloubení rýh š.do 200 cm hor.4 do 1000 m3, STROJNĚ | D54: m3 | E54: 70.8222 | G54: =E54*F54 -> 0 | H54: 0 | I54: =E54*H54 -> 0 | J54: 0 | K54: =E54*J54 -> 0 | O54: 2 | AA54: 1 | AB54: 1 | AC54: 1 | AZ54: 1 | BA54: =IF(AZ54=1,G54,0) -> 0 | BB54: =IF(AZ54=2,G54,0) -> 0 | BC54: =IF(AZ54=3,G54,0) -> 0 | BD54: =IF(AZ54=4,G54,0) -> 0 | BE54: =IF(AZ54=5,G54,0) -> 0 | CA54: 1 | CB54: 1
C55: Položka obsahuje hloubení rýh traktorbagrem, naložení výkopku na dopravní prostředek pro svislé, nebo vodorovné přemístění, popř. přemístění výkopku do 3 m (po povrchu území), případné zajištění rypadel polštáři, udržování pracoviště a ochranu výkopiště proti stékání srážkové vody z okolního terénu i s jejím odvodněním, nebo odvedením, přesekání a odstranění kořenů ve výkopišti, odstranění napadávek, urovnání dna výkopu. | L55: Položka obsahuje hloubení rýh traktorbagrem, naložení výkopku na dopravní prostředek pro svislé, nebo vodorovné přemístění, popř. přemístění výkopku do 3 m (po povrchu území), případné zajištění rypadel polštáři, udržování pracoviště a ochranu výkopiště proti stékání srážkové vody z okolního terénu i s jejím odvodněním, nebo odvedením, přesekání a odstranění kořenů ve výkopišti, odstranění napadávek, urovnání dna výkopu. | O55: 3
C56: Řad TLT DN150 a PE D 90x8,2 mm: | E56: 0 | M56: Řad TLT DN150 a PE D 90x8,2 mm:
C57: Výkopy: | E57: 0 | M57: Výkopy:
C58: V hornině tř. 4 - 50%:141,6445*0,5 | E58: 70.8222 | M58: V hornině tř. 4 - 50%:141,6445*0,5
A59: 7 | B59: 132301219R00 | C59: Přípl.za lepivost,hloubení rýh 200cm,hor.4,STROJNĚ | D59: m3 | E59: 35.4111 | G59: =E59*F59 -> 0 | H59: 0 | I59: =E59*H59 -> 0 | J59: 0 | K59: =E59*J59 -> 0 | O59: 2 | AA59: 1 | AB59: 1 | AC59: 1 | AZ59: 1 | BA59: =IF(AZ59=1,G59,0) -> 0 | BB59: =IF(AZ59=2,G59,0) -> 0 | BC59: =IF(AZ59=3,G59,0) -> 0 | BD59: =IF(AZ59=4,G59,0) -> 0 | BE59: =IF(AZ59=5,G59,0) -> 0 | CA59: 1 | CB59: 1
C60: Řad TLT DN150 a PE D 90x8,2 mm: | E60: 0 | M60: Řad TLT DN150 a PE D 90x8,2 mm:
C61: Výkopy: | E61: 0 | M61: Výkopy:
C62: V hornině tř. 4 - 50%:141,6445*0,5*0,5 | E62: 35.4111 | M62: V hornině tř. 4 - 50%:141,6445*0,5*0,5
A63: 8 | B63: 151101101R00 | C63: Pažení a rozepření stěn rýh - příložné - hl.do 2 m | D63: m2 | E63: 386.5 | G63: =E63*F63 -> 0 | H63: 0.00099 | I63: =E63*H63 -> 0.382635 | J63: 0 | K63: =E63*J63 -> 0 | O63: 2 | AA63: 1 | AB63: 1 | AC63: 1 | AZ63: 1 | BA63: =IF(AZ63=1,G63,0) -> 0 | BB63: =IF(AZ63=2,G63,0) -> 0 | BC63: =IF(AZ63=3,G63,0) -> 0 | BD63: =IF(AZ63=4,G63,0) -> 0 | BE63: =IF(AZ63=5,G63,0) -> 0 | CA63: 1 | CB63: 1
C64: Řad TLT DN150 a PE D 90x8,2 mm: | E64: 0 | M64: Řad TLT DN150 a PE D 90x8,2 mm:
C65: Výkopy: | E65: 0 | M65: Výkopy:
C66: Řady a propoje - Průměrná hloubka výkopů - 1,77 m: | E66: 0 | M66: Řady a propoje - Průměrná hloubka výkopů - 1,77 m:
C67: Propoj do AŠ TLT DN80:7,20*1,77*2 | E67: 25.488 | M67: Propoj do AŠ TLT DN80:7,20*1,77*2
C68: Propoj do AŠ TLT DN100:(4,50+6,00)*1,77*2 | E68: 37.17 | M68: Propoj do AŠ TLT DN100:(4,50+6,00)*1,77*2
C69: Řad TLT DN150 :46,10*1,77*2 | E69: 163.194 | M69: Řad TLT DN150 :46,10*1,77*2
C70: Propoj na TLT DN150:10,00*1,77*2 | E70: 35.4 | M70: Propoj na TLT DN150:10,00*1,77*2
C71: Propoj do AŠ TLT DN150:10,00*1,77*2 | E71: 35.4 | M71: Propoj do AŠ TLT DN150:10,00*1,77*2
C72: Prodloužení řadu PE D 90x8,2 mm:18,70*1,77*2 | E72: 66.198 | M72: Prodloužení řadu PE D 90x8,2 mm:18,70*1,77*2
C73: AŠ:4,30*2,75*2 | E73: 23.65 | M73: AŠ:4,30*2,75*2
A74: 9 | B74: 151101111R00 | C74: Odstranění pažení stěn rýh - příložné - hl. do 2 m | D74: m2 | E74: 386.5 | G74: =E74*F74 -> 0 | H74: 0 | I74: =E74*H74 -> 0 | J74: 0 | K74: =E74*J74 -> 0 | O74: 2 | AA74: 1 | AB74: 1 | AC74: 1 | AZ74: 1 | BA74: =IF(AZ74=1,G74,0) -> 0 | BB74: =IF(AZ74=2,G74,0) -> 0 | BC74: =IF(AZ74=3,G74,0) -> 0 | BD74: =IF(AZ74=4,G74,0) -> 0 | BE74: =IF(AZ74=5,G74,0) -> 0 | CA74: 1 | CB74: 1
C75: Řad TLT DN150 a PE D 90x8,2 mm: | E75: 0 | M75: Řad TLT DN150 a PE D 90x8,2 mm:
C76: Výkopy: | E76: 0 | M76: Výkopy:
C77: Řady a propoje - Průměrná hloubka výkopů - 1,77 m: | E77: 0 | M77: Řady a propoje - Průměrná hloubka výkopů - 1,77 m:
C78: Propoj do AŠ TLT DN80:7,20*1,77*2 | E78: 25.488 | M78: Propoj do AŠ TLT DN80:7,20*1,77*2
C79: Propoj do AŠ TLT DN100:(4,50+6,00)*1,77*2 | E79: 37.17 | M79: Propoj do AŠ TLT DN100:(4,50+6,00)*1,77*2
C80: Řad TLT DN150 :46,10*1,77*2 | E80: 163.194 | M80: Řad TLT DN150 :46,10*1,77*2
C81: Propoj na TLT DN150:10,00*1,77*2 | E81: 35.4 | M81: Propoj na TLT DN150:10,00*1,77*2
C82: Propoj do AŠ TLT DN150:10,00*1,77*2 | E82: 35.4 | M82: Propoj do AŠ TLT DN150:10,00*1,77*2
C83: Prodloužení řadu PE D 90x8,2 mm:18,70*1,77*2 | E83: 66.198 | M83: Prodloužení řadu PE D 90x8,2 mm:18,70*1,77*2
C84: AŠ:4,30*2,75*2 | E84: 23.65 | M84: AŠ:4,30*2,75*2
A85: 10 | B85: 162701105RSZ | C85: Vodorovné přemístění výkopku z hor.1-7 na skládku zhotovitele | D85: m3 | E85: 141.6445 | G85: =E85*F85 -> 0 | H85: 0 | I85: =E85*H85 -> 0 | J85: 0 | K85: =E85*J85 -> 0 | O85: 2 | AA85: 1 | AB85: 1 | AC85: 1 | AZ85: 1 | BA85: =IF(AZ85=1,G85,0) -> 0 | BB85: =IF(AZ85=2,G85,0) -> 0 | BC85: =IF(AZ85=3,G85,0) -> 0 | BD85: =IF(AZ85=4,G85,0) -> 0 | BE85: =IF(AZ85=5,G85,0) -> 0 | CA85: 1 | CB85: 1
C86: Řad TLT DN150 a PE D 90x8,2 mm: | E86: 0 | M86: Řad TLT DN150 a PE D 90x8,2 mm:
C87: Výkopy: | E87: 0 | M87: Výkopy:
C88: V hornině tř. 3 - 4:141,6445 | E88: 141.6445 | M88: V hornině tř. 3 - 4:141,6445
A89: 11 | B89: 174101101R00 | C89: Zásyp jam, rýh, šachet se zhutněním | D89: m3 | E89: 80.1354 | G89: =E89*F89 -> 0 | H89: 0 | I89: =E89*H89 -> 0 | J89: 0 | K89: =E89*J89 -> 0 | O89: 2 | AA89: 1 | AB89: 1 | AC89: 1 | AZ89: 1 | BA89: =IF(AZ89=1,G89,0) -> 0 | BB89: =IF(AZ89=2,G89,0) -> 0 | BC89: =IF(AZ89=3,G89,0) -> 0 | BD89: =IF(AZ89=4,G89,0) -> 0 | BE89: =IF(AZ89=5,G89,0) -> 0 | CA89: 1 | CB89: 1
C90: Položka obsahuje strojní přemístění materiálu pro zásyp ze vzdálenosti do 10 m od okraje zásypu. | L90: Položka obsahuje strojní přemístění materiálu pro zásyp ze vzdálenosti do 10 m od okraje zásypu. | O90: 3
O91: 3
C92: Zásypy ŠD fr. 0-63 mm:80,1354 | E92: 80.1354 | M92: Zásypy ŠD fr. 0-63 mm:80,1354
C93: Začátek provozního součtu | E93: 0 | M93: Začátek provozního součtu
C94: Řad TLT DN150 a PE D 90x8,2 mm: | E94: 0 | M94: Řad TLT DN150 a PE D 90x8,2 mm:
C95: Výkopy: | E95: 0 | M95: Výkopy:
C96: V hornině tř. 3 - 4:141,6445 | E96: 141.6445 | M96: V hornině tř. 3 - 4:141,6445
C97: Odpočet lože, potrubí a obsypů: | E97: 0 | M97: Odpočet lože, potrubí a obsypů:
C98: Řad TLT DN150 a PE D 90x8,2 mm: | E98: 0 | M98: Řad TLT DN150 a PE D 90x8,2 mm:
C99: Propoj do AŠ TLT DN80:-7,20*0,80*(0,15+0,08+0,30) | E99: -3.0528 | M99: Propoj do AŠ TLT DN80:-7,20*0,80*(0,15+0,08+0,30)
C100: Propoj do AŠ TLT DN100:-(4,50+6,00)*0,80*(0,15+0,10+0,30) | E100: -4.62 | M100: Propoj do AŠ TLT DN100:-(4,50+6,00)*0,80*(0,15+0,10+0,30)
C101: Řad TLT DN150 :-46,10*0,80*(0,15+0,15+0,30) | E101: -22.128 | M101: Řad TLT DN150 :-46,10*0,80*(0,15+0,15+0,30)
C102: Propoj na TLT DN150:-10,00*0,80*(0,15+0,15+0,30) | E102: -4.8 | M102: Propoj na TLT DN150:-10,00*0,80*(0,15+0,15+0,30)
C103: Propoj do AŠ TLT DN150:-10,00*0,80*(0,15+0,15+0,30) | E103: -4.8 | M103: Propoj do AŠ TLT DN150:-10,00*0,80*(0,15+0,15+0,30)
C104: Prodloužení řadu PE D 90x8,2 mm:-18,70*0,80*(0,15+0,09+0,30) | E104: -8.0784 | M104: Prodloužení řadu PE D 90x8,2 mm:-18,70*0,80*(0,15+0,09+0,30)
C105: AŠ:-4,30*2,90*0,15-3,30*1,90*1,92-1,10*1,10*0,10 | E105: -14.0299 | M105: AŠ:-4,30*2,90*0,15-3,30*1,90*1,92-1,10*1,10*0,10
C106: Konec provozního součtu | E106: 80.1354 | M106: Konec provozního součtu
A107: 12 | B107: 175101101R00 | C107: Obsyp potrubí bez prohození sypaniny | D107: m3 | E107: 33.7735 | G107: =E107*F107 -> 0 | H107: 0 | I107: =E107*H107 -> 0 | J107: 0 | K107: =E107*J107 -> 0 | O107: 2 | AA107: 1 | AB107: 1 | AC107: 1 | AZ107: 1 | BA107: =IF(AZ107=1,G107,0) -> 0 | BB107: =IF(AZ107=2,G107,0) -> 0 | BC107: =IF(AZ107=3,G107,0) -> 0 | BD107: =IF(AZ107=4,G107,0) -> 0 | BE107: =IF(AZ107=5,G107,0) -> 0 | CA107: 1 | CB107: 1
C108: Řad TLT DN150 a PE D 90x8,2 mm: | E108: 0 | M108: Řad TLT DN150 a PE D 90x8,2 mm:
C109: Propoj do AŠ TLT DN80:7,20*(0,80*(0,08+0,30)-0,04^2*Pi) | E109: 2.1526 | M109: Propoj do AŠ TLT DN80:7,20*(0,80*(0,08+0,30)-0,04^2*Pi)
C110: Propoj do AŠ TLT DN100:(4,50+6,00)*(0,80*(0,10+0,30)-0,05^2*Pi) | E110: 3.2775 | M110: Propoj do AŠ TLT DN100:(4,50+6,00)*(0,80*(0,10+0,30)-0,05^2*Pi)
C111: Řad TLT DN150 :46,10*(0,80*(0,15+0,30)-0,075^2*Pi) | E111: 15.7813 | M111: Řad TLT DN150 :46,10*(0,80*(0,15+0,30)-0,075^2*Pi)
C112: Propoj na TLT DN150:10,00*(0,80*(0,15+0,30)-0,075^2*Pi) | E112: 3.4233 | M112: Propoj na TLT DN150:10,00*(0,80*(0,15+0,30)-0,075^2*Pi)
C113: Propoj do AŠ TLT DN150:10,00*(0,80*(0,15+0,30)-0,075^2*Pi) | E113: 3.4233 | M113: Propoj do AŠ TLT DN150:10,00*(0,80*(0,15+0,30)-0,075^2*Pi)
C114: Prodloužení řadu PE D 90x8,2 mm:18,70*(0,80*(0,09+0,30)-0,045^2*Pi) | E114: 5.7154 | M114: Prodloužení řadu PE D 90x8,2 mm:18,70*(0,80*(0,09+0,30)-0,045^2*Pi)
A115: 13 | B115: 199000002R00 | C115: Poplatek za skládku horniny 1- 7 č. dle katal. odpadů 17 05 04 | D115: m3 | E115: 141.6445 | G115: =E115*F115 -> 0 | H115: 0 | I115: =E115*H115 -> 0 | J115: 0 | K115: =E115*J115 -> 0 | O115: 2 | AA115: 1 | AB115: 1 | AC115: 1 | AZ115: 1 | BA115: =IF(AZ115=1,G115,0) -> 0 | BB115: =IF(AZ115=2,G115,0) -> 0 | BC115: =IF(AZ115=3,G115,0) -> 0 | BD115: =IF(AZ115=4,G115,0) -> 0 | BE115: =IF(AZ115=5,G115,0) -> 0 | CA115: 1 | CB115: 1
C116: Řad TLT DN150 a PE D 90x8,2 mm: | E116: 0 | M116: Řad TLT DN150 a PE D 90x8,2 mm:
C117: Výkopy: | E117: 0 | M117: Výkopy:
C118: V hornině tř. 3 - 4:141,6445 | E118: 141.6445 | M118: V hornině tř. 3 - 4:141,6445
A119: 14 | B119: 919735113R00 | C119: Řezání stávajícího živičného krytu tl. 10 - 15 cm | D119: m | E119: 224.2 | G119: =E119*F119 -> 0 | H119: 0 | I119: =E119*H119 -> 0 | J119: 0 | K119: =E119*J119 -> 0 | O119: 2 | AA119: 1 | AB119: 1 | AC119: 1 | AZ119: 1 | BA119: =IF(AZ119=1,G119,0) -> 0 | BB119: =IF(AZ119=2,G119,0) -> 0 | BC119: =IF(AZ119=3,G119,0) -> 0 | BD119: =IF(AZ119=4,G119,0) -> 0 | BE119: =IF(AZ119=5,G119,0) -> 0 | CA119: 1 | CB119: 1
C120: Řad TLT DN150 a PE D 90x8,2 mm: | E120: 0 | M120: Řad TLT DN150 a PE D 90x8,2 mm:
C121: Propoj do AŠ TLT DN80:7,20*2+0,80 | E121: 15.2 | M121: Propoj do AŠ TLT DN80:7,20*2+0,80
C122: Propoj do AŠ TLT DN100:(4,50+6,00)*2+0,80*2 | E122: 22.6 | M122: Propoj do AŠ TLT DN100:(4,50+6,00)*2+0,80*2
C123: Řad TLT DN150 :46,10*2 | E123: 92.2 | M123: Řad TLT DN150 :46,10*2
C124: Propoj na TLT DN150:10,00*2+0,80 | E124: 20.8 | M124: Propoj na TLT DN150:10,00*2+0,80
C125: Propoj do AŠ TLT DN150:10,00*2+0,80 | E125: 20.8 | M125: Propoj do AŠ TLT DN150:10,00*2+0,80
C126: AŠ:(4,30+2,90)*2 | E126: 14.4 | M126: AŠ:(4,30+2,90)*2
C127: Prodloužení řadu PE D 90x8,2 mm:18,70*2+0,80 | E127: 38.2 | M127: Prodloužení řadu PE D 90x8,2 mm:18,70*2+0,80
A128: 15 | B128: 979082113RSZ | C128: Vodorovná doprava suti po suchu na skládku zhotovitele | D128: t | E128: 83.1336 | G128: =E128*F128 -> 0 | H128: 0 | I128: =E128*H128 -> 0 | J128: 0 | K128: =E128*J128 -> 0 | O128: 2 | AA128: 1 | AB128: 1 | AC128: 1 | AZ128: 1 | BA128: =IF(AZ128=1,G128,0) -> 0 | BB128: =IF(AZ128=2,G128,0) -> 0 | BC128: =IF(AZ128=3,G128,0) -> 0 | BD128: =IF(AZ128=4,G128,0) -> 0 | BE128: =IF(AZ128=5,G128,0) -> 0 | CA128: 1 | CB128: 1
A129: 16 | B129: 979089001R00 | C129: Poplatek za skládku stavební suti štěrky z komunikací, skupina odpadu 010408 | D129: t | E129: 51.9585 | G129: =E129*F129 -> 0 | H129: 0 | I129: =E129*H129 -> 0 | J129: 0 | K129: =E129*J129 -> 0 | O129: 2 | AA129: 1 | AB129: 1 | AC129: 1 | AZ129: 1 | BA129: =IF(AZ129=1,G129,0) -> 0 | BB129: =IF(AZ129=2,G129,0) -> 0 | BC129: =IF(AZ129=3,G129,0) -> 0 | BD129: =IF(AZ129=4,G129,0) -> 0 | BE129: =IF(AZ129=5,G129,0) -> 0 | CA129: 1 | CB129: 1
A130: 17 | B130: 979999995R00 | C130: Poplatek za reciklaci asfaltu, kusovost do 1600cm2 skupina 170302 | D130: t | E130: 31.1751 | G130: =E130*F130 -> 0 | H130: 0 | I130: =E130*H130 -> 0 | J130: 0 | K130: =E130*J130 -> 0 | O130: 2 | AA130: 1 | AB130: 1 | AC130: 1 | AZ130: 1 | BA130: =IF(AZ130=1,G130,0) -> 0 | BB130: =IF(AZ130=2,G130,0) -> 0 | BC130: =IF(AZ130=3,G130,0) -> 0 | BD130: =IF(AZ130=4,G130,0) -> 0 | BE130: =IF(AZ130=5,G130,0) -> 0 | CA130: 1 | CB130: 1
C131: Položka je určena pro suť o velikosti kusu do 30x30 cm (technologický materiál určený k recyklaci). | L131: Položka je určena pro suť o velikosti kusu do 30x30 cm (technologický materiál určený k recyklaci). | O131: 3
A132: 18 | B132: 58337308.R | C132: Štěrkopísek frakce 0-2 tř.B | D132: t | E132: 67.3015 | G132: =E132*F132 -> 0 | H132: 1 | I132: =E132*H132 -> 67.3015 | K132: =E132*J132 -> 0 | O132: 2 | AA132: 3 | AB132: 1 | AC132: 58337308.R | AZ132: 1 | BA132: =IF(AZ132=1,G132,0) -> 0 | BB132: =IF(AZ132=2,G132,0) -> 0 | BC132: =IF(AZ132=3,G132,0) -> 0 | BD132: =IF(AZ132=4,G132,0) -> 0 | BE132: =IF(AZ132=5,G132,0) -> 0 | CA132: 3 | CB132: 1
C133: Řad TLT DN150 a PE D 90x8,2 mm: | E133: 0 | M133: Řad TLT DN150 a PE D 90x8,2 mm:
C134: Propoj do AŠ TLT DN80:7,20*(0,80*(0,08+0,30)-0,04^2*Pi)*1,973*1,01 | E134: 4.2896 | M134: Propoj do AŠ TLT DN80:7,20*(0,80*(0,08+0,30)-0,04^2*Pi)*1,973*1,01
C135: Propoj do AŠ TLT DN100:(4,50+6,00)*(0,80*(0,10+0,30)-0,05^2*Pi)*1,973*1,01 | E135: 6.5312 | M135: Propoj do AŠ TLT DN100:(4,50+6,00)*(0,80*(0,10+0,30)-0,05^2*Pi)*1,973*1,01
C136: Řad TLT DN150 :46,10*(0,80*(0,15+0,30)-0,075^2*Pi)*1,973*1,01 | E136: 31.448 | M136: Řad TLT DN150 :46,10*(0,80*(0,15+0,30)-0,075^2*Pi)*1,973*1,01
C137: Propoj na TLT DN150:10,00*(0,80*(0,15+0,30)-0,075^2*Pi)*1,973*1,01 | E137: 6.8217 | M137: Propoj na TLT DN150:10,00*(0,80*(0,15+0,30)-0,075^2*Pi)*1,973*1,01
C138: Propoj do AŠ TLT DN150:10,00*(0,80*(0,15+0,30)-0,075^2*Pi)*1,973*1,01 | E138: 6.8217 | M138: Propoj do AŠ TLT DN150:10,00*(0,80*(0,15+0,30)-0,075^2*Pi)*1,973*1,01
C139: Prodloužení řadu PE D 90x8,2 mm:18,70*(0,80*(0,09+0,30)-0,045^2*Pi)*1,973*1,01 | E139: 11.3893 | M139: Prodloužení řadu PE D 90x8,2 mm:18,70*(0,80*(0,09+0,30)-0,045^2*Pi)*1,973*1,01
A140: 19 | B140: 58344197R | C140: Štěrkodrtě frakce 0-63 A | D140: t | E140: 151.5945 | G140: =E140*F140 -> 0 | H140: 1 | I140: =E140*H140 -> 151.5945 | K140: =E140*J140 -> 0 | O140: 2 | AA140: 3 | AB140: 1 | AC140: 58344197R | AZ140: 1 | BA140: =IF(AZ140=1,G140,0) -> 0 | BB140: =IF(AZ140=2,G140,0) -> 0 | BC140: =IF(AZ140=3,G140,0) -> 0 | BD140: =IF(AZ140=4,G140,0) -> 0 | BE140: =IF(AZ140=5,G140,0) -> 0 | CA140: 3 | CB140: 1
C141: Zásypy ŠD fr. 0-63 mm:80,1354*1,873*1,01 | E141: 151.5945 | M141: Zásypy ŠD fr. 0-63 mm:80,1354*1,873*1,01
C142: Začátek provozního součtu | E142: 0 | M142: Začátek provozního součtu
C143: Řad TLT DN150 a PE D 90x8,2 mm: | E143: 0 | M143: Řad TLT DN150 a PE D 90x8,2 mm:
C144: Výkopy: | E144: 0 | M144: Výkopy:
C145: V hornině tř. 3 - 4:141,6445 | E145: 141.6445 | M145: V hornině tř. 3 - 4:141,6445
C146: Odpočet lože, potrubí a obsypů: | E146: 0 | M146: Odpočet lože, potrubí a obsypů:
C147: Řad TLT DN150 a PE D 90x8,2 mm: | E147: 0 | M147: Řad TLT DN150 a PE D 90x8,2 mm:
C148: Propoj do AŠ TLT DN80:-7,20*0,80*(0,15+0,08+0,30) | E148: -3.0528 | M148: Propoj do AŠ TLT DN80:-7,20*0,80*(0,15+0,08+0,30)
C149: Propoj do AŠ TLT DN100:-(4,50+6,00)*0,80*(0,15+0,10+0,30) | E149: -4.62 | M149: Propoj do AŠ TLT DN100:-(4,50+6,00)*0,80*(0,15+0,10+0,30)
C150: Řad TLT DN150 :-46,10*0,80*(0,15+0,15+0,30) | E150: -22.128 | M150: Řad TLT DN150 :-46,10*0,80*(0,15+0,15+0,30)
C151: Propoj na TLT DN150:-10,00*0,80*(0,15+0,15+0,30) | E151: -4.8 | M151: Propoj na TLT DN150:-10,00*0,80*(0,15+0,15+0,30)
C152: Propoj do AŠ TLT DN150:-10,00*0,80*(0,15+0,15+0,30) | E152: -4.8 | M152: Propoj do AŠ TLT DN150:-10,00*0,80*(0,15+0,15+0,30)
C153: Prodloužení řadu PE D 90x8,2 mm:-18,70*0,80*(0,15+0,09+0,30) | E153: -8.0784 | M153: Prodloužení řadu PE D 90x8,2 mm:-18,70*0,80*(0,15+0,09+0,30)
C154: AŠ:-4,30*2,90*0,15-3,30*1,90*1,92-1,10*1,10*0,10 | E154: -14.0299 | M154: AŠ:-4,30*2,90*0,15-3,30*1,90*1,92-1,10*1,10*0,10
C155: Konec provozního součtu | E155: 80.1354 | M155: Konec provozního součtu
B156: Celkem za | C156: 1 Zemní práce | G156: =SUM(G7:G155) -> 0 | I156: =SUM(I7:I155) -> 219.278635 | K156: =SUM(K7:K155) -> -83.1336 | O156: 4 | BA156: =SUM(BA7:BA155) -> 0 | BB156: =SUM(BB7:BB155) -> 0 | BC156: =SUM(BC7:BC155) -> 0 | BD156: =SUM(BD7:BD155) -> 0 | BE156: =SUM(BE7:BE155) -> 0
A157: Díl: | B157: 45 | C157: Podkladní a vedlejší konstrukce | O157: 1
A158: 20 | B158: 451572111R00 | C158: Lože pod potrubí z kameniva těženého 0 - 4 mm | D158: m3 | E158: 12.3 | G158: =E158*F158 -> 0 | H158: 0.43051 | I158: =E158*H158 -> 5.295273 | J158: 0 | K158: =E158*J158 -> 0 | O158: 2 | AA158: 1 | AB158: 1 | AC158: 1 | AZ158: 1 | BA158: =IF(AZ158=1,G158,0) -> 0 | BB158: =IF(AZ158=2,G158,0) -> 0 | BC158: =IF(AZ158=3,G158,0) -> 0 | BD158: =IF(AZ158=4,G158,0) -> 0 | BE158: =IF(AZ158=5,G158,0) -> 0 | CA158: 1 | CB158: 1
C159: Řad TLT DN150 a PE D 90x8,2 mm: | E159: 0 | M159: Řad TLT DN150 a PE D 90x8,2 mm:
C160: Propoj do AŠ TLT DN80:7,20*0,80*0,15 | E160: 0.864 | M160: Propoj do AŠ TLT DN80:7,20*0,80*0,15
C161: Propoj do AŠ TLT DN100:(4,50+6,00)*0,80*0,15 | E161: 1.26 | M161: Propoj do AŠ TLT DN100:(4,50+6,00)*0,80*0,15
C162: Řad TLT DN150 :46,10*0,80*0,15 | E162: 5.532 | M162: Řad TLT DN150 :46,10*0,80*0,15
C163: Propoj na TLT DN150:10,00*0,80*0,15 | E163: 1.2 | M163: Propoj na TLT DN150:10,00*0,80*0,15
C164: Propoj do AŠ TLT DN150:10,00*0,80*0,15 | E164: 1.2 | M164: Propoj do AŠ TLT DN150:10,00*0,80*0,15
C165: Prodloužení řadu PE D 90x8,2 mm:18,70*0,80*0,15 | E165: 2.244 | M165: Prodloužení řadu PE D 90x8,2 mm:18,70*0,80*0,15
A166: 21 | B166: 452313141R00 | C166: Bloky pro potrubí z betonu C 16/20 vč. bednění | D166: m3 | E166: 1.658 | G166: =E166*F166 -> 0 | H166: 2.5 | I166: =E166*H166 -> 4.145 | J166: 0 | K166: =E166*J166 -> 0 | O166: 2 | AA166: 1 | AB166: 1 | AC166: 1 | AZ166: 1 | BA166: =IF(AZ166=1,G166,0) -> 0 | BB166: =IF(AZ166=2,G166,0) -> 0 | BC166: =IF(AZ166=3,G166,0) -> 0 | BD166: =IF(AZ166=4,G166,0) -> 0 | BE166: =IF(AZ166=5,G166,0) -> 0 | CA166: 1 | CB166: 1
B167: Celkem za | C167: 45 Podkladní a vedlejší konstrukce | G167: =SUM(G157:G166) -> 0 | I167: =SUM(I157:I166) -> 9.440273 | K167: =SUM(K157:K166) -> 0 | O167: 4 | BA167: =SUM(BA157:BA166) -> 0 | BB167: =SUM(BB157:BB166) -> 0 | BC167: =SUM(BC157:BC166) -> 0 | BD167: =SUM(BD157:BD166) -> 0 | BE167: =SUM(BE157:BE166) -> 0
A168: Díl: | B168: 5 | C168: Komunikace | O168: 1
A169: 22 | B169: 566903111R00 | C169: Vyspravení podkladu po překopech kam.hrubě drceným | D169: t | E169: 69.2785 | G169: =E169*F169 -> 0 | H169: 1.1 | I169: =E169*H169 -> 76.20635 | J169: 0 | K169: =E169*J169 -> 0 | O169: 2 | AA169: 1 | AB169: 1 | AC169: 1 | AZ169: 1 | BA169: =IF(AZ169=1,G169,0) -> 0 | BB169: =IF(AZ169=2,G169,0) -> 0 | BC169: =IF(AZ169=3,G169,0) -> 0 | BD169: =IF(AZ169=4,G169,0) -> 0 | BE169: =IF(AZ169=5,G169,0) -> 0 | CA169: 1 | CB169: 1
C170: Řad TLT DN150 a PE D 90x8,2 mm: | E170: 0 | M170: Řad TLT DN150 a PE D 90x8,2 mm:
C171: Propoj do AŠ TLT DN80:7,20*0,80*0,40*1,873 | E171: 4.3154 | M171: Propoj do AŠ TLT DN80:7,20*0,80*0,40*1,873
C172: Propoj do AŠ TLT DN100:(4,50+6,00)*0,80*0,40*1,873 | E172: 6.2933 | M172: Propoj do AŠ TLT DN100:(4,50+6,00)*0,80*0,40*1,873
C173: Řad TLT DN150 :46,10*0,80*0,40*1,873 | E173: 27.6305 | M173: Řad TLT DN150 :46,10*0,80*0,40*1,873
C174: Propoj na TLT DN150:10,00*0,80*0,40*1,873 | E174: 5.9936 | M174: Propoj na TLT DN150:10,00*0,80*0,40*1,873
C175: Propoj do AŠ TLT DN150:10,00*0,80*0,40*1,873 | E175: 5.9936 | M175: Propoj do AŠ TLT DN150:10,00*0,80*0,40*1,873
C176: Prodloužení řadu PE D 90x8,2 mm:18,70*0,80*0,40*1,873 | E176: 11.208 | M176: Prodloužení řadu PE D 90x8,2 mm:18,70*0,80*0,40*1,873
C177: AŠ:4,30*2,90*0,40*1,873 | E177: 9.3425 | M177: AŠ:4,30*2,90*0,40*1,873
C178: Odpočet podílu panelové plochy parkoviště (manipulace s panely počítána v SO320):-5,00*0,80*0,20*1,873 | E178: -1.4984 | M178: Odpočet podílu panelové plochy parkoviště (manipulace s panely počítána v SO320):-5,00*0,80*0,20*1,873
B179: Celkem za | C179: 5 Komunikace | G179: =SUM(G168:G178) -> 0 | I179: =SUM(I168:I178) -> 76.20635 | K179: =SUM(K168:K178) -> 0 | O179: 4 | BA179: =SUM(BA168:BA178) -> 0 | BB179: =SUM(BB168:BB178) -> 0 | BC179: =SUM(BC168:BC178) -> 0 | BD179: =SUM(BD168:BD178) -> 0 | BE179: =SUM(BE168:BE178) -> 0
A180: Díl: | B180: 8 | C180: Trubní vedení | O180: 1
A181: 23 | B181: 850245121R00 | C181: Výřez nebo výsek na potrubí litinovém DN 80 | D181: kus | E181: 1 | G181: =E181*F181 -> 0 | H181: 0 | I181: =E181*H181 -> 0 | J181: 0 | K181: =E181*J181 -> 0 | O181: 2 | AA181: 1 | AB181: 1 | AC181: 1 | AZ181: 1 | BA181: =IF(AZ181=1,G181,0) -> 0 | BB181: =IF(AZ181=2,G181,0) -> 0 | BC181: =IF(AZ181=3,G181,0) -> 0 | BD181: =IF(AZ181=4,G181,0) -> 0 | BE181: =IF(AZ181=5,G181,0) -> 0 | CA181: 1 | CB181: 1
C182: Položky výřezu nebo výseku na potrubí z trub litinových tlakových jsou určeny pro dva řezy nebo seky prováděné na potrubí dodatečně. V položkách jsou zakalkulovány náklady na | L182: Položky výřezu nebo výseku na potrubí z trub litinových tlakových jsou určeny pro dva řezy nebo seky prováděné na potrubí dodatečně. V položkách jsou zakalkulovány náklady na | O182: 3
C183: - ohlášení uzavírání vody | L183: - ohlášení uzavírání vody | O183: 3
C184: - uzavření a otevření šoupat | L184: - uzavření a otevření šoupat | O184: 3
C185: - vypuštění a napuštění vody | L185: - vypuštění a napuštění vody | O185: 3
C186: - odvzdušnění potrubí | L186: - odvzdušnění potrubí | O186: 3
C187: - strojní nebo ruční výřez potrubí | L187: - strojní nebo ruční výřez potrubí | O187: 3
C188: - nutné úpravy výkopu v prostoru provádění | L188: - nutné úpravy výkopu v prostoru provádění | O188: 3
C189: - montáž tvarovky | L189: - montáž tvarovky | O189: 3
C190: Řad TLT DN150 a PE D 90x8,2 mm: | E190: 0 | M190: Řad TLT DN150 a PE D 90x8,2 mm:
C191: Výřez na TLT DN80:1 | E191: 1 | M191: Výřez na TLT DN80:1
A192: 24 | B192: 850265121R00 | C192: Výřez nebo výsek na potrubí litinovém DN 100 | D192: kus | E192: 2 | G192: =E192*F192 -> 0 | H192: 0 | I192: =E192*H192 -> 0 | J192: 0 | K192: =E192*J192 -> 0 | O192: 2 | AA192: 1 | AB192: 1 | AC192: 1 | AZ192: 1 | BA192: =IF(AZ192=1,G192,0) -> 0 | BB192: =IF(AZ192=2,G192,0) -> 0 | BC192: =IF(AZ192=3,G192,0) -> 0 | BD192: =IF(AZ192=4,G192,0) -> 0 | BE192: =IF(AZ192=5,G192,0) -> 0 | CA192: 1 | CB192: 1
C193: Položky výřezu nebo výseku na potrubí z trub litinových tlakových jsou určeny pro dva řezy nebo seky prováděné na potrubí dodatečně. V položkách jsou zakalkulovány náklady na | L193: Položky výřezu nebo výseku na potrubí z trub litinových tlakových jsou určeny pro dva řezy nebo seky prováděné na potrubí dodatečně. V položkách jsou zakalkulovány náklady na | O193: 3
C194: - ohlášení uzavírání vody | L194: - ohlášení uzavírání vody | O194: 3
C195: - uzavření a otevření šoupat | L195: - uzavření a otevření šoupat | O195: 3
C196: - vypuštění a napuštění vody | L196: - vypuštění a napuštění vody | O196: 3
C197: - odvzdušnění potrubí | L197: - odvzdušnění potrubí | O197: 3
C198: - strojní nebo ruční výřez potrubí | L198: - strojní nebo ruční výřez potrubí | O198: 3
C199: - nutné úpravy výkopu v prostoru provádění | L199: - nutné úpravy výkopu v prostoru provádění | O199: 3
C200: - montáž tvarovky | L200: - montáž tvarovky | O200: 3
C201: Řad TLT DN150 a PE D 90x8,2 mm: | E201: 0 | M201: Řad TLT DN150 a PE D 90x8,2 mm:
C202: Výřez na TLT DN100:2 | E202: 2 | M202: Výřez na TLT DN100:2
... 505 more rows

Sheet 310 3380310 KL
A1: POLOŽKOVÝ ROZPOČET
A2: Rozpočet | C2: 3380/310 | D2: Prodloužení splaškové kanalizace | F2: JKSO | G2: 827.21.A3
A4: Objekt | F4: SKP
A5: 310 | C5: Prodloužení splaškové kanalizace | F5: Měrná jednotka | G5: m
A6: Stavba | F6: Počet jednotek | G6: 0
A7: 3380 | C7: Lomnice n/P. Prodloužení sítí technické infrastruk | F7: Náklady na m.j. | G7: =IF(G6=0,,ROUND((F30+F32)/G6,1)) -> 0
A8: Projektant | C8: PVK Projekt s.r.o. | F8: Typ rozpočtu
A9: Zpracovatel projektu
A10: Objednatel | C10: Město Lomnice nad Popelkou
A11: Dodavatel | C11: . | F11: Zakázkové číslo
A12: Rozpočtoval | F12: Počet listů
A13: ROZPOČTOVÉ NÁKLADY
A14: Základní rozpočtové náklady
B15: HSV celkem | C15: ='310 3380310 Rek'!E13 -> 0
A16: Z | B16: PSV celkem | C16: ='310 3380310 Rek'!F13 -> 0
A17: R | B17: M práce celkem | C17: ='310 3380310 Rek'!H13 -> 0
A18: N | B18: M dodávky celkem | C18: ='310 3380310 Rek'!G13 -> 0
A19: ZRN celkem | C19: =SUM(C15:C18) -> 0
A21: HZS | C21: ='310 3380310 Rek'!I13 -> 0
A22: ZRN+HZS | C22: =C19+C21 -> 0
A23: ZRN+ost.náklady+HZS | C23: =C22+G23 -> 0
A24: Vypracoval | D24: Za zhotovitele | F24: Za objednatele
A25: Jméno : | D25: Jméno : | F25: Jméno :
A26: Datum : | D26: Datum : | F26: Datum :
A28: Podpis : | D28: Podpis: | F28: Podpis:
A30: Základ pro DPH | C30: 21 | D30: % | F30: =C23-F32 -> 0
A31: DPH | C31: =C30 -> 21 | D31: % | F31: =ROUND(PRODUCT(F30,C31/100),0) -> 0
A32: Základ pro DPH | C32: 0 | D32: % | F32: 0
A33: DPH | C33: =C32 -> 0 | D33: % | F33: =ROUND(PRODUCT(F32,C33/100),0) -> 0
A34: CENA ZA OBJEKT CELKEM | F34: =ROUND(SUM(F30:F33),0) -> 0
A36: Poznámka :

Sheet 310 3380310 Rek
A1: Stavba : | C1: 3380 Lomnice n/P. Prodloužení sítí technické infrastruk | G1: Rozpočet : | H1: 3380/310
A2: Objekt : | C2: 310 Prodloužení splaškové kanalizace | G2: Prodloužení splaškové kanalizace
A4: REKAPITULACE STAVEBNÍCH DÍLŮ
B6: Stavební díl | E6: HSV | F6: PSV | G6: Dodávka | H6: Montáž | I6: HZS
A7: ='310 3380310 Pol'!B7 -> 1 | B7: ='310 3380310 Pol'!C7 -> Zemní práce | E7: ='310 3380310 Pol'!BA121 -> 0 | F7: ='310 3380310 Pol'!BB121 -> 0 | G7: ='310 3380310 Pol'!BC121 -> 0 | H7: ='310 3380310 Pol'!BD121 -> 0 | I7: ='310 3380310 Pol'!BE121 -> 0
A8: ='310 3380310 Pol'!B122 -> 45 | B8: ='310 3380310 Pol'!C122 -> Podkladní a vedlejší konstrukce | E8: ='310 3380310 Pol'!BA152 -> 0 | F8: ='310 3380310 Pol'!BB152 -> 0 | G8: ='310 3380310 Pol'!BC152 -> 0 | H8: ='310 3380310 Pol'!BD152 -> 0 | I8: ='310 3380310 Pol'!BE152 -> 0
A9: ='310 3380310 Pol'!B153 -> 5 | B9: ='310 3380310 Pol'!C153 -> Komunikace | E9: ='310 3380310 Pol'!BA159 -> 0 | F9: ='310 3380310 Pol'!BB159 -> 0 | G9: ='310 3380310 Pol'!BC159 -> 0 | H9: ='310 3380310 Pol'!BD159 -> 0 | I9: ='310 3380310 Pol'!BE159 -> 0
A10: ='310 3380310 Pol'!B160 -> 8 | B10: ='310 3380310 Pol'!C160 -> Trubní vedení | E10: ='310 3380310 Pol'!BA297 -> 0 | F10: ='310 3380310 Pol'!BB297 -> 0 | G10: ='310 3380310 Pol'!BC297 -> 0 | H10: ='310 3380310 Pol'!BD297 -> 0 | I10: ='310 3380310 Pol'!BE297 -> 0
A11: ='310 3380310 Pol'!B298 -> 93 | B11: ='310 3380310 Pol'!C298 -> Dokončovací práce inženýrských staveb | E11: ='310 3380310 Pol'!BA321 -> 0 | F11: ='310 3380310 Pol'!BB321 -> 0 | G11: ='310 3380310 Pol'!BC321 -> 0 | H11: ='310 3380310 Pol'!BD321 -> 0 | I11: ='310 3380310 Pol'!BE321 -> 0
A12: ='310 3380310 Pol'!B322 -> 99 | B12: ='310 3380310 Pol'!C322 -> Staveništní přesun hmot | E12: ='310 3380310 Pol'!BA324 -> 0 | F12: ='310 3380310 Pol'!BB324 -> 0 | G12: ='310 3380310 Pol'!BC324 -> 0 | H12: ='310 3380310 Pol'!BD324 -> 0 | I12: ='310 3380310 Pol'!BE324 -> 0
B13: CELKEM OBJEKT | E13: =SUM(E7:E12) -> 0 | F13: =SUM(F7:F12) -> 0 | G13: =SUM(G7:G12) -> 0 | H13: =SUM(H7:H12) -> 0 | I13: =SUM(I7:I12) -> 0

Sheet 310 3380310 Pol
A1: Položkový rozpočet
A3: Stavba : | C3: 3380 Lomnice n/P. Prodloužení sítí technické infrastruk | E3: Rozpočet: | F3: ='310 3380310 Rek'!H1 -> 3380/310
A4: Objekt : | C4: 310 Prodloužení splaškové kanalizace | E4: ='310 3380310 Rek'!G2 -> Prodloužení splaškové kanalizace
A6: P.č. | B6: Číslo položky | C6: Název položky | D6: MJ | E6: množství | F6: cena / MJ | G6: celkem (Kč) | H6: Jednotková hmotnost | I6: Celková hmotnost | J6: Jednotková dem.hmot. | K6: Celková dem.hmot.
A7: Díl: | B7: 1 | C7: Zemní práce | O7: 1
A8: 1 | B8: 113107625R00 | C8: Odstranění podkladu nad 50 m2,kam.drcené tl.25 cm | D8: m2 | E8: 77.35 | G8: =E8*F8 -> 0 | H8: 0 | I8: =E8*H8 -> 0 | J8: -0.55 | K8: =E8*J8 -> -42.5425 | O8: 2 | AA8: 1 | AB8: 1 | AC8: 1 | AZ8: 1 | BA8: =IF(AZ8=1,G8,0) -> 0 | BB8: =IF(AZ8=2,G8,0) -> 0 | BC8: =IF(AZ8=3,G8,0) -> 0 | BD8: =IF(AZ8=4,G8,0) -> 0 | BE8: =IF(AZ8=5,G8,0) -> 0 | CA8: 1 | CB8: 1
C9: Stoka SK PVC DN250 :61,90*0,90+1,60*(1,60-0,90)*4 | E9: 60.19 | M9: Stoka SK PVC DN250 :61,90*0,90+1,60*(1,60-0,90)*4
C10: Stoka SK PVC DN300:5,80*1,00+1,60*(1,60-1,00)*2 | E10: 7.72 | M10: Stoka SK PVC DN300:5,80*1,00+1,60*(1,60-1,00)*2
C11: Přípojka PVC DN150:11,80*0,80 | E11: 9.44 | M11: Přípojka PVC DN150:11,80*0,80
A12: 2 | B12: 113108415R00 | C12: Odstranění asfaltové vrstvy pl.nad 50 m2, tl.15 cm | D12: m2 | E12: 61.83 | G12: =E12*F12 -> 0 | H12: 0 | I12: =E12*H12 -> 0 | J12: -0.33 | K12: =E12*J12 -> -20.4039 | O12: 2 | AA12: 1 | AB12: 1 | AC12: 1 | AZ12: 1 | BA12: =IF(AZ12=1,G12,0) -> 0 | BB12: =IF(AZ12=2,G12,0) -> 0 | BC12: =IF(AZ12=3,G12,0) -> 0 | BD12: =IF(AZ12=4,G12,0) -> 0 | BE12: =IF(AZ12=5,G12,0) -> 0 | CA12: 1 | CB12: 1
C13: Stoka SK PVC DN250 :61,90*0,90+1,60*(1,60-0,90)*4 | E13: 60.19 | M13: Stoka SK PVC DN250 :61,90*0,90+1,60*(1,60-0,90)*4
C14: Stoka SK PVC DN300:5,80*1,00+1,60*(1,60-1,00)*2 | E14: 7.72 | M14: Stoka SK PVC DN300:5,80*1,00+1,60*(1,60-1,00)*2
C15: Přípojka PVC DN150:11,80*0,80 | E15: 9.44 | M15: Přípojka PVC DN150:11,80*0,80
C16: Odpočet podílu panelové plochy parkoviště (manipulace s panely počítána v SO320):-16,00*0,90-1,60*(1,60-0,90)*1 | E16: -15.52 | M16: Odpočet podílu panelové plochy parkoviště (manipulace s panely počítána v SO320):-16,00*0,90-1,60*(1,60-0,90)*1
A17: 3 | B17: 115109201RRX | C17: Přečerpávání nebo převedení splašků a dešť. vod | D17: h | E17: 150 | G17: =E17*F17 -> 0 | H17: 0 | I17: =E17*H17 -> 0 | J17: 0 | K17: =E17*J17 -> 0 | O17: 2 | AA17: 1 | AB17: 1 | AC17: 1 | AZ17: 1 | BA17: =IF(AZ17=1,G17,0) -> 0 | BB17: =IF(AZ17=2,G17,0) -> 0 | BC17: =IF(AZ17=3,G17,0) -> 0 | BD17: =IF(AZ17=4,G17,0) -> 0 | BE17: =IF(AZ17=5,G17,0) -> 0 | CA17: 1 | CB17: 1
C18: Převedení a čerpání splašků nebo dešťových vod dle zvolené technologie zhotovitele stavby. | L18: Převedení a čerpání splašků nebo dešťových vod dle zvolené technologie zhotovitele stavby. | O18: 3
C19: (Množství bude určeno na stavbě dle skutečnosti) | L19: (Množství bude určeno na stavbě dle skutečnosti) | O19: 3
A20: 4 | B20: 130001101RRX | C20: Příplatek za ztížené hloubení v blízkosti vedení | D20: m3 | E20: 48.4844 | G20: =E20*F20 -> 0 | H20: 0 | I20: =E20*H20 -> 0 | J20: 0 | K20: =E20*J20 -> 0 | O20: 2 | AA20: 1 | AB20: 1 | AC20: 1 | AZ20: 1 | BA20: =IF(AZ20=1,G20,0) -> 0 | BB20: =IF(AZ20=2,G20,0) -> 0 | BC20: =IF(AZ20=3,G20,0) -> 0 | BD20: =IF(AZ20=4,G20,0) -> 0 | BE20: =IF(AZ20=5,G20,0) -> 0 | CA20: 1 | CB20: 1
C21: Včetně případných nutných dokopávem a ručního výkopu podél sousedících inženýrských sítí včetně vyvěšení a zajištění sítí. | L21: Včetně případných nutných dokopávem a ručního výkopu podél sousedících inženýrských sítí včetně vyvěšení a zajištění sítí. | O21: 3
C22: Součástí položky jsou i nutné ruční kopané sondy předepsané projektovou dokumentací pro upřesnění směrového a výškového umístění sousedních vedení inženýrských sítí. | L22: Součástí položky jsou i nutné ruční kopané sondy předepsané projektovou dokumentací pro upřesnění směrového a výškového umístění sousedních vedení inženýrských sítí. | O22: 3
C23: Stoka SK PVC DN250 a DN300: | E23: 0 | M23: Stoka SK PVC DN250 a DN300:
C24: Výkopy: | E24: 0 | M24: Výkopy:
C25: V hornině tř. 3 - 4 - 30%:161,6146*0,3 | E25: 48.4844 | M25: V hornině tř. 3 - 4 - 30%:161,6146*0,3
A26: 5 | B26: 130901123RT3 | C26: Bourání konstrukcí ze železobetonu ve vykopávkách bagrem s kladivem | D26: m3 | E26: 4.365 | G26: =E26*F26 -> 0 | H26: 0 | I26: =E26*H26 -> 0 | J26: -2.5 | K26: =E26*J26 -> -10.9125 | O26: 2 | AA26: 1 | AB26: 1 | AC26: 1 | AZ26: 1 | BA26: =IF(AZ26=1,G26,0) -> 0 | BB26: =IF(AZ26=2,G26,0) -> 0 | BC26: =IF(AZ26=3,G26,0) -> 0 | BD26: =IF(AZ26=4,G26,0) -> 0 | BE26: =IF(AZ26=5,G26,0) -> 0 | CA26: 1 | CB26: 1
C27: Položka obsahuje odstranění materiálu obklopujícího betonové a železobetonové konstrukce v míře nutné pro vyzvednutí, rozpojení konstrukcí, uchopení a vyzvednutí konstrukce z výkopu a uložení na dopravní prostředek. | L27: Položka obsahuje odstranění materiálu obklopujícího betonové a železobetonové konstrukce v míře nutné pro vyzvednutí, rozpojení konstrukcí, uchopení a vyzvednutí konstrukce z výkopu a uložení na dopravní prostředek. | O27: 3
A28: 6 | B28: 132201212R00 | C28: Hloubení rýh š.do 200 cm hor.3 do 1000m3,STROJNĚ | D28: m3 | E28: 80.8073 | G28: =E28*F28 -> 0 | H28: 0 | I28: =E28*H28 -> 0 | J28: 0 | K28: =E28*J28 -> 0 | O28: 2 | AA28: 1 | AB28: 1 | AC28: 1 | AZ28: 1 | BA28: =IF(AZ28=1,G28,0) -> 0 | BB28: =IF(AZ28=2,G28,0) -> 0 | BC28: =IF(AZ28=3,G28,0) -> 0 | BD28: =IF(AZ28=4,G28,0) -> 0 | BE28: =IF(AZ28=5,G28,0) -> 0 | CA28: 1 | CB28: 1
C29: Položka obsahuje hloubení rýh traktorbagrem, naložení výkopku na dopravní prostředek pro svislé, nebo vodorovné přemístění, popř. přemístění výkopku do 3 m (po povrchu území), případné zajištění rypadel polštáři, udržování pracoviště a ochranu výkopiště proti stékání srážkové vody z okolního terénu i s jejím odvodněním, nebo odvedením, přesekání a odstranění kořenů ve výkopišti, odstranění napadávek, urovnání dna výkopu. | L29: Položka obsahuje hloubení rýh traktorbagrem, naložení výkopku na dopravní prostředek pro svislé, nebo vodorovné přemístění, popř. přemístění výkopku do 3 m (po povrchu území), případné zajištění rypadel polštáři, udržování pracoviště a ochranu výkopiště proti stékání srážkové vody z okolního terénu i s jejím odvodněním, nebo odvedením, přesekání a odstranění kořenů ve výkopišti, odstranění napadávek, urovnání dna výkopu. | O29: 3
C30: Stoka SK PVC DN250 a DN300: | E30: 0 | M30: Stoka SK PVC DN250 a DN300:
C31: Výkopy: | E31: 0 | M31: Výkopy:
C32: Začátek provozního součtu | E32: 0 | M32: Začátek provozního součtu
C33: Stoka SK PVC DN250 a DN300:5,80*1,00*(2,88+2,78)/2 | E33: 16.414 | M33: Stoka SK PVC DN250 a DN300:5,80*1,00*(2,88+2,78)/2
C34: (67,70-5,80)*0,90*(2,78+2,33)/2 | E34: 142.339 | M34: (67,70-5,80)*0,90*(2,78+2,33)/2
C35: Prohloubení pro RŠ:1,60*1,60*0,20*6 | E35: 3.072 | M35: Prohloubení pro RŠ:1,60*1,60*0,20*6
C36: Rozšíření pro RŠ:1,60*(1,60-1,00)*(2,88+2,78) | E36: 5.4336 | M36: Rozšíření pro RŠ:1,60*(1,60-1,00)*(2,88+2,78)
C37: 1,60*(1,60-0,90)*(2,40+2,22+2,26+2,33) | E37: 10.3152 | M37: 1,60*(1,60-0,90)*(2,40+2,22+2,26+2,33)
C38: Přípojka PVC DN150:11,80*0,80*(2,24+2,00)/2 | E38: 20.0128 | M38: Přípojka PVC DN150:11,80*0,80*(2,24+2,00)/2
C39: Odpočet objemu konstrukce komunikace a ZP: | E39: 0 | M39: Odpočet objemu konstrukce komunikace a ZP:
C40: Stoka SK PVC DN250 :-(61,90*0,90+1,60*(1,60-0,90)*4)*0,40 | E40: -24.076 | M40: Stoka SK PVC DN250 :-(61,90*0,90+1,60*(1,60-0,90)*4)*0,40
C41: Stoka SK PVC DN300:-(5,80*1,00+1,60*(1,60-1,00)*2)-0,40 | E41: -8.12 | M41: Stoka SK PVC DN300:-(5,80*1,00+1,60*(1,60-1,00)*2)-0,40
C42: Přípojka PVC DN150:-11,80*0,80*0,40 | E42: -3.776 | M42: Přípojka PVC DN150:-11,80*0,80*0,40
C43: Konec provozního součtu | E43: 161.6146 | M43: Konec provozního součtu
C44: V hornině tř. 3 - 50%:161,6146*0,5 | E44: 80.8073 | M44: V hornině tř. 3 - 50%:161,6146*0,5
A45: 7 | B45: 132201219R00 | C45: Přípl.za lepivost,hloubení rýh 200cm,hor.3,STROJNĚ | D45: m3 | E45: 40.4036 | G45: =E45*F45 -> 0 | H45: 0 | I45: =E45*H45 -> 0 | J45: 0 | K45: =E45*J45 -> 0 | O45: 2 | AA45: 1 | AB45: 1 | AC45: 1 | AZ45: 1 | BA45: =IF(AZ45=1,G45,0) -> 0 | BB45: =IF(AZ45=2,G45,0) -> 0 | BC45: =IF(AZ45=3,G45,0) -> 0 | BD45: =IF(AZ45=4,G45,0) -> 0 | BE45: =IF(AZ45=5,G45,0) -> 0 | CA45: 1 | CB45: 1
C46: Stoka SK PVC DN250 a DN300: | E46: 0 | M46: Stoka SK PVC DN250 a DN300:
C47: Výkopy: | E47: 0 | M47: Výkopy:
C48: V hornině tř. 3 - 50%:161,6146*0,5*0,5 | E48: 40.4036 | M48: V hornině tř. 3 - 50%:161,6146*0,5*0,5
A49: 8 | B49: 132301212R00 | C49: Hloubení rýh š.do 200 cm hor.4 do 1000 m3, STROJNĚ | D49: m3 | E49: 80.8073 | G49: =E49*F49 -> 0 | H49: 0 | I49: =E49*H49 -> 0 | J49: 0 | K49: =E49*J49 -> 0 | O49: 2 | AA49: 1 | AB49: 1 | AC49: 1 | AZ49: 1 | BA49: =IF(AZ49=1,G49,0) -> 0 | BB49: =IF(AZ49=2,G49,0) -> 0 | BC49: =IF(AZ49=3,G49,0) -> 0 | BD49: =IF(AZ49=4,G49,0) -> 0 | BE49: =IF(AZ49=5,G49,0) -> 0 | CA49: 1 | CB49: 1
C50: Položka obsahuje hloubení rýh traktorbagrem, naložení výkopku na dopravní prostředek pro svislé, nebo vodorovné přemístění, popř. přemístění výkopku do 3 m (po povrchu území), případné zajištění rypadel polštáři, udržování pracoviště a ochranu výkopiště proti stékání srážkové vody z okolního terénu i s jejím odvodněním, nebo odvedením, přesekání a odstranění kořenů ve výkopišti, odstranění napadávek, urovnání dna výkopu. | L50: Položka obsahuje hloubení rýh traktorbagrem, naložení výkopku na dopravní prostředek pro svislé, nebo vodorovné přemístění, popř. přemístění výkopku do 3 m (po povrchu území), případné zajištění rypadel polštáři, udržování pracoviště a ochranu výkopiště proti stékání srážkové vody z okolního terénu i s jejím odvodněním, nebo odvedením, přesekání a odstranění kořenů ve výkopišti, odstranění napadávek, urovnání dna výkopu. | O50: 3
C51: Stoka SK PVC DN250 a DN300: | E51: 0 | M51: Stoka SK PVC DN250 a DN300:
C52: Výkopy: | E52: 0 | M52: Výkopy:
C53: V hornině tř. 4 - 50%:161,6146*0,5 | E53: 80.8073 | M53: V hornině tř. 4 - 50%:161,6146*0,5
A54: 9 | B54: 132301219R00 | C54: Přípl.za lepivost,hloubení rýh 200cm,hor.4,STROJNĚ | D54: m3 | E54: 40.4036 | G54: =E54*F54 -> 0 | H54: 0 | I54: =E54*H54 -> 0 | J54: 0 | K54: =E54*J54 -> 0 | O54: 2 | AA54: 1 | AB54: 1 | AC54: 1 | AZ54: 1 | BA54: =IF(AZ54=1,G54,0) -> 0 | BB54: =IF(AZ54=2,G54,0) -> 0 | BC54: =IF(AZ54=3,G54,0) -> 0 | BD54: =IF(AZ54=4,G54,0) -> 0 | BE54: =IF(AZ54=5,G54,0) -> 0 | CA54: 1 | CB54: 1
C55: Stoka SK PVC DN250 a DN300: | E55: 0 | M55: Stoka SK PVC DN250 a DN300:
C56: Výkopy: | E56: 0 | M56: Výkopy:
C57: V hornině tř. 4 - 50%:161,6146*0,5*0,5 | E57: 40.4036 | M57: V hornině tř. 4 - 50%:161,6146*0,5*0,5
A58: 10 | B58: 151101102R00 | C58: Pažení a rozepření stěn rýh - příložné - hl.do 4 m | D58: m2 | E58: 399.169 | G58: =E58*F58 -> 0 | H58: 0.00086 | I58: =E58*H58 -> 0.34328534 | J58: 0 | K58: =E58*J58 -> 0 | O58: 2 | AA58: 1 | AB58: 1 | AC58: 1 | AZ58: 1 | BA58: =IF(AZ58=1,G58,0) -> 0 | BB58: =IF(AZ58=2,G58,0) -> 0 | BC58: =IF(AZ58=3,G58,0) -> 0 | BD58: =IF(AZ58=4,G58,0) -> 0 | BE58: =IF(AZ58=5,G58,0) -> 0 | CA58: 1 | CB58: 1
C59: Stoka SK PVC DN250 a DN300: | E59: 0 | M59: Stoka SK PVC DN250 a DN300:
C60: Výkopy: | E60: 0 | M60: Výkopy:
C61: Stoka SK PVC DN250 a DN300:5,80*(2,88+2,78)/2*2 | E61: 32.828 | M61: Stoka SK PVC DN250 a DN300:5,80*(2,88+2,78)/2*2
C62: (67,70-5,80)*(2,78+2,33)/2*2 | E62: 316.309 | M62: (67,70-5,80)*(2,78+2,33)/2*2
C63: Přípojka PVC DN150:11,80*(2,24+2,00)/2*2 | E63: 50.032 | M63: Přípojka PVC DN150:11,80*(2,24+2,00)/2*2
A64: 11 | B64: 151101112R00 | C64: Odstranění pažení stěn rýh - příložné - hl. do 4 m | D64: m2 | E64: 399.169 | G64: =E64*F64 -> 0 | H64: 0 | I64: =E64*H64 -> 0 | J64: 0 | K64: =E64*J64 -> 0 | O64: 2 | AA64: 1 | AB64: 1 | AC64: 1 | AZ64: 1 | BA64: =IF(AZ64=1,G64,0) -> 0 | BB64: =IF(AZ64=2,G64,0) -> 0 | BC64: =IF(AZ64=3,G64,0) -> 0 | BD64: =IF(AZ64=4,G64,0) -> 0 | BE64: =IF(AZ64=5,G64,0) -> 0 | CA64: 1 | CB64: 1
C65: Stoka SK PVC DN250 a DN300: | E65: 0 | M65: Stoka SK PVC DN250 a DN300:
C66: Výkopy: | E66: 0 | M66: Výkopy:
C67: Stoka SK PVC DN250 a DN300:5,80*(2,88+2,78)/2*2 | E67: 32.828 | M67: Stoka SK PVC DN250 a DN300:5,80*(2,88+2,78)/2*2
C68: (67,70-5,80)*(2,78+2,33)/2*2 | E68: 316.309 | M68: (67,70-5,80)*(2,78+2,33)/2*2
C69: Přípojka PVC DN150:11,80*(2,24+2,00)/2*2 | E69: 50.032 | M69: Přípojka PVC DN150:11,80*(2,24+2,00)/2*2
A70: 12 | B70: 162701105RSZ | C70: Vodorovné přemístění výkopku z hor.1-7 na skládku zhotovitele | D70: m3 | E70: 161.6146 | G70: =E70*F70 -> 0 | H70: 0 | I70: =E70*H70 -> 0 | J70: 0 | K70: =E70*J70 -> 0 | O70: 2 | AA70: 1 | AB70: 1 | AC70: 1 | AZ70: 1 | BA70: =IF(AZ70=1,G70,0) -> 0 | BB70: =IF(AZ70=2,G70,0) -> 0 | BC70: =IF(AZ70=3,G70,0) -> 0 | BD70: =IF(AZ70=4,G70,0) -> 0 | BE70: =IF(AZ70=5,G70,0) -> 0 | CA70: 1 | CB70: 1
C71: Stoka SK PVC DN250 a DN300: | E71: 0 | M71: Stoka SK PVC DN250 a DN300:
C72: Výkopy: | E72: 0 | M72: Výkopy:
C73: V hornině tř. 3 - 4:161,6146 | E73: 161.6146 | M73: V hornině tř. 3 - 4:161,6146
A74: 13 | B74: 174101101R00 | C74: Zásyp jam, rýh, šachet se zhutněním | D74: m3 | E74: 94.4683 | G74: =E74*F74 -> 0 | H74: 0 | I74: =E74*H74 -> 0 | J74: 0 | K74: =E74*J74 -> 0 | O74: 2 | AA74: 1 | AB74: 1 | AC74: 1 | AZ74: 1 | BA74: =IF(AZ74=1,G74,0) -> 0 | BB74: =IF(AZ74=2,G74,0) -> 0 | BC74: =IF(AZ74=3,G74,0) -> 0 | BD74: =IF(AZ74=4,G74,0) -> 0 | BE74: =IF(AZ74=5,G74,0) -> 0 | CA74: 1 | CB74: 1
C75: Položka obsahuje strojní přemístění materiálu pro zásyp ze vzdálenosti do 10 m od okraje zásypu. | L75: Položka obsahuje strojní přemístění materiálu pro zásyp ze vzdálenosti do 10 m od okraje zásypu. | O75: 3
O76: 3
C77: Zásyp ŠD fr. 0-63 mm:94,4683 | E77: 94.4683 | M77: Zásyp ŠD fr. 0-63 mm:94,4683
C78: Začátek provozního součtu | E78: 0 | M78: Začátek provozního součtu
C79: Stoka SK PVC DN250 a DN300: | E79: 0 | M79: Stoka SK PVC DN250 a DN300:
C80: Výkopy: | E80: 0 | M80: Výkopy:
C81: V hornině tř. 3 - 4:161,6146 | E81: 161.6146 | M81: V hornině tř. 3 - 4:161,6146
C82: Odpočet lože, potrubí a obsypů: | E82: 0 | M82: Odpočet lože, potrubí a obsypů:
C83: Stoka SK PVC DN250 :-61,90*0,90*(0,15+0,25+0,30) | E83: -38.997 | M83: Stoka SK PVC DN250 :-61,90*0,90*(0,15+0,25+0,30)
C84: Stoka SK PVC DN300:-5,80*1,00*(0,15+0,30+0,30) | E84: -4.35 | M84: Stoka SK PVC DN300:-5,80*1,00*(0,15+0,30+0,30)
C85: Přípojka PVC DN150:-11,80*0,80*(0,15+0,15+0,30) | E85: -5.664 | M85: Přípojka PVC DN150:-11,80*0,80*(0,15+0,15+0,30)
C86: Odpočet objemu RŠ:-18,1353 | E86: -18.1353 | M86: Odpočet objemu RŠ:-18,1353
C87: Konec provozního součtu | E87: 94.4683 | M87: Konec provozního součtu
A88: 14 | B88: 175101101R00 | C88: Obsyp potrubí bez prohození sypaniny | D88: m3 | E88: 34.7115 | G88: =E88*F88 -> 0 | H88: 0 | I88: =E88*H88 -> 0 | J88: 0 | K88: =E88*J88 -> 0 | O88: 2 | AA88: 1 | AB88: 1 | AC88: 1 | AZ88: 1 | BA88: =IF(AZ88=1,G88,0) -> 0 | BB88: =IF(AZ88=2,G88,0) -> 0 | BC88: =IF(AZ88=3,G88,0) -> 0 | BD88: =IF(AZ88=4,G88,0) -> 0 | BE88: =IF(AZ88=5,G88,0) -> 0 | CA88: 1 | CB88: 1
C89: Stoka SK PVC DN250 :61,90*(0,90*(0,25+0,30)-0,125^2*Pi) | E89: 27.602 | M89: Stoka SK PVC DN250 :61,90*(0,90*(0,25+0,30)-0,125^2*Pi)
C90: Stoka SK PVC DN300:5,80*(1,00*(0,30+0,30)-0,15^2*Pi) | E90: 3.07 | M90: Stoka SK PVC DN300:5,80*(1,00*(0,30+0,30)-0,15^2*Pi)
C91: Přípojka PVC DN150:11,80*(0,80*(0,15+0,30)-0,075^2*Pi) | E91: 4.0395 | M91: Přípojka PVC DN150:11,80*(0,80*(0,15+0,30)-0,075^2*Pi)
A92: 15 | B92: 199000002R00 | C92: Poplatek za skládku horniny 1- 7 č. dle katal. odpadů 17 05 04 | D92: m3 | E92: 161.6146 | G92: =E92*F92 -> 0 | H92: 0 | I92: =E92*H92 -> 0 | J92: 0 | K92: =E92*J92 -> 0 | O92: 2 | AA92: 1 | AB92: 1 | AC92: 1 | AZ92: 1 | BA92: =IF(AZ92=1,G92,0) -> 0 | BB92: =IF(AZ92=2,G92,0) -> 0 | BC92: =IF(AZ92=3,G92,0) -> 0 | BD92: =IF(AZ92=4,G92,0) -> 0 | BE92: =IF(AZ92=5,G92,0) -> 0 | CA92: 1 | CB92: 1
C93: Stoka SK PVC DN250 a DN300: | E93: 0 | M93: Stoka SK PVC DN250 a DN300:
C94: Výkopy: | E94: 0 | M94: Výkopy:
C95: V hornině tř. 3 - 4:161,6146 | E95: 161.6146 | M95: V hornině tř. 3 - 4:161,6146
A96: 16 | B96: 919735112R00 | C96: Řezání stávajícího živičného krytu tl. 5 - 10 cm | D96: m | E96: 136.4 | G96: =E96*F96 -> 0 | H96: 0 | I96: =E96*H96 -> 0 | J96: 0 | K96: =E96*J96 -> 0 | O96: 2 | AA96: 1 | AB96: 1 | AC96: 1 | AZ96: 1 | BA96: =IF(AZ96=1,G96,0) -> 0 | BB96: =IF(AZ96=2,G96,0) -> 0 | BC96: =IF(AZ96=3,G96,0) -> 0 | BD96: =IF(AZ96=4,G96,0) -> 0 | BE96: =IF(AZ96=5,G96,0) -> 0 | CA96: 1 | CB96: 1
C97: Stoka SK PVC DN250 :61,90*2+1,60*2+(1,60-0,90)*6 | E97: 131.2 | M97: Stoka SK PVC DN250 :61,90*2+1,60*2+(1,60-0,90)*6
C98: Stoka SK PVC DN300:5,80*2+1,60*1+(1,60-1,00)*3 | E98: 15 | M98: Stoka SK PVC DN300:5,80*2+1,60*1+(1,60-1,00)*3
C99: Přípojka PVC DN150:11,80*2 | E99: 23.6 | M99: Přípojka PVC DN150:11,80*2
C100: Odpočet podílu panelové plochy parkoviště (manipulace s panely počítána v SO320):-16,00*2-(1,60-0,90)*2 | E100: -33.4 | M100: Odpočet podílu panelové plochy parkoviště (manipulace s panely počítána v SO320):-16,00*2-(1,60-0,90)*2
A101: 17 | B101: 979082113RSZ | C101: Vodorovná doprava suti po suchu na skládku zhotovitele | D101: t | E101: 62.9464 | G101: =E101*F101 -> 0 | H101: 0 | I101: =E101*H101 -> 0 | J101: 0 | K101: =E101*J101 -> 0 | O101: 2 | AA101: 1 | AB101: 1 | AC101: 1 | AZ101: 1 | BA101: =IF(AZ101=1,G101,0) -> 0 | BB101: =IF(AZ101=2,G101,0) -> 0 | BC101: =IF(AZ101=3,G101,0) -> 0 | BD101: =IF(AZ101=4,G101,0) -> 0 | BE101: =IF(AZ101=5,G101,0) -> 0 | CA101: 1 | CB101: 1
A102: 18 | B102: 979089001R00 | C102: Poplatek za skládku stavební suti štěrky z komunikací, skupina odpadu 010408 | D102: t | E102: 42.5425 | G102: =E102*F102 -> 0 | H102: 0 | I102: =E102*H102 -> 0 | J102: 0 | K102: =E102*J102 -> 0 | O102: 2 | AA102: 1 | AB102: 1 | AC102: 1 | AZ102: 1 | BA102: =IF(AZ102=1,G102,0) -> 0 | BB102: =IF(AZ102=2,G102,0) -> 0 | BC102: =IF(AZ102=3,G102,0) -> 0 | BD102: =IF(AZ102=4,G102,0) -> 0 | BE102: =IF(AZ102=5,G102,0) -> 0 | CA102: 1 | CB102: 1
A103: 19 | B103: 979999995R00 | C103: Poplatek za reciklaci asfaltu, kusovost do 1600cm2 skupina 170302 | D103: t | E103: 20.4039 | G103: =E103*F103 -> 0 | H103: 0 | I103: =E103*H103 -> 0 | J103: 0 | K103: =E103*J103 -> 0 | O103: 2 | AA103: 1 | AB103: 1 | AC103: 1 | AZ103: 1 | BA103: =IF(AZ103=1,G103,0) -> 0 | BB103: =IF(AZ103=2,G103,0) -> 0 | BC103: =IF(AZ103=3,G103,0) -> 0 | BD103: =IF(AZ103=4,G103,0) -> 0 | BE103: =IF(AZ103=5,G103,0) -> 0 | CA103: 1 | CB103: 1
C104: Položka je určena pro suť o velikosti kusu do 30x30 cm (technologický materiál určený k recyklaci). | L104: Položka je určena pro suť o velikosti kusu do 30x30 cm (technologický materiál určený k recyklaci). | O104: 3
A105: 20 | B105: 58337308.R | C105: Štěrkopísek frakce 0-2 tř.B | D105: t | E105: 69.1706 | G105: =E105*F105 -> 0 | H105: 1 | I105: =E105*H105 -> 69.1706 | K105: =E105*J105 -> 0 | O105: 2 | AA105: 3 | AB105: 1 | AC105: 58337308.R | AZ105: 1 | BA105: =IF(AZ105=1,G105,0) -> 0 | BB105: =IF(AZ105=2,G105,0) -> 0 | BC105: =IF(AZ105=3,G105,0) -> 0 | BD105: =IF(AZ105=4,G105,0) -> 0 | BE105: =IF(AZ105=5,G105,0) -> 0 | CA105: 3 | CB105: 1
C106: Stoka SK PVC DN250 :61,90*(0,90*(0,25+0,30)-0,125^2*Pi)*1,973*1,01 | E106: 55.0033 | M106: Stoka SK PVC DN250 :61,90*(0,90*(0,25+0,30)-0,125^2*Pi)*1,973*1,01
C107: Stoka SK PVC DN300:5,80*(1,00*(0,30+0,30)-0,15^2*Pi)*1,973*1,01 | E107: 6.1177 | M107: Stoka SK PVC DN300:5,80*(1,00*(0,30+0,30)-0,15^2*Pi)*1,973*1,01
C108: Přípojka PVC DN150:11,80*(0,80*(0,15+0,30)-0,075^2*Pi)*1,973*1,01 | E108: 8.0496 | M108: Přípojka PVC DN150:11,80*(0,80*(0,15+0,30)-0,075^2*Pi)*1,973*1,01
A109: 21 | B109: 58344197R | C109: Štěrkodrtě frakce 0-63 A | D109: t | E109: 178.7085 | G109: =E109*F109 -> 0 | H109: 1 | I109: =E109*H109 -> 178.7085 | K109: =E109*J109 -> 0 | O109: 2 | AA109: 3 | AB109: 1 | AC109: 58344197R | AZ109: 1 | BA109: =IF(AZ109=1,G109,0) -> 0 | BB109: =IF(AZ109=2,G109,0) -> 0 | BC109: =IF(AZ109=3,G109,0) -> 0 | BD109: =IF(AZ109=4,G109,0) -> 0 | BE109: =IF(AZ109=5,G109,0) -> 0 | CA109: 3 | CB109: 1
C110: Zásyp ŠD fr. 0-63 mm:94,4683*1,873*1,01 | E110: 178.7085 | M110: Zásyp ŠD fr. 0-63 mm:94,4683*1,873*1,01
C111: Začátek provozního součtu | E111: 0 | M111: Začátek provozního součtu
C112: Stoka SK PVC DN250 a DN300: | E112: 0 | M112: Stoka SK PVC DN250 a DN300:
C113: Výkopy: | E113: 0 | M113: Výkopy:
C114: V hornině tř. 3 - 4:161,6146 | E114: 161.6146 | M114: V hornině tř. 3 - 4:161,6146
C115: Odpočet lože, potrubí a obsypů: | E115: 0 | M115: Odpočet lože, potrubí a obsypů:
C116: Stoka SK PVC DN250 :-61,90*0,90*(0,15+0,25+0,30) | E116: -38.997 | M116: Stoka SK PVC DN250 :-61,90*0,90*(0,15+0,25+0,30)
C117: Stoka SK PVC DN300:-5,80*1,00*(0,15+0,30+0,30) | E117: -4.35 | M117: Stoka SK PVC DN300:-5,80*1,00*(0,15+0,30+0,30)
C118: Přípojka PVC DN150:-11,80*0,80*(0,15+0,15+0,30) | E118: -5.664 | M118: Přípojka PVC DN150:-11,80*0,80*(0,15+0,15+0,30)
C119: Odpočet objemu RŠ:-18,1353 | E119: -18.1353 | M119: Odpočet objemu RŠ:-18,1353
C120: Konec provozního součtu | E120: 94.4683 | M120: Konec provozního součtu
B121: Celkem za | C121: 1 Zemní práce | G121: =SUM(G7:G120) -> 0 | I121: =SUM(I7:I120) -> 248.2223853 | K121: =SUM(K7:K120) -> -73.8589 | O121: 4 | BA121: =SUM(BA7:BA120) -> 0 | BB121: =SUM(BB7:BB120) -> 0 | BC121: =SUM(BC7:BC120) -> 0 | BD121: =SUM(BD7:BD120) -> 0 | BE121: =SUM(BE7:BE120) -> 0
A122: Díl: | B122: 45 | C122: Podkladní a vedlejší konstrukce | O122: 1
A123: 22 | B123: 451572111R00 | C123: Lože pod potrubí z kameniva těženého 0 - 4 mm | D123: m3 | E123: 10.6425 | G123: =E123*F123 -> 0 | H123: 0.43051 | I123: =E123*H123 -> 4.581702675 | J123: 0 | K123: =E123*J123 -> 0 | O123: 2 | AA123: 1 | AB123: 1 | AC123: 1 | AZ123: 1 | BA123: =IF(AZ123=1,G123,0) -> 0 | BB123: =IF(AZ123=2,G123,0) -> 0 | BC123: =IF(AZ123=3,G123,0) -> 0 | BD123: =IF(AZ123=4,G123,0) -> 0 | BE123: =IF(AZ123=5,G123,0) -> 0 | CA123: 1 | CB123: 1
C124: Stoka SK PVC DN250 :61,90*0,90*0,15 | E124: 8.3565 | M124: Stoka SK PVC DN250 :61,90*0,90*0,15
C125: Stoka SK PVC DN300:5,80*1,00*0,15 | E125: 0.87 | M125: Stoka SK PVC DN300:5,80*1,00*0,15
C126: Přípojka PVC DN150:11,80*0,80*0,15 | E126: 1.416 | M126: Přípojka PVC DN150:11,80*0,80*0,15
A127: 23 | B127: 452112111R00 | C127: Osazení beton. prstenců pod poklopy,výšky do100 mm | D127: kus | E127: 3 | G127: =E127*F127 -> 0 | H127: 0.0066 | I127: =E127*H127 -> 0.0198 | J127: 0 | K127: =E127*J127 -> 0 | O127: 2 | AA127: 1 | AB127: 1 | AC127: 1 | AZ127: 1 | BA127: =IF(AZ127=1,G127,0) -> 0 | BB127: =IF(AZ127=2,G127,0) -> 0 | BC127: =IF(AZ127=3,G127,0) -> 0 | BD127: =IF(AZ127=4,G127,0) -> 0 | BE127: =IF(AZ127=5,G127,0) -> 0 | CA127: 1 | CB127: 1
C128: Volba položky se řídí výškou prstence nebo rámu. V položkách nejsou zakalkulovány náklady na dodávku betonových výrobků; | L128: Volba položky se řídí výškou prstence nebo rámu. V položkách nejsou zakalkulovány náklady na dodávku betonových výrobků; | O128: 3
C129: Stoka SK PVC DN250 a DN300: | E129: 0 | M129: Stoka SK PVC DN250 a DN300:
C130: VP H40:1 | E130: 1 | M130: VP H40:1
C131: VP H80:1 | E131: 1 | M131: VP H80:1
C132: VP H100:1 | E132: 1 | M132: VP H100:1
A133: 24 | B133: 452112121R00 | C133: Osazení beton. prstenců pod poklopy,výšky do200 mm | D133: kus | E133: 3 | G133: =E133*F133 -> 0 | H133: 0.0066 | I133: =E133*H133 -> 0.0198 | J133: 0 | K133: =E133*J133 -> 0 | O133: 2 | AA133: 1 | AB133: 1 | AC133: 1 | AZ133: 1 | BA133: =IF(AZ133=1,G133,0) -> 0 | BB133: =IF(AZ133=2,G133,0) -> 0 | BC133: =IF(AZ133=3,G133,0) -> 0 | BD133: =IF(AZ133=4,G133,0) -> 0 | BE133: =IF(AZ133=5,G133,0) -> 0 | CA133: 1 | CB133: 1
C134: Stoka SK PVC DN250 a DN300: | E134: 0 | M134: Stoka SK PVC DN250 a DN300:
C135: VP H120:2 | E135: 2 | M135: VP H120:2
C136: VP H150:1 | E136: 1 | M136: VP H150:1
A137: 25 | B137: 59224345.B.R | C137: Prstenec vyrovn šachetní TBW-Q.1 40/600/120 | D137: kus | E137: 1.01 | G137: =E137*F137 -> 0 | H137: 0.028 | I137: =E137*H137 -> 0.02828 | K137: =E137*J137 -> 0 | O137: 2 | AA137: 3 | AB137: 1 | AC137: 59224345.B.R | AZ137: 1 | BA137: =IF(AZ137=1,G137,0) -> 0 | BB137: =IF(AZ137=2,G137,0) -> 0 | BC137: =IF(AZ137=3,G137,0) -> 0 | BD137: =IF(AZ137=4,G137,0) -> 0 | BE137: =IF(AZ137=5,G137,0) -> 0 | CA137: 3 | CB137: 1
C138: Stoka SK PVC DN250 a DN300: | E138: 0 | M138: Stoka SK PVC DN250 a DN300:
C139: VP H40:1*1,01 | E139: 1.01 | M139: VP H40:1*1,01
A140: 26 | B140: 59224347.B.R | C140: Prstenec vyrovn šachetní TBW-Q.1 80/600/120 | D140: kus | E140: 1.01 | G140: =E140*F140 -> 0 | H140: 0.053 | I140: =E140*H140 -> 0.05353 | K140: =E140*J140 -> 0 | O140: 2 | AA140: 3 | AB140: 1 | AC140: 59224347.B.R | AZ140: 1 | BA140: =IF(AZ140=1,G140,0) -> 0 | BB140: =IF(AZ140=2,G140,0) -> 0 | BC140: =IF(AZ140=3,G140,0) -> 0 | BD140: =IF(AZ140=4,G140,0) -> 0 | BE140: =IF(AZ140=5,G140,0) -> 0 | CA140: 3 | CB140: 1
C141: Stoka SK PVC DN250 a DN300: | E141: 0 | M141: Stoka SK PVC DN250 a DN300:
C142: VP H80:1*1,01 | E142: 1.01 | M142: VP H80:1*1,01
A143: 27 | B143: 59224348.B.R | C143: Prstenec vyrovn šachetní TBW-Q.1 100/600/120 | D143: kus | E143: 1.01 | G143: =E143*F143 -> 0 | H143: 0.068 | I143: =E143*H143 -> 0.06868 | K143: =E143*J143 -> 0 | O143: 2 | AA143: 3 | AB143: 1 | AC143: 59224348.B.R | AZ143: 1 | BA143: =IF(AZ143=1,G143,0) -> 0 | BB143: =IF(AZ143=2,G143,0) -> 0 | BC143: =IF(AZ143=3,G143,0) -> 0 | BD143: =IF(AZ143=4,G143,0) -> 0 | BE143: =IF(AZ143=5,G143,0) -> 0 | CA143: 3 | CB143: 1
C144: Stoka SK PVC DN250 a DN300: | E144: 0 | M144: Stoka SK PVC DN250 a DN300:
C145: VP H100:1*1,01 | E145: 1.01 | M145: VP H100:1*1,01
A146: 28 | B146: 59224349.B.R | C146: Prstenec vyrovn šachetní TBW-Q.1 120/600/120 | D146: kus | E146: 2.02 | G146: =E146*F146 -> 0 | H146: 0.081 | I146: =E146*H146 -> 0.16362 | K146: =E146*J146 -> 0 | O146: 2 | AA146: 3 | AB146: 1 | AC146: 59224349.B.R | AZ146: 1 | BA146: =IF(AZ146=1,G146,0) -> 0 | BB146: =IF(AZ146=2,G146,0) -> 0 | BC146: =IF(AZ146=3,G146,0) -> 0 | BD146: =IF(AZ146=4,G146,0) -> 0 | BE146: =IF(AZ146=5,G146,0) -> 0 | CA146: 3 | CB146: 1
C147: Stoka SK PVC DN250 a DN300: | E147: 0 | M147: Stoka SK PVC DN250 a DN300:
C148: VP H120:2*1,01 | E148: 2.02 | M148: VP H120:2*1,01
A149: 29 | B149: 59224350.B.R | C149: Prstenec vyrovn šachetní TBW-Q.1 150/600/120 | D149: kus | E149: 1.01 | G149: =E149*F149 -> 0 | H149: 0.102 | I149: =E149*H149 -> 0.10302 | K149: =E149*J149 -> 0 | O149: 2 | AA149: 3 | AB149: 1 | AC149: 59224350.B.R | AZ149: 1 | BA149: =IF(AZ149=1,G149,0) -> 0 | BB149: =IF(AZ149=2,G149,0) -> 0 | BC149: =IF(AZ149=3,G149,0) -> 0 | BD149: =IF(AZ149=4,G149,0) -> 0 | BE149: =IF(AZ149=5,G149,0) -> 0 | CA149: 3 | CB149: 1
C150: Stoka SK PVC DN250 a DN300: | E150: 0 | M150: Stoka SK PVC DN250 a DN300:
C151: VP H150:1*1,01 | E151: 1.01 | M151: VP H150:1*1,01
B152: Celkem za | C152: 45 Podkladní a vedlejší konstrukce | G152: =SUM(G122:G151) -> 0 | I152: =SUM(I122:I151) -> 5.038432675 | K152: =SUM(K122:K151) -> 0 | O152: 4 | BA152: =SUM(BA122:BA151) -> 0 | BB152: =SUM(BB122:BB151) -> 0 | BC152: =SUM(BC122:BC151) -> 0 | BD152: =SUM(BD122:BD151) -> 0 | BE152: =SUM(BE122:BE151) -> 0
A153: Díl: | B153: 5 | C153: Komunikace | O153: 1
A154: 30 | B154: 566903111R00 | C154: Vyspravení podkladu po překopech kam.hrubě drceným | D154: t | E154: 52.1368 | G154: =E154*F154 -> 0 | H154: 1.1 | I154: =E154*H154 -> 57.35048 | J154: 0 | K154: =E154*J154 -> 0 | O154: 2 | AA154: 1 | AB154: 1 | AC154: 1 | AZ154: 1 | BA154: =IF(AZ154=1,G154,0) -> 0 | BB154: =IF(AZ154=2,G154,0) -> 0 | BC154: =IF(AZ154=3,G154,0) -> 0 | BD154: =IF(AZ154=4,G154,0) -> 0 | BE154: =IF(AZ154=5,G154,0) -> 0 | CA154: 1 | CB154: 1
C155: Stoka SK PVC DN250 :(61,90*0,90+1,60*(1,60-0,90)*4)*0,40*1,873 | E155: 45.0943 | M155: Stoka SK PVC DN250 :(61,90*0,90+1,60*(1,60-0,90)*4)*0,40*1,873
C156: Stoka SK PVC DN300:(5,80*1,00+1,60*(1,60-1,00)*2)*0,40*1,873 | E156: 5.7838 | M156: Stoka SK PVC DN300:(5,80*1,00+1,60*(1,60-1,00)*2)*0,40*1,873
C157: Přípojka PVC DN150:11,80*0,80*0,40*1,873 | E157: 7.0724 | M157: Přípojka PVC DN150:11,80*0,80*0,40*1,873
C158: Odpočet podílu panelové plochy parkoviště (manipulace s panely počítána v SO320):-(16,00*0,90+1,60*(1,60-0,90)*1)*0,20*1,873 | E158: -5.8138 | M158: Odpočet podílu panelové plochy parkoviště (manipulace s panely počítána v SO320):-(16,00*0,90+1,60*(1,60-0,90)*1)*0,20*1,873
B159: Celkem za | C159: 5 Komunikace | G159: =SUM(G153:G158) -> 0 | I159: =SUM(I153:I158) -> 57.35048 | K159: =SUM(K153:K158) -> 0 | O159: 4 | BA159: =SUM(BA153:BA158) -> 0 | BB159: =SUM(BB153:BB158) -> 0 | BC159: =SUM(BC153:BC158) -> 0 | BD159: =SUM(BD153:BD158) -> 0 | BE159: =SUM(BE153:BE158) -> 0
A160: Díl: | B160: 8 | C160: Trubní vedení | O160: 1
A161: 31 | B161: 871313121R00 | C161: Montáž trub z plastu, gumový kroužek, DN 150 | D161: m | E161: 11.8 | G161: =E161*F161 -> 0 | H161: 0 | I161: =E161*H161 -> 0 | J161: 0 | K161: =E161*J161 -> 0 | O161: 2 | AA161: 1 | AB161: 0 | AC161: 0 | AZ161: 1 | BA161: =IF(AZ161=1,G161,0) -> 0 | BB161: =IF(AZ161=2,G161,0) -> 0 | BC161: =IF(AZ161=3,G161,0) -> 0 | BD161: =IF(AZ161=4,G161,0) -> 0 | BE161: =IF(AZ161=5,G161,0) -> 0 | CA161: 1 | CB161: 0
C162: V položce je uvažováno s jedním spojem na 6 m potrubí. Položka je určena pro montáž potrubí z kanalizačních trub z plastu těsněných gumovým kroužkem v otevřeném výkopu ve sklonu do 20 %. | L162: V položce je uvažováno s jedním spojem na 6 m potrubí. Položka je určena pro montáž potrubí z kanalizačních trub z plastu těsněných gumovým kroužkem v otevřeném výkopu ve sklonu do 20 %. | O162: 3
C163: Stoka SK PVC DN250 a DN300: | E163: 0 | M163: Stoka SK PVC DN250 a DN300:
C164: Přípojka PVC DN150:11,80 | E164: 11.8 | M164: Přípojka PVC DN150:11,80
A165: 32 | B165: 871373121R00 | C165: Montáž trub z plastu, gumový kroužek, DN 300 | D165: m | E165: 67.7 | G165: =E165*F165 -> 0 | H165: 1e-05 | I165: =E165*H165 -> 0.000677 | J165: 0 | K165: =E165*J165 -> 0 | O165: 2 | AA165: 1 | AB165: 1 | AC165: 1 | AZ165: 1 | BA165: =IF(AZ165=1,G165,0) -> 0 | BB165: =IF(AZ165=2,G165,0) -> 0 | BC165: =IF(AZ165=3,G165,0) -> 0 | BD165: =IF(AZ165=4,G165,0) -> 0 | BE165: =IF(AZ165=5,G165,0) -> 0 | CA165: 1 | CB165: 1
C166: V položce je uvažováno s jedním spojem na 6 m potrubí. Položka je určena pro montáž potrubí z kanalizačních trub z plastu těsněných gumovým kroužkem v otevřeném výkopu ve sklonu do 20 %. | L166: V položce je uvažováno s jedním spojem na 6 m potrubí. Položka je určena pro montáž potrubí z kanalizačních trub z plastu těsněných gumovým kroužkem v otevřeném výkopu ve sklonu do 20 %. | O166: 3
C167: Stoka SK PVC DN250 :61,90 | E167: 61.9 | M167: Stoka SK PVC DN250 :61,90
C168: Stoka SK PVC DN300:5,80 | E168: 5.8 | M168: Stoka SK PVC DN300:5,80
A169: 33 | B169: 877313123R00 | C169: Montáž tvarovek jednoos. plast. gum.kroužek DN 150 | D169: kus | E169: 2 | G169: =E169*F169 -> 0 | H169: 1e-05 | I169: =E169*H169 -> 2e-05 | J169: 0 | K169: =E169*J169 -> 0 | O169: 2 | AA169: 1 | AB169: 1 | AC169: 1 | AZ169: 1 | BA169: =IF(AZ169=1,G169,0) -> 0 | BB169: =IF(AZ169=2,G169,0) -> 0 | BC169: =IF(AZ169=3,G169,0) -> 0 | BD169: =IF(AZ169=4,G169,0) -> 0 | BE169: =IF(AZ169=5,G169,0) -> 0 | CA169: 1 | CB169: 1
C170: Položka je určena pro montáž tvarovek jednoosých na potrubí z kanalizačních trub z plastu těsněných gumovým kroužkem v otevřeném výkopu. | L170: Položka je určena pro montáž tvarovek jednoosých na potrubí z kanalizačních trub z plastu těsněných gumovým kroužkem v otevřeném výkopu. | O170: 3
C171: Stoka SK PVC DN250 a DN300: | E171: 0 | M171: Stoka SK PVC DN250 a DN300:
C172: Přípojka PVC DN150 - Koleno PVC DN150/45°:2 | E172: 2 | M172: Přípojka PVC DN150 - Koleno PVC DN150/45°:2
A173: 34 | B173: 877373121R00 | C173: Montáž tvarovek odboč. plast. gum. kroužek DN 300 | D173: kus | E173: 1 | G173: =E173*F173 -> 0 | H173: 5e-05 | I173: =E173*H173 -> 5e-05 | J173: 0 | K173: =E173*J173 -> 0 | O173: 2 | AA173: 1 | AB173: 1 | AC173: 1 | AZ173: 1 | BA173: =IF(AZ173=1,G173,0) -> 0 | BB173: =IF(AZ173=2,G173,0) -> 0 | BC173: =IF(AZ173=3,G173,0) -> 0 | BD173: =IF(AZ173=4,G173,0) -> 0 | BE173: =IF(AZ173=5,G173,0) -> 0 | CA173: 1 | CB173: 1
C174: Položka je určena pro montáž tvarovek odbočných na potrubí z kanalizačních trub z plastu těsněných gumovým kroužkem v otevřeném výkopu. | L174: Položka je určena pro montáž tvarovek odbočných na potrubí z kanalizačních trub z plastu těsněných gumovým kroužkem v otevřeném výkopu. | O174: 3
C175: Stoka SK PVC DN250 a DN300: | E175: 0 | M175: Stoka SK PVC DN250 a DN300:
C176: Odbočka PVC DN250/150/45°:1 | E176: 1 | M176: Odbočka PVC DN250/150/45°:1
A177: 35 | B177: 891183439RX0 | C177: Přepojení potrubí PVC na přípojkách DN 150 včetně dodávky přepojovací tvarovky | D177: kus | E177: 1 | G177: =E177*F177 -> 0 | H177: 0.00046 | I177: =E177*H177 -> 0.00046 | J177: 0 | K177: =E177*J177 -> 0 | O177: 2 | AA177: 1 | AB177: 1 | AC177: 1 | AZ177: 1 | BA177: =IF(AZ177=1,G177,0) -> 0 | BB177: =IF(AZ177=2,G177,0) -> 0 | BC177: =IF(AZ177=3,G177,0) -> 0 | BD177: =IF(AZ177=4,G177,0) -> 0 | BE177: =IF(AZ177=5,G177,0) -> 0 | CA177: 1 | CB177: 1
C178: Položka obsahuje přerušení stávajícího potrubí DN150, dodávku a montáž tvarovky pro napojení nového PVC potrubí DN150 na stávající potrubí. | L178: Položka obsahuje přerušení stávajícího potrubí DN150, dodávku a montáž tvarovky pro napojení nového PVC potrubí DN150 na stávající potrubí. | O178: 3
C179: Stoka SK PVC DN250 a DN300: | E179: 0 | M179: Stoka SK PVC DN250 a DN300:
C180: Přípojka PVC DN150 - přepojení:1 | E180: 1 | M180: Přípojka PVC DN150 - přepojení:1
A181: 36 | B181: 891183440RX8 | C181: Přerušení stávajícího potrubí KT DN300 a jeno napojení na novou RŠ | D181: kus | E181: 1 | G181: =E181*F181 -> 0 | H181: 0.068 | I181: =E181*H181 -> 0.068 | J181: 0 | K181: =E181*J181 -> 0 | O181: 2 | AA181: 1 | AB181: 1 | AC181: 1 | AZ181: 1 | BA181: =IF(AZ181=1,G181,0) -> 0 | BB181: =IF(AZ181=2,G181,0) -> 0 | BC181: =IF(AZ181=3,G181,0) -> 0 | BD181: =IF(AZ181=4,G181,0) -> 0 | BE181: =IF(AZ181=5,G181,0) -> 0 | CA181: 1 | CB181: 1
C182: Položka obsahuje přerušení a výřez stávajícího potrubí KT DN300 a po osazení nové RŠ dopojení stávajícího potrubí z obou stran na tuto šachtu včetně dodávky příslušných tvarovek a spojovacích prvků dle projektové dokumentace. Součástí položky je lože a obsyp potrubí. | L182: Položka obsahuje přerušení a výřez stávajícího potrubí KT DN300 a po osazení nové RŠ dopojení stávajícího potrubí z obou stran na tuto šachtu včetně dodávky příslušných tvarovek a spojovacích prvků dle projektové dokumentace. Součástí položky je lože a obsyp potrubí. | O182: 3
A183: 37 | B183: 892601153R00 | C183: Čištění kanalizační stoky do DN 500, do 100 m | D183: m | E183: 67.7 | G183: =E183*F183 -> 0 | H183: 0 | I183: =E183*H183 -> 0 | J183: 0 | K183: =E183*J183 -> 0 | O183: 2 | AA183: 1 | AB183: 1 | AC183: 1 | AZ183: 1 | BA183: =IF(AZ183=1,G183,0) -> 0 | BB183: =IF(AZ183=2,G183,0) -> 0 | BC183: =IF(AZ183=3,G183,0) -> 0 | BD183: =IF(AZ183=4,G183,0) -> 0 | BE183: =IF(AZ183=5,G183,0) -> 0 | CA183: 1 | CB183: 1
C184: V položce je zakalkulováno: | L184: V položce je zakalkulováno: | O184: 3
C185: a) otevření a uzavření revizních šachet a čisticích kusů | L185: a) otevření a uzavření revizních šachet a čisticích kusů | O185: 3
C186: b) natažení vysokotlakých hadic k místu odkud se bude kanalizace čistit | L186: b) natažení vysokotlakých hadic k místu odkud se bude kanalizace čistit | O186: 3
C187: c) vyčištění potrubí tlakovou vodou nebo motorovým pérem. | L187: c) vyčištění potrubí tlakovou vodou nebo motorovým pérem. | O187: 3
C188: Stoka SK PVC DN250 :61,90 | E188: 61.9 | M188: Stoka SK PVC DN250 :61,90
C189: Stoka SK PVC DN300:5,80 | E189: 5.8 | M189: Stoka SK PVC DN300:5,80
A190: 38 | B190: 892855113R00 | C190: Kontrola kanalizace TV kamerou do 100 m | D190: m | E190: 79.5 | G190: =E190*F190 -> 0 | H190: 0 | I190: =E190*H190 -> 0 | J190: 0 | K190: =E190*J190 -> 0 | O190: 2 | AA190: 1 | AB190: 1 | AC190: 1 | AZ190: 1 | BA190: =IF(AZ190=1,G190,0) -> 0 | BB190: =IF(AZ190=2,G190,0) -> 0 | BC190: =IF(AZ190=3,G190,0) -> 0 | BD190: =IF(AZ190=4,G190,0) -> 0 | BE190: =IF(AZ190=5,G190,0) -> 0 | CA190: 1 | CB190: 1
C191: Provedení kaberové prohlídky včetně dodání elektronického záznamu na CD zadavateli a tištěné dokumentace průběhu kamerové prohlídky | L191: Provedení kaberové prohlídky včetně dodání elektronického záznamu na CD zadavateli a tištěné dokumentace průběhu kamerové prohlídky | O191: 3
C192: Stoka SK PVC DN250 :61,90 | E192: 61.9 | M192: Stoka SK PVC DN250 :61,90
C193: Stoka SK PVC DN300:5,80 | E193: 5.8 | M193: Stoka SK PVC DN300:5,80
C194: Přípojka PVC DN150:11,80 | E194: 11.8 | M194: Přípojka PVC DN150:11,80
A195: 39 | B195: 894421111RT1 | C195: Osazení betonových dílců šachet skruže rovné, na kroužek, do 0,5 t | D195: kus | E195: 5 | G195: =E195*F195 -> 0 | H195: 0 | I195: =E195*H195 -> 0 | J195: 0 | K195: =E195*J195 -> 0 | O195: 2 | AA195: 1 | AB195: 1 | AC195: 1 | AZ195: 1 | BA195: =IF(AZ195=1,G195,0) -> 0 | BB195: =IF(AZ195=2,G195,0) -> 0 | BC195: =IF(AZ195=3,G195,0) -> 0 | BD195: =IF(AZ195=4,G195,0) -> 0 | BE195: =IF(AZ195=5,G195,0) -> 0 | CA195: 1 | CB195: 1
C196: Položka je určena pro osazení betonových dílců šachet dle DIN 4034, skruže rovné na kroužek, hmotnost do 0,5 t. | L196: Položka je určena pro osazení betonových dílců šachet dle DIN 4034, skruže rovné na kroužek, hmotnost do 0,5 t. | O196: 3
C197: V položce nejsou zakalkulovány náklady na dodání betonových dílců; dílce se oceňují ve specifikaci. | L197: V položce nejsou zakalkulovány náklady na dodání betonových dílců; dílce se oceňují ve specifikaci. | O197: 3
C198: Stoka SK PVC DN250 a DN300: | E198: 0 | M198: Stoka SK PVC DN250 a DN300:
C199: Skruž H250:5 | E199: 5 | M199: Skruž H250:5
A200: 40 | B200: 894421112RT1 | C200: Osazení betonových dílců šachet skruže rovné, na kroužek, do 1,4 t | D200: kus | E200: 6 | G200: =E200*F200 -> 0 | H200: 0 | I200: =E200*H200 -> 0 | J200: 0 | K200: =E200*J200 -> 0 | O200: 2 | AA200: 1 | AB200: 1 | AC200: 1 | AZ200: 1 | BA200: =IF(AZ200=1,G200,0) -> 0 | BB200: =IF(AZ200=2,G200,0) -> 0 | BC200: =IF(AZ200=3,G200,0) -> 0 | BD200: =IF(AZ200=4,G200,0) -> 0 | BE200: =IF(AZ200=5,G200,0) -> 0 | CA200: 1 | CB200: 1
C201: Položka je určena pro osazení betonových dílců šachet dle DIN 4034, skruže rovné na kroužek, hmotnost přes 0,5 do 1,4 t. | L201: Položka je určena pro osazení betonových dílců šachet dle DIN 4034, skruže rovné na kroužek, hmotnost přes 0,5 do 1,4 t. | O201: 3
C202: V položce nejsou zakalkulovány náklady na dodání betonových dílců; dílce se oceňují ve specifikaci. | L202: V položce nejsou zakalkulovány náklady na dodání betonových dílců; dílce se oceňují ve specifikaci. | O202: 3
... 122 more rows

Sheet 320 3380320 KL
A1: POLOŽKOVÝ ROZPOČET
A2: Rozpočet | C2: 3380/320 | D2: Dešťová kanalizace | F2: JKSO | G2: 827.21.A3
A4: Objekt | F4: SKP
A5: 320 | C5: Dešťová kanalizace | F5: Měrná jednotka | G5: m
A6: Stavba | F6: Počet jednotek | G6: 0
A7: 3380 | C7: Lomnice n/P. Prodloužení sítí technické infrastruk | F7: Náklady na m.j. | G7: =IF(G6=0,,ROUND((F30+F32)/G6,1)) -> 0
A8: Projektant | C8: PVK Projekt s.r.o. | F8: Typ rozpočtu
A9: Zpracovatel projektu
A10: Objednatel | C10: Město Lomnice nad Popelkou
A11: Dodavatel | C11: . | F11: Zakázkové číslo
A12: Rozpočtoval | F12: Počet listů
A13: ROZPOČTOVÉ NÁKLADY
A14: Základní rozpočtové náklady
B15: HSV celkem | C15: ='320 3380320 Rek'!E13 -> 0
A16: Z | B16: PSV celkem | C16: ='320 3380320 Rek'!F13 -> 0
A17: R | B17: M práce celkem | C17: ='320 3380320 Rek'!H13 -> 0
A18: N | B18: M dodávky celkem | C18: ='320 3380320 Rek'!G13 -> 0
A19: ZRN celkem | C19: =SUM(C15:C18) -> 0
A21: HZS | C21: ='320 3380320 Rek'!I13 -> 0
A22: ZRN+HZS | C22: =C19+C21 -> 0
A23: ZRN+ost.náklady+HZS | C23: =C22+G23 -> 0
A24: Vypracoval | D24: Za zhotovitele | F24: Za objednatele
A25: Jméno : | D25: Jméno : | F25: Jméno :
A26: Datum : | D26: Datum : | F26: Datum :
A28: Podpis : | D28: Podpis: | F28: Podpis:
A30: Základ pro DPH | C30: 21 | D30: % | F30: =C23-F32 -> 0
A31: DPH | C31: =C30 -> 21 | D31: % | F31: =ROUND(PRODUCT(F30,C31/100),0) -> 0
A32: Základ pro DPH | C32: 0 | D32: % | F32: 0
A33: DPH | C33: =C32 -> 0 | D33: % | F33: =ROUND(PRODUCT(F32,C33/100),0) -> 0
A34: CENA ZA OBJEKT CELKEM | F34: =ROUND(SUM(F30:F33),0) -> 0
A36: Poznámka :

Sheet 320 3380320 Rek
A1: Stavba : | C1: 3380 Lomnice n/P. Prodloužení sítí technické infrastruk | G1: Rozpočet : | H1: 3380/320
A2: Objekt : | C2: 320 Dešťová kanalizace | G2: Dešťová kanalizace
A4: REKAPITULACE STAVEBNÍCH DÍLŮ
B6: Stavební díl | E6: HSV | F6: PSV | G6: Dodávka | H6: Montáž | I6: HZS
A7: ='320 3380320 Pol'!B7 -> 1 | B7: ='320 3380320 Pol'!C7 -> Zemní práce | E7: ='320 3380320 Pol'!BA144 -> 0 | F7: ='320 3380320 Pol'!BB144 -> 0 | G7: ='320 3380320 Pol'!BC144 -> 0 | H7: ='320 3380320 Pol'!BD144 -> 0 | I7: ='320 3380320 Pol'!BE144 -> 0
A8: ='320 3380320 Pol'!B145 -> 45 | B8: ='320 3380320 Pol'!C145 -> Podkladní a vedlejší konstrukce | E8: ='320 3380320 Pol'!BA166 -> 0 | F8: ='320 3380320 Pol'!BB166 -> 0 | G8: ='320 3380320 Pol'!BC166 -> 0 | H8: ='320 3380320 Pol'!BD166 -> 0 | I8: ='320 3380320 Pol'!BE166 -> 0
A9: ='320 3380320 Pol'!B167 -> 5 | B9: ='320 3380320 Pol'!C167 -> Komunikace | E9: ='320 3380320 Pol'!BA180 -> 0 | F9: ='320 3380320 Pol'!BB180 -> 0 | G9: ='320 3380320 Pol'!BC180 -> 0 | H9: ='320 3380320 Pol'!BD180 -> 0 | I9: ='320 3380320 Pol'!BE180 -> 0
A10: ='320 3380320 Pol'!B181 -> 8 | B10: ='320 3380320 Pol'!C181 -> Trubní vedení | E10: ='320 3380320 Pol'!BA306 -> 0 | F10: ='320 3380320 Pol'!BB306 -> 0 | G10: ='320 3380320 Pol'!BC306 -> 0 | H10: ='320 3380320 Pol'!BD306 -> 0 | I10: ='320 3380320 Pol'!BE306 -> 0
A11: ='320 3380320 Pol'!B307 -> 93 | B11: ='320 3380320 Pol'!C307 -> Dokončovací práce inženýrských staveb | E11: ='320 3380320 Pol'!BA333 -> 0 | F11: ='320 3380320 Pol'!BB333 -> 0 | G11: ='320 3380320 Pol'!BC333 -> 0 | H11: ='320 3380320 Pol'!BD333 -> 0 | I11: ='320 3380320 Pol'!BE333 -> 0
A12: ='320 3380320 Pol'!B334 -> 99 | B12: ='320 3380320 Pol'!C334 -> Staveništní přesun hmot | E12: ='320 3380320 Pol'!BA336 -> 0 | F12: ='320 3380320 Pol'!BB336 -> 0 | G12: ='320 3380320 Pol'!BC336 -> 0 | H12: ='320 3380320 Pol'!BD336 -> 0 | I12: ='320 3380320 Pol'!BE336 -> 0
B13: CELKEM OBJEKT | E13: =SUM(E7:E12) -> 0 | F13: =SUM(F7:F12) -> 0 | G13: =SUM(G7:G12) -> 0 | H13: =SUM(H7:H12) -> 0 | I13: =SUM(I7:I12) -> 0

Sheet 320 3380320 Pol
A1: Položkový rozpočet
A3: Stavba : | C3: 3380 Lomnice n/P. Prodloužení sítí technické infrastruk | E3: Rozpočet: | F3: ='320 3380320 Rek'!H1 -> 3380/320
A4: Objekt : | C4: 320 Dešťová kanalizace | E4: ='320 3380320 Rek'!G2 -> Dešťová kanalizace
A6: P.č. | B6: Číslo položky | C6: Název položky | D6: MJ | E6: množství | F6: cena / MJ | G6: celkem (Kč) | H6: Jednotková hmotnost | I6: Celková hmotnost | J6: Jednotková dem.hmot. | K6: Celková dem.hmot.
A7: Díl: | B7: 1 | C7: Zemní práce | O7: 1
A8: 1 | B8: 113107625R00 | C8: Odstranění podkladu nad 50 m2,kam.drcené tl.25 cm | D8: m2 | E8: 101.56 | G8: =E8*F8 -> 0 | H8: 0 | I8: =E8*H8 -> 0 | J8: -0.55 | K8: =E8*J8 -> -55.858 | O8: 2 | AA8: 1 | AB8: 1 | AC8: 1 | AZ8: 1 | BA8: =IF(AZ8=1,G8,0) -> 0 | BB8: =IF(AZ8=2,G8,0) -> 0 | BC8: =IF(AZ8=3,G8,0) -> 0 | BD8: =IF(AZ8=4,G8,0) -> 0 | BE8: =IF(AZ8=5,G8,0) -> 0 | CA8: 1 | CB8: 1
C9: Stoka DK PVC DN300:65,20*1,00+1,60*(1,60-1,00)*5 | E9: 70 | M9: Stoka DK PVC DN300:65,20*1,00+1,60*(1,60-1,00)*5
C10: Přípojka DK PVC DN300:16,20*1,00+1,60*(1,60-1,00)*1 | E10: 17.16 | M10: Přípojka DK PVC DN300:16,20*1,00+1,60*(1,60-1,00)*1
C11: Přepojení stávající kanalizace PVC DN250:11,20*0,90+1,60*(1,60-0,90)*1 | E11: 11.2 | M11: Přepojení stávající kanalizace PVC DN250:11,20*0,90+1,60*(1,60-0,90)*1
C12: Přípojky pro UV PVC DN150:2,00*2*0,80 | E12: 3.2 | M12: Přípojky pro UV PVC DN150:2,00*2*0,80
A13: 2 | B13: 113108415R00 | C13: Odstranění asfaltové vrstvy pl.nad 50 m2, tl.15 cm | D13: m2 | E13: 64.48 | G13: =E13*F13 -> 0 | H13: 0 | I13: =E13*H13 -> 0 | J13: -0.33 | K13: =E13*J13 -> -21.2784 | O13: 2 | AA13: 1 | AB13: 1 | AC13: 1 | AZ13: 1 | BA13: =IF(AZ13=1,G13,0) -> 0 | BB13: =IF(AZ13=2,G13,0) -> 0 | BC13: =IF(AZ13=3,G13,0) -> 0 | BD13: =IF(AZ13=4,G13,0) -> 0 | BE13: =IF(AZ13=5,G13,0) -> 0 | CA13: 1 | CB13: 1
C14: Stoka DK PVC DN300:65,20*1,00+1,60*(1,60-1,00)*5 | E14: 70 | M14: Stoka DK PVC DN300:65,20*1,00+1,60*(1,60-1,00)*5
C15: Přípojka DK PVC DN300:16,20*1,00+1,60*(1,60-1,00)*1 | E15: 17.16 | M15: Přípojka DK PVC DN300:16,20*1,00+1,60*(1,60-1,00)*1
C16: Přepojení stávající kanalizace PVC DN250:11,20*0,90+1,60*(1,60-0,90)*1 | E16: 11.2 | M16: Přepojení stávající kanalizace PVC DN250:11,20*0,90+1,60*(1,60-0,90)*1
C17: Přípojky pro UV PVC DN150:2,00*2*0,80 | E17: 3.2 | M17: Přípojky pro UV PVC DN150:2,00*2*0,80
C18: Odpočet podílu panelové plochy parkoviště (manipulace s panely počítána v SO320):-39,00*1,00+1,60*(1,60-1,00)*2 | E18: -37.08 | M18: Odpočet podílu panelové plochy parkoviště (manipulace s panely počítána v SO320):-39,00*1,00+1,60*(1,60-1,00)*2
A19: 3 | B19: 113151111R00 | C19: Rozebrání ploch ze silničních panelů pro opětovné pouřití | D19: m2 | E19: 310 | G19: =E19*F19 -> 0 | H19: 0 | I19: =E19*H19 -> 0 | J19: -0.355 | K19: =E19*J19 -> -110.05 | O19: 2 | AA19: 1 | AB19: 1 | AC19: 1 | AZ19: 1 | BA19: =IF(AZ19=1,G19,0) -> 0 | BB19: =IF(AZ19=2,G19,0) -> 0 | BC19: =IF(AZ19=3,G19,0) -> 0 | BD19: =IF(AZ19=4,G19,0) -> 0 | BE19: =IF(AZ19=5,G19,0) -> 0 | CA19: 1 | CB19: 1
C20: Plocha parkoviště:310,00 | E20: 310 | M20: Plocha parkoviště:310,00
A21: 4 | B21: 115109201RRX | C21: Přečerpávání nebo převedení splašků a dešť. vod | D21: h | E21: 150 | G21: =E21*F21 -> 0 | H21: 0 | I21: =E21*H21 -> 0 | J21: 0 | K21: =E21*J21 -> 0 | O21: 2 | AA21: 1 | AB21: 1 | AC21: 1 | AZ21: 1 | BA21: =IF(AZ21=1,G21,0) -> 0 | BB21: =IF(AZ21=2,G21,0) -> 0 | BC21: =IF(AZ21=3,G21,0) -> 0 | BD21: =IF(AZ21=4,G21,0) -> 0 | BE21: =IF(AZ21=5,G21,0) -> 0 | CA21: 1 | CB21: 1
C22: Převedení a čerpání splašků nebo dešťových vod dle zvolené technologie zhotovitele stavby. | L22: Převedení a čerpání splašků nebo dešťových vod dle zvolené technologie zhotovitele stavby. | O22: 3
C23: (Množství bude určeno na stavbě dle skutečnosti) | L23: (Množství bude určeno na stavbě dle skutečnosti) | O23: 3
A24: 5 | B24: 130001101RRX | C24: Příplatek za ztížené hloubení v blízkosti vedení | D24: m3 | E24: 68.5434 | G24: =E24*F24 -> 0 | H24: 0 | I24: =E24*H24 -> 0 | J24: 0 | K24: =E24*J24 -> 0 | O24: 2 | AA24: 1 | AB24: 1 | AC24: 1 | AZ24: 1 | BA24: =IF(AZ24=1,G24,0) -> 0 | BB24: =IF(AZ24=2,G24,0) -> 0 | BC24: =IF(AZ24=3,G24,0) -> 0 | BD24: =IF(AZ24=4,G24,0) -> 0 | BE24: =IF(AZ24=5,G24,0) -> 0 | CA24: 1 | CB24: 1
C25: Včetně případných nutných dokopávem a ručního výkopu podél sousedících inženýrských sítí včetně vyvěšení a zajištění sítí. | L25: Včetně případných nutných dokopávem a ručního výkopu podél sousedících inženýrských sítí včetně vyvěšení a zajištění sítí. | O25: 3
C26: Součástí položky jsou i nutné ruční kopané sondy předepsané projektovou dokumentací pro upřesnění směrového a výškového umístění sousedních vedení inženýrských sítí. | L26: Součástí položky jsou i nutné ruční kopané sondy předepsané projektovou dokumentací pro upřesnění směrového a výškového umístění sousedních vedení inženýrských sítí. | O26: 3
C27: Stoka DK PVC DN300 vč. přípojek a propojů DK: | E27: 0 | M27: Stoka DK PVC DN300 vč. přípojek a propojů DK:
C28: Výkopy: | E28: 0 | M28: Výkopy:
C29: V hornině tř. 3 - 4 - 28%:244,7980*0,28 | E29: 68.5434 | M29: V hornině tř. 3 - 4 - 28%:244,7980*0,28
A30: 6 | B30: 130901123RT3 | C30: Bourání konstrukcí ze železobetonu ve vykopávkách bagrem s kladivem | D30: m3 | E30: 1.537 | G30: =E30*F30 -> 0 | H30: 0 | I30: =E30*H30 -> 0 | J30: -2.5 | K30: =E30*J30 -> -3.8425 | O30: 2 | AA30: 1 | AB30: 1 | AC30: 1 | AZ30: 1 | BA30: =IF(AZ30=1,G30,0) -> 0 | BB30: =IF(AZ30=2,G30,0) -> 0 | BC30: =IF(AZ30=3,G30,0) -> 0 | BD30: =IF(AZ30=4,G30,0) -> 0 | BE30: =IF(AZ30=5,G30,0) -> 0 | CA30: 1 | CB30: 1
C31: Položka obsahuje odstranění materiálu obklopujícího betonové a železobetonové konstrukce v míře nutné pro vyzvednutí, rozpojení konstrukcí, uchopení a vyzvednutí konstrukce z výkopu a uložení na dopravní prostředek. | L31: Položka obsahuje odstranění materiálu obklopujícího betonové a železobetonové konstrukce v míře nutné pro vyzvednutí, rozpojení konstrukcí, uchopení a vyzvednutí konstrukce z výkopu a uložení na dopravní prostředek. | O31: 3
A32: 7 | B32: 132201212R00 | C32: Hloubení rýh š.do 200 cm hor.3 do 1000m3,STROJNĚ | D32: m3 | E32: 122.399 | G32: =E32*F32 -> 0 | H32: 0 | I32: =E32*H32 -> 0 | J32: 0 | K32: =E32*J32 -> 0 | O32: 2 | AA32: 1 | AB32: 1 | AC32: 1 | AZ32: 1 | BA32: =IF(AZ32=1,G32,0) -> 0 | BB32: =IF(AZ32=2,G32,0) -> 0 | BC32: =IF(AZ32=3,G32,0) -> 0 | BD32: =IF(AZ32=4,G32,0) -> 0 | BE32: =IF(AZ32=5,G32,0) -> 0 | CA32: 1 | CB32: 1
C33: Položka obsahuje hloubení rýh traktorbagrem, naložení výkopku na dopravní prostředek pro svislé, nebo vodorovné přemístění, popř. přemístění výkopku do 3 m (po povrchu území), případné zajištění rypadel polštáři, udržování pracoviště a ochranu výkopiště proti stékání srážkové vody z okolního terénu i s jejím odvodněním, nebo odvedením, přesekání a odstranění kořenů ve výkopišti, odstranění napadávek, urovnání dna výkopu. | L33: Položka obsahuje hloubení rýh traktorbagrem, naložení výkopku na dopravní prostředek pro svislé, nebo vodorovné přemístění, popř. přemístění výkopku do 3 m (po povrchu území), případné zajištění rypadel polštáři, udržování pracoviště a ochranu výkopiště proti stékání srážkové vody z okolního terénu i s jejím odvodněním, nebo odvedením, přesekání a odstranění kořenů ve výkopišti, odstranění napadávek, urovnání dna výkopu. | O33: 3
C34: Stoka DK PVC DN300 vč. přípojek a propojů DK: | E34: 0 | M34: Stoka DK PVC DN300 vč. přípojek a propojů DK:
C35: Výkopy: | E35: 0 | M35: Výkopy:
C36: Začátek provozního součtu | E36: 0 | M36: Začátek provozního součtu
C37: Stoka DK PVC DN300:40,01*1,00*(2,78+2,85)/2 | E37: 112.6281 | M37: Stoka DK PVC DN300:40,01*1,00*(2,78+2,85)/2
C38: (59,44-41,01)*1,00*(2,85+2,71)/2 | E38: 51.2354 | M38: (59,44-41,01)*1,00*(2,85+2,71)/2
C39: (65,20-59,44)*1,00*(2,71+3,19)/2 | E39: 16.992 | M39: (65,20-59,44)*1,00*(2,71+3,19)/2
C40: Přípojka DK PVC DN300:16,20*1,00*(2,85+2,83)/2 | E40: 46.008 | M40: Přípojka DK PVC DN300:16,20*1,00*(2,85+2,83)/2
C41: Přepojení stávající kanalizace PVC DN250:11,20*0,90*(2,74+2,80)/2 | E41: 27.9216 | M41: Přepojení stávající kanalizace PVC DN250:11,20*0,90*(2,74+2,80)/2
C42: Prohloubení pro RŠ:1,60*1,60*0,20*7 | E42: 3.584 | M42: Prohloubení pro RŠ:1,60*1,60*0,20*7
C43: Rozšíření pro RŠ:1,60*(1,60-1,00)*(2,76+2,74+2,85+2,71+3,19+2,83) | E43: 16.3968 | M43: Rozšíření pro RŠ:1,60*(1,60-1,00)*(2,76+2,74+2,85+2,71+3,19+2,83)
C44: 1,60*(1,60-0,90)*2,80 | E44: 3.136 | M44: 1,60*(1,60-0,90)*2,80
C45: Přípojky pro UV PVC DN150:2,00*2*0,80*(2,70+2,00)/2 | E45: 7.52 | M45: Přípojky pro UV PVC DN150:2,00*2*0,80*(2,70+2,00)/2
C46: Odpoče objemu konstrukcí bomunikací a ZP: | E46: 0 | M46: Odpoče objemu konstrukcí bomunikací a ZP:
C47: Stoka DK PVC DN300:-(65,20*1,00+1,60*(1,60-1,00)*5)*0,40 | E47: -28 | M47: Stoka DK PVC DN300:-(65,20*1,00+1,60*(1,60-1,00)*5)*0,40
C48: Přípojka DK PVC DN300:-(16,20*1,00+1,60*(1,60-1,00)*1)*0,40 | E48: -6.864 | M48: Přípojka DK PVC DN300:-(16,20*1,00+1,60*(1,60-1,00)*1)*0,40
C49: Přepojení stávající kanalizace PVC DN250:-(11,20*0,90+1,60*(1,60-0,90)*1)*0,40 | E49: -4.48 | M49: Přepojení stávající kanalizace PVC DN250:-(11,20*0,90+1,60*(1,60-0,90)*1)*0,40
C50: Přípojky pro UV PVC DN150:-2,00*2*0,80*0,40 | E50: -1.28 | M50: Přípojky pro UV PVC DN150:-2,00*2*0,80*0,40
C51: Konec provozního součtu | E51: 244.7979 | M51: Konec provozního součtu
C52: V hornině tř. 3 - 50%:244,7980*0,5 | E52: 122.399 | M52: V hornině tř. 3 - 50%:244,7980*0,5
A53: 8 | B53: 132201219R00 | C53: Přípl.za lepivost,hloubení rýh 200cm,hor.3,STROJNĚ | D53: m3 | E53: 61.1995 | G53: =E53*F53 -> 0 | H53: 0 | I53: =E53*H53 -> 0 | J53: 0 | K53: =E53*J53 -> 0 | O53: 2 | AA53: 1 | AB53: 1 | AC53: 1 | AZ53: 1 | BA53: =IF(AZ53=1,G53,0) -> 0 | BB53: =IF(AZ53=2,G53,0) -> 0 | BC53: =IF(AZ53=3,G53,0) -> 0 | BD53: =IF(AZ53=4,G53,0) -> 0 | BE53: =IF(AZ53=5,G53,0) -> 0 | CA53: 1 | CB53: 1
C54: Stoka DK PVC DN300 vč. přípojek a propojů DK: | E54: 0 | M54: Stoka DK PVC DN300 vč. přípojek a propojů DK:
C55: Výkopy: | E55: 0 | M55: Výkopy:
C56: V hornině tř. 3 - 50%:244,7980*0,5*0,5 | E56: 61.1995 | M56: V hornině tř. 3 - 50%:244,7980*0,5*0,5
A57: 9 | B57: 132301212R00 | C57: Hloubení rýh š.do 200 cm hor.4 do 1000 m3, STROJNĚ | D57: m3 | E57: 122.399 | G57: =E57*F57 -> 0 | H57: 0 | I57: =E57*H57 -> 0 | J57: 0 | K57: =E57*J57 -> 0 | O57: 2 | AA57: 1 | AB57: 1 | AC57: 1 | AZ57: 1 | BA57: =IF(AZ57=1,G57,0) -> 0 | BB57: =IF(AZ57=2,G57,0) -> 0 | BC57: =IF(AZ57=3,G57,0) -> 0 | BD57: =IF(AZ57=4,G57,0) -> 0 | BE57: =IF(AZ57=5,G57,0) -> 0 | CA57: 1 | CB57: 1
C58: Položka obsahuje hloubení rýh traktorbagrem, naložení výkopku na dopravní prostředek pro svislé, nebo vodorovné přemístění, popř. přemístění výkopku do 3 m (po povrchu území), případné zajištění rypadel polštáři, udržování pracoviště a ochranu výkopiště proti stékání srážkové vody z okolního terénu i s jejím odvodněním, nebo odvedením, přesekání a odstranění kořenů ve výkopišti, odstranění napadávek, urovnání dna výkopu. | L58: Položka obsahuje hloubení rýh traktorbagrem, naložení výkopku na dopravní prostředek pro svislé, nebo vodorovné přemístění, popř. přemístění výkopku do 3 m (po povrchu území), případné zajištění rypadel polštáři, udržování pracoviště a ochranu výkopiště proti stékání srážkové vody z okolního terénu i s jejím odvodněním, nebo odvedením, přesekání a odstranění kořenů ve výkopišti, odstranění napadávek, urovnání dna výkopu. | O58: 3
C59: Stoka DK PVC DN300 vč. přípojek a propojů DK: | E59: 0 | M59: Stoka DK PVC DN300 vč. přípojek a propojů DK:
C60: Výkopy: | E60: 0 | M60: Výkopy:
C61: V hornině tř. 4 - 50%:244,7980*0,5 | E61: 122.399 | M61: V hornině tř. 4 - 50%:244,7980*0,5
A62: 10 | B62: 132301219R00 | C62: Přípl.za lepivost,hloubení rýh 200cm,hor.4,STROJNĚ | D62: m3 | E62: 61.1995 | G62: =E62*F62 -> 0 | H62: 0 | I62: =E62*H62 -> 0 | J62: 0 | K62: =E62*J62 -> 0 | O62: 2 | AA62: 1 | AB62: 1 | AC62: 1 | AZ62: 1 | BA62: =IF(AZ62=1,G62,0) -> 0 | BB62: =IF(AZ62=2,G62,0) -> 0 | BC62: =IF(AZ62=3,G62,0) -> 0 | BD62: =IF(AZ62=4,G62,0) -> 0 | BE62: =IF(AZ62=5,G62,0) -> 0 | CA62: 1 | CB62: 1
C63: Stoka DK PVC DN300 vč. přípojek a propojů DK: | E63: 0 | M63: Stoka DK PVC DN300 vč. přípojek a propojů DK:
C64: Výkopy: | E64: 0 | M64: Výkopy:
C65: V hornině tř. 4 - 50%:244,7980*0,5*0,5 | E65: 61.1995 | M65: V hornině tř. 4 - 50%:244,7980*0,5*0,5
A66: 11 | B66: 151101102R00 | C66: Pažení a rozepření stěn rýh - příložné - hl.do 4 m | D66: m2 | E66: 534.5751 | G66: =E66*F66 -> 0 | H66: 0.00086 | I66: =E66*H66 -> 0.459734586 | J66: 0 | K66: =E66*J66 -> 0 | O66: 2 | AA66: 1 | AB66: 1 | AC66: 1 | AZ66: 1 | BA66: =IF(AZ66=1,G66,0) -> 0 | BB66: =IF(AZ66=2,G66,0) -> 0 | BC66: =IF(AZ66=3,G66,0) -> 0 | BD66: =IF(AZ66=4,G66,0) -> 0 | BE66: =IF(AZ66=5,G66,0) -> 0 | CA66: 1 | CB66: 1
C67: Stoka DK PVC DN300 vč. přípojek a propojů DK: | E67: 0 | M67: Stoka DK PVC DN300 vč. přípojek a propojů DK:
C68: Výkopy: | E68: 0 | M68: Výkopy:
C69: Stoka DK PVC DN300:40,01*(2,78+2,85)/2*2 | E69: 225.2563 | M69: Stoka DK PVC DN300:40,01*(2,78+2,85)/2*2
C70: (59,44-41,01)*(2,85+2,71)/2*2 | E70: 102.4708 | M70: (59,44-41,01)*(2,85+2,71)/2*2
C71: (65,20-59,44)*(2,71+3,19)/2*2 | E71: 33.984 | M71: (65,20-59,44)*(2,71+3,19)/2*2
C72: Přípojka DK PVC DN300:16,20*(2,85+2,83)/2*2 | E72: 92.016 | M72: Přípojka DK PVC DN300:16,20*(2,85+2,83)/2*2
C73: Přepojení stávající kanalizace PVC DN250:11,20*(2,74+2,80)/2*2 | E73: 62.048 | M73: Přepojení stávající kanalizace PVC DN250:11,20*(2,74+2,80)/2*2
C74: Přípojky pro UV PVC DN150:2,00*2*(2,70+2,00)/2*2 | E74: 18.8 | M74: Přípojky pro UV PVC DN150:2,00*2*(2,70+2,00)/2*2
A75: 12 | B75: 151101112R00 | C75: Odstranění pažení stěn rýh - příložné - hl. do 4 m | D75: m2 | E75: 534.5751 | G75: =E75*F75 -> 0 | H75: 0 | I75: =E75*H75 -> 0 | J75: 0 | K75: =E75*J75 -> 0 | O75: 2 | AA75: 1 | AB75: 1 | AC75: 1 | AZ75: 1 | BA75: =IF(AZ75=1,G75,0) -> 0 | BB75: =IF(AZ75=2,G75,0) -> 0 | BC75: =IF(AZ75=3,G75,0) -> 0 | BD75: =IF(AZ75=4,G75,0) -> 0 | BE75: =IF(AZ75=5,G75,0) -> 0 | CA75: 1 | CB75: 1
C76: Stoka DK PVC DN300 vč. přípojek a propojů DK: | E76: 0 | M76: Stoka DK PVC DN300 vč. přípojek a propojů DK:
C77: Výkopy: | E77: 0 | M77: Výkopy:
C78: Stoka DK PVC DN300:40,01*(2,78+2,85)/2*2 | E78: 225.2563 | M78: Stoka DK PVC DN300:40,01*(2,78+2,85)/2*2
C79: (59,44-41,01)*(2,85+2,71)/2*2 | E79: 102.4708 | M79: (59,44-41,01)*(2,85+2,71)/2*2
C80: (65,20-59,44)*(2,71+3,19)/2*2 | E80: 33.984 | M80: (65,20-59,44)*(2,71+3,19)/2*2
C81: Přípojka DK PVC DN300:16,20*(2,85+2,83)/2*2 | E81: 92.016 | M81: Přípojka DK PVC DN300:16,20*(2,85+2,83)/2*2
C82: Přepojení stávající kanalizace PVC DN250:11,20*(2,74+2,80)/2*2 | E82: 62.048 | M82: Přepojení stávající kanalizace PVC DN250:11,20*(2,74+2,80)/2*2
C83: Přípojky pro UV PVC DN150:2,00*2*(2,70+2,00)/2*2 | E83: 18.8 | M83: Přípojky pro UV PVC DN150:2,00*2*(2,70+2,00)/2*2
A84: 13 | B84: 162701105RSZ | C84: Vodorovné přemístění výkopku z hor.1-7 na skládku zhotovitele | D84: m3 | E84: 244.798 | G84: =E84*F84 -> 0 | H84: 0 | I84: =E84*H84 -> 0 | J84: 0 | K84: =E84*J84 -> 0 | O84: 2 | AA84: 1 | AB84: 1 | AC84: 1 | AZ84: 1 | BA84: =IF(AZ84=1,G84,0) -> 0 | BB84: =IF(AZ84=2,G84,0) -> 0 | BC84: =IF(AZ84=3,G84,0) -> 0 | BD84: =IF(AZ84=4,G84,0) -> 0 | BE84: =IF(AZ84=5,G84,0) -> 0 | CA84: 1 | CB84: 1
C85: Stoka DK PVC DN300 vč. přípojek a propojů DK: | E85: 0 | M85: Stoka DK PVC DN300 vč. přípojek a propojů DK:
C86: Výkopy: | E86: 0 | M86: Výkopy:
C87: V hornině tř. 3 - 4:244,7980 | E87: 244.798 | M87: V hornině tř. 3 - 4:244,7980
A88: 14 | B88: 174101101R00 | C88: Zásyp jam, rýh, šachet se zhutněním | D88: m3 | E88: 150.2556 | G88: =E88*F88 -> 0 | H88: 0 | I88: =E88*H88 -> 0 | J88: 0 | K88: =E88*J88 -> 0 | O88: 2 | AA88: 1 | AB88: 1 | AC88: 1 | AZ88: 1 | BA88: =IF(AZ88=1,G88,0) -> 0 | BB88: =IF(AZ88=2,G88,0) -> 0 | BC88: =IF(AZ88=3,G88,0) -> 0 | BD88: =IF(AZ88=4,G88,0) -> 0 | BE88: =IF(AZ88=5,G88,0) -> 0 | CA88: 1 | CB88: 1
C89: Položka obsahuje strojní přemístění materiálu pro zásyp ze vzdálenosti do 10 m od okraje zásypu. | L89: Položka obsahuje strojní přemístění materiálu pro zásyp ze vzdálenosti do 10 m od okraje zásypu. | O89: 3
O90: 3
C91: Zásyp ŠD fr. 0-63 mm:150,2556 | E91: 150.2556 | M91: Zásyp ŠD fr. 0-63 mm:150,2556
C92: Začátek provozního součtu | E92: 0 | M92: Začátek provozního součtu
C93: Stoka DK PVC DN300 vč. přípojek a propojů DK: | E93: 0 | M93: Stoka DK PVC DN300 vč. přípojek a propojů DK:
C94: Výkopy: | E94: 0 | M94: Výkopy:
C95: V hornině tř. 3 - 4:244,7980 | E95: 244.798 | M95: V hornině tř. 3 - 4:244,7980
C96: Odpočet lože, potrubí a obsypů: | E96: 0 | M96: Odpočet lože, potrubí a obsypů:
C97: Stoka DK PVC DN300:-65,20*1,00*(0,15+0,30+0,30) | E97: -48.9 | M97: Stoka DK PVC DN300:-65,20*1,00*(0,15+0,30+0,30)
C98: Přípojka DK PVC DN300:-16,20*1,00*(0,15+0,30+0,30) | E98: -12.15 | M98: Přípojka DK PVC DN300:-16,20*1,00*(0,15+0,30+0,30)
C99: Přepojení stávající kanalizace PVC DN250:-11,20*0,90*(0,15+0,25+0,30) | E99: -7.056 | M99: Přepojení stávající kanalizace PVC DN250:-11,20*0,90*(0,15+0,25+0,30)
C100: Přípojky pro UV PVC DN150:-2,00*2*0,80*(0,15+0,15+0,30) | E100: -1.92 | M100: Přípojky pro UV PVC DN150:-2,00*2*0,80*(0,15+0,15+0,30)
C101: Odpočet objemu konstrukce RŠ:-24,5164 | E101: -24.5164 | M101: Odpočet objemu konstrukce RŠ:-24,5164
C102: Konec provozního součtu | E102: 150.2556 | M102: Konec provozního součtu
A103: 15 | B103: 175101101R00 | C103: Obsyp potrubí bez prohození sypaniny | D103: m3 | E103: 48.1058 | G103: =E103*F103 -> 0 | H103: 0 | I103: =E103*H103 -> 0 | J103: 0 | K103: =E103*J103 -> 0 | O103: 2 | AA103: 1 | AB103: 1 | AC103: 1 | AZ103: 1 | BA103: =IF(AZ103=1,G103,0) -> 0 | BB103: =IF(AZ103=2,G103,0) -> 0 | BC103: =IF(AZ103=3,G103,0) -> 0 | BD103: =IF(AZ103=4,G103,0) -> 0 | BE103: =IF(AZ103=5,G103,0) -> 0 | CA103: 1 | CB103: 1
C104: Stoka DK PVC DN300:65,20*(1,00*(0,30+0,30)-0,15^2*Pi) | E104: 34.5113 | M104: Stoka DK PVC DN300:65,20*(1,00*(0,30+0,30)-0,15^2*Pi)
C105: Přípojka DK PVC DN300:16,20*(1,00*(0,30+0,30)-0,15^2*Pi) | E105: 8.5749 | M105: Přípojka DK PVC DN300:16,20*(1,00*(0,30+0,30)-0,15^2*Pi)
C106: Přepojení stávající kanalizace PVC DN250:11,20*(0,90*(0,25+0,30)-0,125^2*Pi) | E106: 4.9942 | M106: Přepojení stávající kanalizace PVC DN250:11,20*(0,90*(0,25+0,30)-0,125^2*Pi)
C107: Přípojky pro UV PVC DN150:2,00*2*(0,80*(0,15+0,30)*0,075^2*Pi) | E107: 0.0254 | M107: Přípojky pro UV PVC DN150:2,00*2*(0,80*(0,15+0,30)*0,075^2*Pi)
A108: 16 | B108: 199000002R00 | C108: Poplatek za skládku horniny 1- 7 č. dle katal. odpadů 17 05 04 | D108: m3 | E108: 244.798 | G108: =E108*F108 -> 0 | H108: 0 | I108: =E108*H108 -> 0 | J108: 0 | K108: =E108*J108 -> 0 | O108: 2 | AA108: 1 | AB108: 1 | AC108: 1 | AZ108: 1 | BA108: =IF(AZ108=1,G108,0) -> 0 | BB108: =IF(AZ108=2,G108,0) -> 0 | BC108: =IF(AZ108=3,G108,0) -> 0 | BD108: =IF(AZ108=4,G108,0) -> 0 | BE108: =IF(AZ108=5,G108,0) -> 0 | CA108: 1 | CB108: 1
C109: Stoka DK PVC DN300 vč. přípojek a propojů DK: | E109: 0 | M109: Stoka DK PVC DN300 vč. přípojek a propojů DK:
C110: Výkopy: | E110: 0 | M110: Výkopy:
C111: V hornině tř. 3 - 4:244,7980 | E111: 244.798 | M111: V hornině tř. 3 - 4:244,7980
A112: 17 | B112: 919735112R00 | C112: Řezání stávajícího živičného krytu tl. 5 - 10 cm | D112: m | E112: 131.44 | G112: =E112*F112 -> 0 | H112: 0 | I112: =E112*H112 -> 0 | J112: 0 | K112: =E112*J112 -> 0 | O112: 2 | AA112: 1 | AB112: 1 | AC112: 1 | AZ112: 1 | BA112: =IF(AZ112=1,G112,0) -> 0 | BB112: =IF(AZ112=2,G112,0) -> 0 | BC112: =IF(AZ112=3,G112,0) -> 0 | BD112: =IF(AZ112=4,G112,0) -> 0 | BE112: =IF(AZ112=5,G112,0) -> 0 | CA112: 1 | CB112: 1
C113: Stoka DK PVC DN300:65,20*2+1,60*2+(1,60-1,00)*8 | E113: 138.4 | M113: Stoka DK PVC DN300:65,20*2+1,60*2+(1,60-1,00)*8
C114: Přípojka DK PVC DN300:16,20*2+1,60*1+(1,60-1,00)*1 | E114: 34.6 | M114: Přípojka DK PVC DN300:16,20*2+1,60*1+(1,60-1,00)*1
C115: Přepojení stávající kanalizace PVC DN250:11,20*2+1,60*1+(1,60-1,00)*1 | E115: 24.6 | M115: Přepojení stávající kanalizace PVC DN250:11,20*2+1,60*1+(1,60-1,00)*1
C116: Přípojky pro UV PVC DN150:2,00*2*2 | E116: 8 | M116: Přípojky pro UV PVC DN150:2,00*2*2
C117: Odpočet podílu panelové plochy parkoviště (manipulace s panely počítána v SO320):-39,00*2+1,60*(1,60-1,00)*4 | E117: -74.16 | M117: Odpočet podílu panelové plochy parkoviště (manipulace s panely počítána v SO320):-39,00*2+1,60*(1,60-1,00)*4
A118: 18 | B118: 979081111R00 | C118: Odvoz suti a vybour. hmot na skládku do 1 km Silniční panely | D118: t | E118: 207.7 | G118: =E118*F118 -> 0 | H118: 0 | I118: =E118*H118 -> 0 | J118: 0 | K118: =E118*J118 -> 0 | O118: 2 | AA118: 1 | AB118: 0 | AC118: 0 | AZ118: 1 | BA118: =IF(AZ118=1,G118,0) -> 0 | BB118: =IF(AZ118=2,G118,0) -> 0 | BC118: =IF(AZ118=3,G118,0) -> 0 | BD118: =IF(AZ118=4,G118,0) -> 0 | BE118: =IF(AZ118=5,G118,0) -> 0 | CA118: 1 | CB118: 0
C119: Doprava panelů ze stavby na meziskládku a z meziskládky na stavbu | L119: Doprava panelů ze stavby na meziskládku a z meziskládky na stavbu | O119: 3
A120: 19 | B120: 979082113RSZ | C120: Vodorovná doprava suti po suchu na skládku zhotovitele | D120: t | E120: 77.1364 | G120: =E120*F120 -> 0 | H120: 0 | I120: =E120*H120 -> 0 | J120: 0 | K120: =E120*J120 -> 0 | O120: 2 | AA120: 1 | AB120: 1 | AC120: 1 | AZ120: 1 | BA120: =IF(AZ120=1,G120,0) -> 0 | BB120: =IF(AZ120=2,G120,0) -> 0 | BC120: =IF(AZ120=3,G120,0) -> 0 | BD120: =IF(AZ120=4,G120,0) -> 0 | BE120: =IF(AZ120=5,G120,0) -> 0 | CA120: 1 | CB120: 1
A121: 20 | B121: 979086112R00 | C121: Nakládání nebo skládání suti a vybouraných hmot Silniční panely | D121: t | E121: 207.7 | G121: =E121*F121 -> 0 | H121: 0 | I121: =E121*H121 -> 0 | J121: 0 | K121: =E121*J121 -> 0 | O121: 2 | AA121: 1 | AB121: 1 | AC121: 1 | AZ121: 1 | BA121: =IF(AZ121=1,G121,0) -> 0 | BB121: =IF(AZ121=2,G121,0) -> 0 | BC121: =IF(AZ121=3,G121,0) -> 0 | BD121: =IF(AZ121=4,G121,0) -> 0 | BE121: =IF(AZ121=5,G121,0) -> 0 | CA121: 1 | CB121: 1
C122: Naložení a složení panelů na stavbě a na meziskládce | L122: Naložení a složení panelů na stavbě a na meziskládce | O122: 3
A123: 21 | B123: 979089001R00 | C123: Poplatek za skládku stavební suti štěrky z komunikací, skupina odpadu 010408 | D123: t | E123: 55.858 | G123: =E123*F123 -> 0 | H123: 0 | I123: =E123*H123 -> 0 | J123: 0 | K123: =E123*J123 -> 0 | O123: 2 | AA123: 1 | AB123: 1 | AC123: 1 | AZ123: 1 | BA123: =IF(AZ123=1,G123,0) -> 0 | BB123: =IF(AZ123=2,G123,0) -> 0 | BC123: =IF(AZ123=3,G123,0) -> 0 | BD123: =IF(AZ123=4,G123,0) -> 0 | BE123: =IF(AZ123=5,G123,0) -> 0 | CA123: 1 | CB123: 1
A124: 22 | B124: 979999995R00 | C124: Poplatek za reciklaci asfaltu, kusovost do 1600cm2 skupina 170302 | D124: t | E124: 21.2784 | G124: =E124*F124 -> 0 | H124: 0 | I124: =E124*H124 -> 0 | J124: 0 | K124: =E124*J124 -> 0 | O124: 2 | AA124: 1 | AB124: 1 | AC124: 1 | AZ124: 1 | BA124: =IF(AZ124=1,G124,0) -> 0 | BB124: =IF(AZ124=2,G124,0) -> 0 | BC124: =IF(AZ124=3,G124,0) -> 0 | BD124: =IF(AZ124=4,G124,0) -> 0 | BE124: =IF(AZ124=5,G124,0) -> 0 | CA124: 1 | CB124: 1
C125: Položka je určena pro suť o velikosti kusu do 30x30 cm (technologický materiál určený k recyklaci). | L125: Položka je určena pro suť o velikosti kusu do 30x30 cm (technologický materiál určený k recyklaci). | O125: 3
A126: 23 | B126: 58337308.R | C126: Štěrkopísek frakce 0-2 tř.B | D126: t | E126: 95.862 | G126: =E126*F126 -> 0 | H126: 1 | I126: =E126*H126 -> 95.862 | K126: =E126*J126 -> 0 | O126: 2 | AA126: 3 | AB126: 1 | AC126: 58337308.R | AZ126: 1 | BA126: =IF(AZ126=1,G126,0) -> 0 | BB126: =IF(AZ126=2,G126,0) -> 0 | BC126: =IF(AZ126=3,G126,0) -> 0 | BD126: =IF(AZ126=4,G126,0) -> 0 | BE126: =IF(AZ126=5,G126,0) -> 0 | CA126: 3 | CB126: 1
C127: Stoka DK PVC DN300:65,20*(1,00*(0,30+0,30)-0,15^2*Pi)*1,973*1,01 | E127: 68.7717 | M127: Stoka DK PVC DN300:65,20*(1,00*(0,30+0,30)-0,15^2*Pi)*1,973*1,01
C128: Přípojka DK PVC DN300:16,20*(1,00*(0,30+0,30)-0,15^2*Pi)*1,973*1,01 | E128: 17.0874 | M128: Přípojka DK PVC DN300:16,20*(1,00*(0,30+0,30)-0,15^2*Pi)*1,973*1,01
C129: Přepojení stávající kanalizace PVC DN250:11,20*(0,90*(0,25+0,30)-0,125^2*Pi)*1,973*1,01 | E129: 9.9521 | M129: Přepojení stávající kanalizace PVC DN250:11,20*(0,90*(0,25+0,30)-0,125^2*Pi)*1,973*1,01
C130: Přípojky pro UV PVC DN150:2,00*2*(0,80*(0,15+0,30)*0,075^2*Pi)*1,973*1,01 | E130: 0.0507 | M130: Přípojky pro UV PVC DN150:2,00*2*(0,80*(0,15+0,30)*0,075^2*Pi)*1,973*1,01
A131: 24 | B131: 58344197R | C131: Štěrkodrtě frakce 0-63 A | D131: t | E131: 284.243 | G131: =E131*F131 -> 0 | H131: 1 | I131: =E131*H131 -> 284.243 | K131: =E131*J131 -> 0 | O131: 2 | AA131: 3 | AB131: 1 | AC131: 58344197R | AZ131: 1 | BA131: =IF(AZ131=1,G131,0) -> 0 | BB131: =IF(AZ131=2,G131,0) -> 0 | BC131: =IF(AZ131=3,G131,0) -> 0 | BD131: =IF(AZ131=4,G131,0) -> 0 | BE131: =IF(AZ131=5,G131,0) -> 0 | CA131: 3 | CB131: 1
C132: Zásyp ŠD fr. 0-63 mm:150,2556*1,873*1,01 | E132: 284.243 | M132: Zásyp ŠD fr. 0-63 mm:150,2556*1,873*1,01
C133: Začátek provozního součtu | E133: 0 | M133: Začátek provozního součtu
C134: Stoka DK PVC DN300 vč. přípojek a propojů DK: | E134: 0 | M134: Stoka DK PVC DN300 vč. přípojek a propojů DK:
C135: Výkopy: | E135: 0 | M135: Výkopy:
C136: V hornině tř. 3 - 4:244,7980 | E136: 244.798 | M136: V hornině tř. 3 - 4:244,7980
C137: Odpočet lože, potrubí a obsypů: | E137: 0 | M137: Odpočet lože, potrubí a obsypů:
C138: Stoka DK PVC DN300:-65,20*1,00*(0,15+0,30+0,30) | E138: -48.9 | M138: Stoka DK PVC DN300:-65,20*1,00*(0,15+0,30+0,30)
C139: Přípojka DK PVC DN300:-16,20*1,00*(0,15+0,30+0,30) | E139: -12.15 | M139: Přípojka DK PVC DN300:-16,20*1,00*(0,15+0,30+0,30)
C140: Přepojení stávající kanalizace PVC DN250:-11,20*0,90*(0,15+0,25+0,30) | E140: -7.056 | M140: Přepojení stávající kanalizace PVC DN250:-11,20*0,90*(0,15+0,25+0,30)
C141: Přípojky pro UV PVC DN150:-2,00*2*0,80*(0,15+0,15+0,30) | E141: -1.92 | M141: Přípojky pro UV PVC DN150:-2,00*2*0,80*(0,15+0,15+0,30)
C142: Odpočet objemu konstrukce RŠ:-24,5164 | E142: -24.5164 | M142: Odpočet objemu konstrukce RŠ:-24,5164
C143: Konec provozního součtu | E143: 150.2556 | M143: Konec provozního součtu
B144: Celkem za | C144: 1 Zemní práce | G144: =SUM(G7:G143) -> 0 | I144: =SUM(I7:I143) -> 380.5647346 | K144: =SUM(K7:K143) -> -191.0289 | O144: 4 | BA144: =SUM(BA7:BA143) -> 0 | BB144: =SUM(BB7:BB143) -> 0 | BC144: =SUM(BC7:BC143) -> 0 | BD144: =SUM(BD7:BD143) -> 0 | BE144: =SUM(BE7:BE143) -> 0
A145: Díl: | B145: 45 | C145: Podkladní a vedlejší konstrukce | O145: 1
A146: 25 | B146: 451572111R00 | C146: Lože pod potrubí z kameniva těženého 0 - 4 mm | D146: m3 | E146: 14.202 | G146: =E146*F146 -> 0 | H146: 0.43051 | I146: =E146*H146 -> 6.11410302 | J146: 0 | K146: =E146*J146 -> 0 | O146: 2 | AA146: 1 | AB146: 1 | AC146: 1 | AZ146: 1 | BA146: =IF(AZ146=1,G146,0) -> 0 | BB146: =IF(AZ146=2,G146,0) -> 0 | BC146: =IF(AZ146=3,G146,0) -> 0 | BD146: =IF(AZ146=4,G146,0) -> 0 | BE146: =IF(AZ146=5,G146,0) -> 0 | CA146: 1 | CB146: 1
C147: Stoka DK PVC DN300:65,20*1,00*0,15 | E147: 9.78 | M147: Stoka DK PVC DN300:65,20*1,00*0,15
C148: Přípojka DK PVC DN300:16,20*1,00*0,15 | E148: 2.43 | M148: Přípojka DK PVC DN300:16,20*1,00*0,15
C149: Přepojení stávající kanalizace PVC DN250:11,20*0,90*0,15 | E149: 1.512 | M149: Přepojení stávající kanalizace PVC DN250:11,20*0,90*0,15
C150: Přípojky pro UV PVC DN150:2,00*2*0,80*0,15 | E150: 0.48 | M150: Přípojky pro UV PVC DN150:2,00*2*0,80*0,15
A151: 26 | B151: 452112111R00 | C151: Osazení beton. prstenců pod poklopy,výšky do100 mm | D151: kus | E151: 7 | G151: =E151*F151 -> 0 | H151: 0.0066 | I151: =E151*H151 -> 0.0462 | J151: 0 | K151: =E151*J151 -> 0 | O151: 2 | AA151: 1 | AB151: 1 | AC151: 1 | AZ151: 1 | BA151: =IF(AZ151=1,G151,0) -> 0 | BB151: =IF(AZ151=2,G151,0) -> 0 | BC151: =IF(AZ151=3,G151,0) -> 0 | BD151: =IF(AZ151=4,G151,0) -> 0 | BE151: =IF(AZ151=5,G151,0) -> 0 | CA151: 1 | CB151: 1
C152: Volba položky se řídí výškou prstence nebo rámu. V položkách nejsou zakalkulovány náklady na dodávku betonových výrobků; | L152: Volba položky se řídí výškou prstence nebo rámu. V položkách nejsou zakalkulovány náklady na dodávku betonových výrobků; | O152: 3
C153: Stoka DK PVC DN300 vč. přípojek a propojů DK: | E153: 0 | M153: Stoka DK PVC DN300 vč. přípojek a propojů DK:
C154: VP H40:1 | E154: 1 | M154: VP H40:1
C155: VP H80:3 | E155: 3 | M155: VP H80:3
C156: VP H100:3 | E156: 3 | M156: VP H100:3
A157: 27 | B157: 59224345.B.R | C157: Prstenec vyrovn šachetní TBW-Q.1 40/600/120 | D157: kus | E157: 1.01 | G157: =E157*F157 -> 0 | H157: 0.028 | I157: =E157*H157 -> 0.02828 | K157: =E157*J157 -> 0 | O157: 2 | AA157: 3 | AB157: 1 | AC157: 59224345.B.R | AZ157: 1 | BA157: =IF(AZ157=1,G157,0) -> 0 | BB157: =IF(AZ157=2,G157,0) -> 0 | BC157: =IF(AZ157=3,G157,0) -> 0 | BD157: =IF(AZ157=4,G157,0) -> 0 | BE157: =IF(AZ157=5,G157,0) -> 0 | CA157: 3 | CB157: 1
C158: Stoka DK PVC DN300 vč. přípojek a propojů DK: | E158: 0 | M158: Stoka DK PVC DN300 vč. přípojek a propojů DK:
C159: VP H40:1*1,01 | E159: 1.01 | M159: VP H40:1*1,01
A160: 28 | B160: 59224347.B.R | C160: Prstenec vyrovn šachetní TBW-Q.1 80/600/120 | D160: kus | E160: 3.03 | G160: =E160*F160 -> 0 | H160: 0.053 | I160: =E160*H160 -> 0.16059 | K160: =E160*J160 -> 0 | O160: 2 | AA160: 3 | AB160: 1 | AC160: 59224347.B.R | AZ160: 1 | BA160: =IF(AZ160=1,G160,0) -> 0 | BB160: =IF(AZ160=2,G160,0) -> 0 | BC160: =IF(AZ160=3,G160,0) -> 0 | BD160: =IF(AZ160=4,G160,0) -> 0 | BE160: =IF(AZ160=5,G160,0) -> 0 | CA160: 3 | CB160: 1
C161: Stoka DK PVC DN300 vč. přípojek a propojů DK: | E161: 0 | M161: Stoka DK PVC DN300 vč. přípojek a propojů DK:
C162: VP H80:3*1,01 | E162: 3.03 | M162: VP H80:3*1,01
A163: 29 | B163: 59224348.B.R | C163: Prstenec vyrovn šachetní TBW-Q.1 100/600/120 | D163: kus | E163: 3.03 | G163: =E163*F163 -> 0 | H163: 0.068 | I163: =E163*H163 -> 0.20604 | K163: =E163*J163 -> 0 | O163: 2 | AA163: 3 | AB163: 1 | AC163: 59224348.B.R | AZ163: 1 | BA163: =IF(AZ163=1,G163,0) -> 0 | BB163: =IF(AZ163=2,G163,0) -> 0 | BC163: =IF(AZ163=3,G163,0) -> 0 | BD163: =IF(AZ163=4,G163,0) -> 0 | BE163: =IF(AZ163=5,G163,0) -> 0 | CA163: 3 | CB163: 1
C164: Stoka DK PVC DN300 vč. přípojek a propojů DK: | E164: 0 | M164: Stoka DK PVC DN300 vč. přípojek a propojů DK:
C165: VP H100:3*1,01 | E165: 3.03 | M165: VP H100:3*1,01
B166: Celkem za | C166: 45 Podkladní a vedlejší konstrukce | G166: =SUM(G145:G165) -> 0 | I166: =SUM(I145:I165) -> 6.55521302 | K166: =SUM(K145:K165) -> 0 | O166: 4 | BA166: =SUM(BA145:BA165) -> 0 | BB166: =SUM(BB145:BB165) -> 0 | BC166: =SUM(BC145:BC165) -> 0 | BD166: =SUM(BD145:BD165) -> 0 | BE166: =SUM(BE145:BE165) -> 0
A167: Díl: | B167: 5 | C167: Komunikace | O167: 1
A168: 30 | B168: 566903111R00 | C168: Vyspravení podkladu po překopech kam.hrubě drceným | D168: t | E168: 60.7601 | G168: =E168*F168 -> 0 | H168: 1.1 | I168: =E168*H168 -> 66.83611 | J168: 0 | K168: =E168*J168 -> 0 | O168: 2 | AA168: 1 | AB168: 1 | AC168: 1 | AZ168: 1 | BA168: =IF(AZ168=1,G168,0) -> 0 | BB168: =IF(AZ168=2,G168,0) -> 0 | BC168: =IF(AZ168=3,G168,0) -> 0 | BD168: =IF(AZ168=4,G168,0) -> 0 | BE168: =IF(AZ168=5,G168,0) -> 0 | CA168: 1 | CB168: 1
C169: Stoka DK PVC DN300:(65,20*1,00+1,60*(1,60-1,00)*5)*0,40*1,873 | E169: 52.444 | M169: Stoka DK PVC DN300:(65,20*1,00+1,60*(1,60-1,00)*5)*0,40*1,873
C170: Přípojka DK PVC DN300:(16,20*1,00+1,60*(1,60-1,00)*1)*0,40*1,873 | E170: 12.8563 | M170: Přípojka DK PVC DN300:(16,20*1,00+1,60*(1,60-1,00)*1)*0,40*1,873
C171: Přepojení stávající kanalizace PVC DN250:(11,20*0,90+1,60*(1,60-0,90)*1)*0,40*1,873 | E171: 8.391 | M171: Přepojení stávající kanalizace PVC DN250:(11,20*0,90+1,60*(1,60-0,90)*1)*0,40*1,873
C172: Přípojky pro UV PVC DN150:2,00*2*0,80*0,40*1,873 | E172: 2.3974 | M172: Přípojky pro UV PVC DN150:2,00*2*0,80*0,40*1,873
C173: Odpočet podílu panelové plochy parkoviště (manipulace s panely počítána v SO320):-(39,00*1,00+1,60*(1,60-1,00)*2)*0,20*1,873 | E173: -15.3286 | M173: Odpočet podílu panelové plochy parkoviště (manipulace s panely počítána v SO320):-(39,00*1,00+1,60*(1,60-1,00)*2)*0,20*1,873
A174: 31 | B174: 584121111R00 | C174: Osazení silničních panelů,lože z kameniva tl. 4 cm | D174: m2 | E174: 310 | G174: =E174*F174 -> 0 | H174: 0.0835 | I174: =E174*H174 -> 25.885 | J174: 0 | K174: =E174*J174 -> 0 | O174: 2 | AA174: 1 | AB174: 1 | AC174: 1 | AZ174: 1 | BA174: =IF(AZ174=1,G174,0) -> 0 | BB174: =IF(AZ174=2,G174,0) -> 0 | BC174: =IF(AZ174=3,G174,0) -> 0 | BD174: =IF(AZ174=4,G174,0) -> 0 | BE174: =IF(AZ174=5,G174,0) -> 0 | CA174: 1 | CB174: 1
C175: Včetně: | L175: Včetně: | O175: 3
C176: - kameniva frakce 0 - 32 mm, | L176: - kameniva frakce 0 - 32 mm, | O176: 3
C177: - rozprostření podkladu, | L177: - rozprostření podkladu, | O177: 3
C178: - osazení silničních panelů. | L178: - osazení silničních panelů. | O178: 3
C179: Plocha parkoviště - původní panely:310,00 | E179: 310 | M179: Plocha parkoviště - původní panely:310,00
B180: Celkem za | C180: 5 Komunikace | G180: =SUM(G167:G179) -> 0 | I180: =SUM(I167:I179) -> 92.72111 | K180: =SUM(K167:K179) -> 0 | O180: 4 | BA180: =SUM(BA167:BA179) -> 0 | BB180: =SUM(BB167:BB179) -> 0 | BC180: =SUM(BC167:BC179) -> 0 | BD180: =SUM(BD167:BD179) -> 0 | BE180: =SUM(BE167:BE179) -> 0
A181: Díl: | B181: 8 | C181: Trubní vedení | O181: 1
A182: 32 | B182: 871313121R00 | C182: Montáž trub z plastu, gumový kroužek, DN 150 | D182: m | E182: 4 | G182: =E182*F182 -> 0 | H182: 0 | I182: =E182*H182 -> 0 | J182: 0 | K182: =E182*J182 -> 0 | O182: 2 | AA182: 1 | AB182: 0 | AC182: 0 | AZ182: 1 | BA182: =IF(AZ182=1,G182,0) -> 0 | BB182: =IF(AZ182=2,G182,0) -> 0 | BC182: =IF(AZ182=3,G182,0) -> 0 | BD182: =IF(AZ182=4,G182,0) -> 0 | BE182: =IF(AZ182=5,G182,0) -> 0 | CA182: 1 | CB182: 0
C183: V položce je uvažováno s jedním spojem na 6 m potrubí. Položka je určena pro montáž potrubí z kanalizačních trub z plastu těsněných gumovým kroužkem v otevřeném výkopu ve sklonu do 20 %. | L183: V položce je uvažováno s jedním spojem na 6 m potrubí. Položka je určena pro montáž potrubí z kanalizačních trub z plastu těsněných gumovým kroužkem v otevřeném výkopu ve sklonu do 20 %. | O183: 3
C184: Stoka DK PVC DN300: | E184: 0 | M184: Stoka DK PVC DN300:
C185: Přípojky pro UV PVC DN150:2,00*2 | E185: 4 | M185: Přípojky pro UV PVC DN150:2,00*2
A186: 33 | B186: 871373121R00 | C186: Montáž trub z plastu, gumový kroužek, DN 300 | D186: m | E186: 92.6 | G186: =E186*F186 -> 0 | H186: 1e-05 | I186: =E186*H186 -> 0.000926 | J186: 0 | K186: =E186*J186 -> 0 | O186: 2 | AA186: 1 | AB186: 1 | AC186: 1 | AZ186: 1 | BA186: =IF(AZ186=1,G186,0) -> 0 | BB186: =IF(AZ186=2,G186,0) -> 0 | BC186: =IF(AZ186=3,G186,0) -> 0 | BD186: =IF(AZ186=4,G186,0) -> 0 | BE186: =IF(AZ186=5,G186,0) -> 0 | CA186: 1 | CB186: 1
C187: V položce je uvažováno s jedním spojem na 6 m potrubí. Položka je určena pro montáž potrubí z kanalizačních trub z plastu těsněných gumovým kroužkem v otevřeném výkopu ve sklonu do 20 %. | L187: V položce je uvažováno s jedním spojem na 6 m potrubí. Položka je určena pro montáž potrubí z kanalizačních trub z plastu těsněných gumovým kroužkem v otevřeném výkopu ve sklonu do 20 %. | O187: 3
C188: Stoka DK PVC DN300:65,20 | E188: 65.2 | M188: Stoka DK PVC DN300:65,20
C189: Přípojka DK PVC DN300:16,20 | E189: 16.2 | M189: Přípojka DK PVC DN300:16,20
C190: Přepojení stávající kanalizace PVC DN250:11,20 | E190: 11.2 | M190: Přepojení stávající kanalizace PVC DN250:11,20
A191: 34 | B191: 877313123R00 | C191: Montáž tvarovek jednoos. plast. gum.kroužek DN 150 | D191: kus | E191: 4 | G191: =E191*F191 -> 0 | H191: 1e-05 | I191: =E191*H191 -> 4e-05 | J191: 0 | K191: =E191*J191 -> 0 | O191: 2 | AA191: 1 | AB191: 1 | AC191: 1 | AZ191: 1 | BA191: =IF(AZ191=1,G191,0) -> 0 | BB191: =IF(AZ191=2,G191,0) -> 0 | BC191: =IF(AZ191=3,G191,0) -> 0 | BD191: =IF(AZ191=4,G191,0) -> 0 | BE191: =IF(AZ191=5,G191,0) -> 0 | CA191: 1 | CB191: 1
C192: Položka je určena pro montáž tvarovek jednoosých na potrubí z kanalizačních trub z plastu těsněných gumovým kroužkem v otevřeném výkopu. | L192: Položka je určena pro montáž tvarovek jednoosých na potrubí z kanalizačních trub z plastu těsněných gumovým kroužkem v otevřeném výkopu. | O192: 3
C193: Stoka DK PVC DN300: | E193: 0 | M193: Stoka DK PVC DN300:
C194: Přípojky pro UV PVC DN150: | E194: 0 | M194: Přípojky pro UV PVC DN150:
C195: Koleno PVC DN150:2*2 | E195: 4 | M195: Koleno PVC DN150:2*2
A196: 35 | B196: 891183440RX8 | C196: Přerušení stávajícího potrubí KT DN300 a jeno napojení na novou RŠ | D196: kus | E196: 1 | G196: =E196*F196 -> 0 | H196: 0.068 | I196: =E196*H196 -> 0.068 | J196: 0 | K196: =E196*J196 -> 0 | O196: 2 | AA196: 1 | AB196: 1 | AC196: 1 | AZ196: 1 | BA196: =IF(AZ196=1,G196,0) -> 0 | BB196: =IF(AZ196=2,G196,0) -> 0 | BC196: =IF(AZ196=3,G196,0) -> 0 | BD196: =IF(AZ196=4,G196,0) -> 0 | BE196: =IF(AZ196=5,G196,0) -> 0 | CA196: 1 | CB196: 1
C197: Položka obsahuje přerušení a výřez stávajícího potrubí KT DN300 a po osazení nové RŠ dopojení stávajícího potrubí z obou stran na tuto šachtu včetně dodávky příslušných tvarovek a spojovacích prvků dle projektové dokumentace. Součástí položky je lože a obsyp potrubí. | L197: Položka obsahuje přerušení a výřez stávajícího potrubí KT DN300 a po osazení nové RŠ dopojení stávajícího potrubí z obou stran na tuto šachtu včetně dodávky příslušných tvarovek a spojovacích prvků dle projektové dokumentace. Součástí položky je lože a obsyp potrubí. | O197: 3
A198: 36 | B198: 892601153R00 | C198: Čištění kanalizační stoky do DN 500, do 100 m | D198: m | E198: 92.6 | G198: =E198*F198 -> 0 | H198: 0 | I198: =E198*H198 -> 0 | J198: 0 | K198: =E198*J198 -> 0 | O198: 2 | AA198: 1 | AB198: 1 | AC198: 1 | AZ198: 1 | BA198: =IF(AZ198=1,G198,0) -> 0 | BB198: =IF(AZ198=2,G198,0) -> 0 | BC198: =IF(AZ198=3,G198,0) -> 0 | BD198: =IF(AZ198=4,G198,0) -> 0 | BE198: =IF(AZ198=5,G198,0) -> 0 | CA198: 1 | CB198: 1
C199: V položce je zakalkulováno: | L199: V položce je zakalkulováno: | O199: 3
C200: a) otevření a uzavření revizních šachet a čisticích kusů | L200: a) otevření a uzavření revizních šachet a čisticích kusů | O200: 3
C201: b) natažení vysokotlakých hadic k místu odkud se bude kanalizace čistit | L201: b) natažení vysokotlakých hadic k místu odkud se bude kanalizace čistit | O201: 3
C202: c) vyčištění potrubí tlakovou vodou nebo motorovým pérem. | L202: c) vyčištění potrubí tlakovou vodou nebo motorovým pérem. | O202: 3
... 134 more rows

Sheet 400 3380400 KL
A1: POLOŽKOVÝ ROZPOČET
A2: Rozpočet | C2: 3380/400 | D2: Prodloužení plynovodního řadu | F2: JKSO | G2: 827.52.A
A4: Objekt | F4: SKP
A5: 400 | C5: Prodloužení plynovodního řadu | F5: Měrná jednotka | G5: m
A6: Stavba | F6: Počet jednotek | G6: 0
A7: 3380 | C7: Lomnice n/P. Prodloužení sítí technické infrastruk | F7: Náklady na m.j. | G7: =IF(G6=0,,ROUND((F30+F32)/G6,1)) -> 0
A8: Projektant | C8: PVK Projekt s.r.o. | F8: Typ rozpočtu
A9: Zpracovatel projektu
A10: Objednatel | C10: Město Lomnice nad Popelkou
A11: Dodavatel | C11: . | F11: Zakázkové číslo
A12: Rozpočtoval | F12: Počet listů
A13: ROZPOČTOVÉ NÁKLADY
A14: Základní rozpočtové náklady
B15: HSV celkem | C15: ='400 3380400 Rek'!E9 -> 0
A16: Z | B16: PSV celkem | C16: ='400 3380400 Rek'!F9 -> 0
A17: R | B17: M práce celkem | C17: ='400 3380400 Rek'!H9 -> 0
A18: N | B18: M dodávky celkem | C18: ='400 3380400 Rek'!G9 -> 0
A19: ZRN celkem | C19: =SUM(C15:C18) -> 0
A21: HZS | C21: ='400 3380400 Rek'!I9 -> 0
A22: ZRN+HZS | C22: =C19+C21 -> 0
A23: ZRN+ost.náklady+HZS | C23: =C22+G23 -> 0
A24: Vypracoval | D24: Za zhotovitele | F24: Za objednatele
A25: Jméno : | D25: Jméno : | F25: Jméno :
A26: Datum : | D26: Datum : | F26: Datum :
A28: Podpis : | D28: Podpis: | F28: Podpis:
A30: Základ pro DPH | C30: 21 | D30: % | F30: =C23-F32 -> 0
A31: DPH | C31: =C30 -> 21 | D31: % | F31: =ROUND(PRODUCT(F30,C31/100),0) -> 0
A32: Základ pro DPH | C32: 0 | D32: % | F32: 0
A33: DPH | C33: =C32 -> 0 | D33: % | F33: =ROUND(PRODUCT(F32,C33/100),0) -> 0
A34: CENA ZA OBJEKT CELKEM | F34: =ROUND(SUM(F30:F33),0) -> 0
A36: Poznámka :

Sheet 400 3380400 Rek
A1: Stavba : | C1: 3380 Lomnice n/P. Prodloužení sítí technické infrastruk | G1: Rozpočet : | H1: 3380/400
A2: Objekt : | C2: 400 Prodloužení plynovodního řadu | G2: Prodloužení plynovodního řadu
A4: REKAPITULACE STAVEBNÍCH DÍLŮ
B6: Stavební díl | E6: HSV | F6: PSV | G6: Dodávka | H6: Montáž | I6: HZS
A7: ='400 3380400 Pol'!B7 -> 8 | B7: ='400 3380400 Pol'!C7 -> Trubní vedení | E7: ='400 3380400 Pol'!BA15 -> 0 | F7: ='400 3380400 Pol'!BB15 -> 0 | G7: ='400 3380400 Pol'!BC15 -> 0 | H7: ='400 3380400 Pol'!BD15 -> 0 | I7: ='400 3380400 Pol'!BE15 -> 0
A8: ='400 3380400 Pol'!B16 -> 99 | B8: ='400 3380400 Pol'!C16 -> Staveništní přesun hmot | E8: ='400 3380400 Pol'!BA18 -> 0 | F8: ='400 3380400 Pol'!BB18 -> 0 | G8: ='400 3380400 Pol'!BC18 -> 0 | H8: ='400 3380400 Pol'!BD18 -> 0 | I8: ='400 3380400 Pol'!BE18 -> 0
B9: CELKEM OBJEKT | E9: =SUM(E7:E8) -> 0 | F9: =SUM(F7:F8) -> 0 | G9: =SUM(G7:G8) -> 0 | H9: =SUM(H7:H8) -> 0 | I9: =SUM(I7:I8) -> 0

Sheet 400 3380400 Pol
A1: Položkový rozpočet
A3: Stavba : | C3: 3380 Lomnice n/P. Prodloužení sítí technické infrastruk | E3: Rozpočet: | F3: ='400 3380400 Rek'!H1 -> 3380/400
A4: Objekt : | C4: 400 Prodloužení plynovodního řadu | E4: ='400 3380400 Rek'!G2 -> Prodloužení plynovodního řadu
A6: P.č. | B6: Číslo položky | C6: Název položky | D6: MJ | E6: množství | F6: cena / MJ | G6: celkem (Kč) | H6: Jednotková hmotnost | I6: Celková hmotnost | J6: Jednotková dem.hmot. | K6: Celková dem.hmot.
A7: Díl: | B7: 8 | C7: Trubní vedení | O7: 1
A8: 1 | B8: 841230114RAX | C8: Plynovod z trub PE, D 63 mm, hl. 1,2 m D 63 x 5,8 návin, SDR11, s podsypem štěrkopískem | D8: m | E8: 57.2 | G8: =E8*F8 -> 0 | H8: 1.61669 | I8: =E8*H8 -> 92.474668 | J8: 0 | K8: =E8*J8 -> 0 | O8: 2 | AA8: 1 | AB8: 1 | AC8: 1 | AZ8: 1 | BA8: =IF(AZ8=1,G8,0) -> 0 | BB8: =IF(AZ8=2,G8,0) -> 0 | BC8: =IF(AZ8=3,G8,0) -> 0 | BD8: =IF(AZ8=4,G8,0) -> 0 | BE8: =IF(AZ8=5,G8,0) -> 0 | CA8: 1 | CB8: 1
C9: V položce je zakalkulováno hloubení rýh nezapažených, šířky 80 cm a hloubky dle projektu v hornině 3 a 4 (včetně příplatku za lepivost - 50 %) v komunikaci, dodávka a montáž potrubí, s podsypem štěrkopískem, s obsypem pískem nebo štěrkopískem v tl. 30 cm nad potrubím, se zásypem hutněným ŠD až do nivetety stávajících povrchů komunikace a s odvozem přebytečné zeminy na skládku zhotovitele včetně poplatku za skládku. Součástí ceny je i hlavní tlaková zkouška vzduchem, signalizační vodič a výstražná fólie. | L9: V položce je zakalkulováno hloubení rýh nezapažených, šířky 80 cm a hloubky dle projektu v hornině 3 a 4 (včetně příplatku za lepivost - 50 %) v komunikaci, dodávka a montáž potrubí, s podsypem štěrkopískem, s obsypem pískem nebo štěrkopískem v tl. 30 cm nad potrubím, se zásypem hutněným ŠD až do nivetety stávajících povrchů komunikace a s odvozem přebytečné zeminy na skládku zhotovitele včetně poplatku za skládku. Součástí ceny je i hlavní tlaková zkouška vzduchem, signalizační vodič a výstražná fólie. | O9: 3
C10: STL plynovod PE D 63x5,8 mm:57,20 | E10: 57.2 | M10: STL plynovod PE D 63x5,8 mm:57,20
A11: 2 | B11: 841230129RAB | C11: Ukončení plynovodu ventilem DN25 dle PD včetně odfuku a příslušného poklopu | D11: soubor | E11: 1 | G11: =E11*F11 -> 0 | H11: 2.5902 | I11: =E11*H11 -> 2.5902 | J11: 0 | K11: =E11*J11 -> 0 | O11: 2 | AA11: 1 | AB11: 1 | AC11: 1 | AZ11: 1 | BA11: =IF(AZ11=1,G11,0) -> 0 | BB11: =IF(AZ11=2,G11,0) -> 0 | BC11: =IF(AZ11=3,G11,0) -> 0 | BD11: =IF(AZ11=4,G11,0) -> 0 | BE11: =IF(AZ11=5,G11,0) -> 0 | CA11: 1 | CB11: 1
A12: 3 | B12: 841230285RRX | C12: Propoj plynovodu dle PD na OC DN200 | D12: soubor | E12: 1 | G12: =E12*F12 -> 0 | H12: 4.5896 | I12: =E12*H12 -> 4.5896 | J12: 0 | K12: =E12*J12 -> 0 | O12: 2 | AA12: 1 | AB12: 1 | AC12: 1 | AZ12: 1 | BA12: =IF(AZ12=1,G12,0) -> 0 | BB12: =IF(AZ12=2,G12,0) -> 0 | BC12: =IF(AZ12=3,G12,0) -> 0 | BD12: =IF(AZ12=4,G12,0) -> 0 | BE12: =IF(AZ12=5,G12,0) -> 0 | CA12: 1 | CB12: 1
C13: Provedení propoje dle PD a TZ včetně zemních prací, zásypů a pod. | L13: Provedení propoje dle PD a TZ včetně zemních prací, zásypů a pod. | O13: 3
C14: Zajištění dokladové části a kolaudace stavby. | L14: Zajištění dokladové části a kolaudace stavby. | O14: 3
B15: Celkem za | C15: 8 Trubní vedení | G15: =SUM(G7:G14) -> 0 | I15: =SUM(I7:I14) -> 99.654468 | K15: =SUM(K7:K14) -> 0 | O15: 4 | BA15: =SUM(BA7:BA14) -> 0 | BB15: =SUM(BB7:BB14) -> 0 | BC15: =SUM(BC7:BC14) -> 0 | BD15: =SUM(BD7:BD14) -> 0 | BE15: =SUM(BE7:BE14) -> 0
A16: Díl: | B16: 99 | C16: Staveništní přesun hmot | O16: 1
A17: 4 | B17: 998276101R00 | C17: Přesun hmot, trubní vedení plastová, otevř. výkop | D17: t | E17: 99.654468 | G17: =E17*F17 -> 0 | H17: 0 | I17: =E17*H17 -> 0 | K17: =E17*J17 -> 0 | O17: 2 | AA17: 7 | AB17: 1 | AC17: 2 | AZ17: 1 | BA17: =IF(AZ17=1,G17,0) -> 0 | BB17: =IF(AZ17=2,G17,0) -> 0 | BC17: =IF(AZ17=3,G17,0) -> 0 | BD17: =IF(AZ17=4,G17,0) -> 0 | BE17: =IF(AZ17=5,G17,0) -> 0 | CA17: 7 | CB17: 1
B18: Celkem za | C18: 99 Staveništní přesun hmot | G18: =SUM(G16:G17) -> 0 | I18: =SUM(I16:I17) -> 0 | K18: =SUM(K16:K17) -> 0 | O18: 4 | BA18: =SUM(BA16:BA17) -> 0 | BB18: =SUM(BB16:BB17) -> 0 | BC18: =SUM(BC16:BC17) -> 0 | BD18: =SUM(BD16:BD17) -> 0 | BE18: =SUM(BE16:BE17) -> 0

Sheet OaVNS
A1: Položkový rozpočet
A3: Stavba : | C3: 3380 Lomnice n/P. Prodloužení sítí technické infrastruk | E3: Rozpočet: | F3: OaVNS
A4: Objekt : | C4: OaVNS - Ostatní a vedlejší náklady stavby
A6: P.č. | B6: Číslo položky | C6: Název položky | D6: MJ | E6: množství | F6: cena / MJ | G6: celkem (Kč) | H6: Jednotková hmotnost | I6: Celková hmotnost | J6: Jednotková dem.hmot. | K6: Celková dem.hmot.
A7: Díl: | B7: 950 | C7: Ostatní náklady stavby
A8: 1 | B8: 950 99-0001.ONS | C8: Zajištění prostoru a vybudování zařízení staveniště včetně potřebných staveništních komunikací | D8: soubor | E8: 1 | G8: =SUM(E8*F8) -> 0 | H8: 0.00869 | I8: =E8*H8 -> 0.00869 | J8: 0 | K8: =E8*J8 -> 0 | BN8: 1 | BO8: 1
A9: 2 | B9: 950 99-0003.ONS | C9: Zajištění bezpečnosti při provádění stavby ve smyslu bezpečnosti práce i ochrany životního prostředí a zeleně | D9: soubor | E9: 1 | G9: =SUM(E9*F9) -> 0
A10: 3 | B10: 950 99-0005.ONS | C10: Vytýčení stavby a hranic pozemků při provádění stavby | D10: soubor | E10: 1 | G10: 0
A11: 4 | B11: 950 99-0006.ONS | C11: Zajištění včasného oznámení o zahájení prací majitelům pozemků a správců sítí dotčených stavbou | D11: soubor | E11: 1 | G11: 0
A12: 5 | B12: 950 99-0007.ONS | C12: Spolupráce s vlastníky pozemků při případném uvolnění pozemků pro stavbu (např. skládky osobního materiálu vlastníků) | D12: soubor | E12: 1 | G12: 0 | H12: 0.02478 | I12: =E12*H12 -> 0.02478 | J12: 0 | K12: =E12*J12 -> 0 | BN12: 1 | BO12: 1
A13: 6 | B13: 950 99-0008.ONS | C13: Zajištění vytýčení podzemních zařízení, a v případě jejich křížení či souběhu v otevřeném výkopu, jejich písemné předání zpět jejich správcům před zásypem | D13: soubor | E13: 1 | G13: 0
A14: 7 | B14: 950 99-0009.ONS | C14: Vypracování a projednání návrhu dočasných dopravních opatření (případně i po etapách dle zvoleného postupu prací zhotovitelem) | D14: soubor | E14: 1 | G14: 0
A15: 8 | B15: 950 99-0010.ONS | C15: Zajištění povolení zvláštního užívání komunikací v souladu s postupem výstavby,včetně správních poplatků a povolení k užívání dalších, stavbou dotčených pozemků (skládky materiálu, mezideponie atd.) | D15: soubor | E15: 1 | G15: 0
A16: 9 | B16: 950 99-0011.ONS | C16: Zřízení, údržba a likvidace dopravního opatření po dobu realizace stavby (případně i po etapách dle zvoleného postupu prací zhotovitelem) | D16: soubor | E16: 1 | G16: 0 | H16: 0 | I16: =E16*H16 -> 0 | J16: 0 | K16: =E16*J16 -> 0 | BN16: 1 | BO16: 1
A17: 10 | B17: 950 99-0013.ONS | C17: Zajištění činnosti odpovědného geodeta zhotovitele | D17: soubor | E17: 1 | G17: 0
A18: 11 | B18: 950 99-0014.ONS | C18: Zajištění činnosti odpovědného geologa zhotovitele | D18: soubor | E18: 1 | G18: 0
A19: 12 | B19: 950 99-0015.ONS | C19: Zajištění čistoty na staveništi a v jeho okolí, zajištění každodenního čištění komunikací dotčených provozem zhotovitele | D19: soubor | E19: 1 | G19: 0
A20: 13 | B20: 950 99-0016.ONS | C20: Fotodokumentace průběhu díla; zhotovitel zajistí a předá objednateli průběžnou fotodokumentaci realizace díla. Fotodokumentace bude dokladovat průběh díla a bude zejména dokumentovat části stavby a konstrukce před jejich zakrytím | D20: soubor | E20: 1 | G20: 0
A21: 14 | B21: 950 99-0017.ONS | C21: Péče o nepředané objekty nebo jejich části a konstrukce stavby, jejich ošetřování a nutný rozsah pojištění | D21: soubor | E21: 1 | G21: 0 | H21: 0 | I21: =E21*H21 -> 0 | J21: 0 | K21: =E21*J21 -> 0 | BN21: 1 | BO21: 1
A22: 15 | B22: 950 99-0018.ONS | C22: Zkoušky hutnění komunikací a rýh dle ČSN a EN | D22: soubor | E22: 1 | G22: 0
A23: 16 | B23: 950 99-0021.ONS | C23: Inženýrská a kompletační činnost zhotovitele | D23: soubor | E23: 1 | G23: 0
A24: 17 | B24: 950 99-0022.ONS | C24: Zhotovení dokumentace skutečného provedení díla | D24: soubor | E24: 1 | G24: 0
A25: 18 | B25: 950 99-0023.ONS | C25: Geodetické zaměření stavby | D25: soubor | E25: 1 | G25: 0
A26: 19 | B26: 950 99-0024.ONS | C26: Pasportizace objektů a komunikací před zahájením stavby včetně předání fotokokumentace investorovi stavby v digitální a tištěné podobě. | D26: soubor | E26: 1 | G26: 0
A27: 20 | B27: 950 99-0025.ONS | C27: Provizorní zásobování vodou (cisterny) | D27: soubor | E27: 1 | G27: 0
A28: 20 | B28: 950 99-0027.ONS | C28: Ostatní činnosti nutné ke zdárnému provedení díla, které jsou vymezeny zejména v technické specifikaci stavby | D28: soubor | E28: 1 | G28: 0
B30: ONS Celkem | G30: =SUM(G8:G28) -> 0
